date,department/service,beneficiary,amount,summary of purpose,category,transaction number,SAP vendor number
01.11.2021,ADULT SOCIAL CARE,KENT COUNTY COUNCIL - LASER,"1,203.25",SOUTHWARK RESOURCE CENTRE,ELECTRICITY,5902492985,1000012926
01.11.2021,ASSET MANAGEMENT,ARMINA LTD,"1,324.09",DISREPAIR,PAYMENTS FOR LEGAL SERVICES,2103339121,3000002121
01.11.2021,ASSET MANAGEMENT,ARMINA LTD,"1,440.43",DISREPAIR,PAYMENTS FOR LEGAL SERVICES,2103339120,3000002121
01.11.2021,ASSET MANAGEMENT,POTTER RAPER LTD,"9,577.11",HIP MAJOR WORKS,PLANNED MAINTENANCE,5902493370,1009369
01.11.2021,ASSET MANAGEMENT,AVALON ABSEILING LTD,738.25,MAJOR REPAIRS,BUILDING R&M,5902493081,1000080453
01.11.2021,CENTRAL FUNCTIONS,KENT COUNTY COUNCIL - LASER,"-71,728.13",HEATING ACCOUNT,ELECTRICITY,5902493240,1000012926
01.11.2021,CENTRAL FUNCTIONS,KENT COUNTY COUNCIL - LASER,"-70,216.79",HEATING ACCOUNT,ELECTRICITY,5902493240,1000012926
01.11.2021,CENTRAL FUNCTIONS,KENT COUNTY COUNCIL - LASER,"-69,487.70",HEATING ACCOUNT,ELECTRICITY,5902493240,1000012926
01.11.2021,CENTRAL FUNCTIONS,KENT COUNTY COUNCIL - LASER,"-67,826.10",HEATING ACCOUNT,ELECTRICITY,5902493240,1000012926
01.11.2021,CENTRAL FUNCTIONS,KENT COUNTY COUNCIL - LASER,"-65,692.01",HEATING ACCOUNT,ELECTRICITY,5902493240,1000012926
01.11.2021,CENTRAL FUNCTIONS,KENT COUNTY COUNCIL - LASER,"-64,865.31",HEATING ACCOUNT,ELECTRICITY,5902493240,1000012926
01.11.2021,CENTRAL FUNCTIONS,KENT COUNTY COUNCIL - LASER,"-60,893.83",HEATING ACCOUNT,ELECTRICITY,5902493240,1000012926
01.11.2021,CENTRAL FUNCTIONS,KENT COUNTY COUNCIL - LASER,"-60,251.52",HEATING ACCOUNT,ELECTRICITY,5902493240,1000012926
01.11.2021,CENTRAL FUNCTIONS,KENT COUNTY COUNCIL - LASER,"-60,003.24",HEATING ACCOUNT,ELECTRICITY,5902493240,1000012926
01.11.2021,CENTRAL FUNCTIONS,KENT COUNTY COUNCIL - LASER,"-57,378.20",HEATING ACCOUNT,ELECTRICITY,5902493240,1000012926
01.11.2021,CENTRAL FUNCTIONS,KENT COUNTY COUNCIL - LASER,"-55,491.65",HEATING ACCOUNT,ELECTRICITY,5902493240,1000012926
01.11.2021,CENTRAL FUNCTIONS,KENT COUNTY COUNCIL - LASER,"-51,906.91",HEATING ACCOUNT,ELECTRICITY,5902493240,1000012926
01.11.2021,CENTRAL FUNCTIONS,KENT COUNTY COUNCIL - LASER,"-14,752.27",HEATING ACCOUNT,ELECTRICITY,5902493240,1000012926
01.11.2021,CENTRAL FUNCTIONS,KENT COUNTY COUNCIL - LASER,"790,355.78",HEATING ACCOUNT,ELECTRICITY,5902493241,1000012926
01.11.2021,CENTRAL FUNCTIONS,KENT COUNTY COUNCIL - LASER,"346,630.14",HEATING ACCOUNT,GAS,5902492888,1000012926
01.11.2021,CHIEF EXECUTIVE,SYSTRA LTD,"1,292.50",CAPITAL PS (REGEN),CONSTRUCTION,5902492958,11305109
01.11.2021,CHILDREN AND ADULT,JOHN F HUNT REGENERATION LTD,"126,219.35",CAPITAL PS (EDUCATION),CONSTRUCTION SITE COSTS,2103338472,3000002170
01.11.2021,CHILDREN AND FAMILIES,HEAVENLY ANGELS LTD T/A BANANA MOON DAY NURSERY,"1,398.00",FOSTERING TEAM,EXTERNAL AGENCIES AND BODIES,5902493232,1000076197
01.11.2021,CHILDREN AND FAMILIES,KENT COUNTY COUNCIL - LASER,"1,188.81",MGMT & PARENTING,ELECTRICITY,5902493242,1000012926
01.11.2021,COMMUNITIES,FLAMINGO CREATIVE,710,MAYORAL SUPPORT,PRINTING,5902493333,1000044711
01.11.2021,CUSTOMER EXPERIENCE HGF,KENT COUNTY COUNCIL - LASER,474.76,CORONER'S,ELECTRICITY,5902493060,1000012926
01.11.2021,CUSTOMER EXPERIENCE HGF,WATERLOGIC,"1,016.94",CORONER'S,OP LEASE/HIRE CHARGES:PLANT/EQUIP/FURNIT,5902493200,1000052108
01.11.2021,CUSTOMER EXPERIENCE HGF,T.M.L.E LTD,687.5,CORONER'S,PROFESSIONAL FEES,5902493591,1000086131
01.11.2021,ENVIRONMENT AND LEISURE,PREMIER SURVEYS,"2,190.00",CAPITAL PS (LEISURE),CONSTR'N SUB CONTRACT - NON CERTIFICATED,5902493491,1000075479
01.11.2021,ENVIRONMENT DIRECTORATE,KENT COUNTY COUNCIL - LASER,"2,882.83",MULTI STOREY CAR PARK,ELECTRICITY,5902492990,1000012926
01.11.2021,ENVIRONMENT DIRECTORATE,KENT COUNTY COUNCIL - LASER,"77,818.99",STREET LIGHTING REACTIVE,ELECTRICITY,5902493396,1000012926
01.11.2021,HOUSING HRA,DG SERVICING,822,CAPITAL PS (HRA),UTILITIES INSTALLATION,5902493367,1000063140
01.11.2021,HOUSING HRA,DG SERVICING,"2,072.90",CAPITAL PS (HRA),UTILITIES INSTALLATION,5902493367,1000063140
01.11.2021,LEISURE DIRECTORATE,KENT COUNTY COUNCIL - LASER,"4,362.84",CANADA WATER LIBRARY,ELECTRICITY,5902493235,1000012926
01.11.2021,LEISURE DIRECTORATE,WESTMINSTER WASTE,330.6,CEMETERIES,OTHER CONTRACTORS,5902493330,1000080933
01.11.2021,LEISURE DIRECTORATE,KENT COUNTY COUNCIL - LASER,"1,561.14",CREMATORIUM,ELECTRICITY,5902493418,1000012926
01.11.2021,LEISURE DIRECTORATE,KENT COUNTY COUNCIL - LASER,441.2,JOHN HARVARD LIBRARY,ELECTRICITY,5902493159,1000012926
01.11.2021,LEISURE DIRECTORATE,KENT COUNTY COUNCIL - LASER,"2,544.24",PECKHAM LIBRARY,ELECTRICITY,5902493165,1000012926
01.11.2021,LEISURE DIRECTORATE,KENT COUNTY COUNCIL - LASER,327.6,PECKHAM LIBRARY,GAS,5902493219,1000012926
01.11.2021,LEISURE DIRECTORATE,KENT COUNTY COUNCIL - LASER,"2,754.66",SDM BUDGET,ELECTRICITY,5902493029,1000012926
01.11.2021,LEISURE DIRECTORATE,A B KEY LLP,717.04,SDM BUDGET,EQUIPMENT PURCHASE & REPAIR,5902492881,1000036348
01.11.2021,PLANNING AND TRANSPORT,UNBOXED CONSULTING LTD,"65,250.00",PLANNING POLICY TEAM,CONSULTANTS SERVICES,5902492940,1000082469
01.11.2021,REGENERATION,KENT COUNTY COUNCIL - LASER,"1,048.79",TOWER WORKSHOPS,ELECTRICITY,5902493408,1000012926
01.11.2021,RESIDENT SERVICES,KENT COUNTY COUNCIL - LASER,"1,068.10",TA HOSTELS,ELECTRICITY,5902493386,1000012926
02.11.2021,ADULT SOCIAL CARE,SOUTHSIDE PARTNERSHIP LTD,"6,124.66",DIR OF ASC,EXTERNAL AGENCIES AND BODIES,5902493661,1716624
02.11.2021,ADULT SOCIAL CARE,SOUTHSIDE PARTNERSHIP LTD,"15,000.00",DIR OF ASC,EXTERNAL AGENCIES AND BODIES,5902493710,1716624
02.11.2021,ADULT SOCIAL CARE,THE CAMDEN SOCIETY (SOCIAL CARE),330.24,LD LTS 18-64,DAYCARE,2103340764,1000036369
02.11.2021,ADULT SOCIAL CARE,THE CAMDEN SOCIETY (SOCIAL CARE),336,LD LTS 18-64,DAYCARE,2103340746,1000036369
02.11.2021,ADULT SOCIAL CARE,THE CAMDEN SOCIETY (SOCIAL CARE),384,LD LTS 18-64,DAYCARE,2103340747,1000036369
02.11.2021,ADULT SOCIAL CARE,THE CAMDEN SOCIETY (SOCIAL CARE),384,LD LTS 18-64,DAYCARE,2103340755,1000036369
02.11.2021,ADULT SOCIAL CARE,THE CAMDEN SOCIETY (SOCIAL CARE),384,LD LTS 18-64,DAYCARE,2103340757,1000036369
02.11.2021,ADULT SOCIAL CARE,THE CAMDEN SOCIETY (SOCIAL CARE),541.44,LD LTS 18-64,DAYCARE,2103340751,1000036369
02.11.2021,ADULT SOCIAL CARE,THE CAMDEN SOCIETY (SOCIAL CARE),564.48,LD LTS 18-64,DAYCARE,2103340754,1000036369
02.11.2021,ADULT SOCIAL CARE,THE CAMDEN SOCIETY (SOCIAL CARE),595.12,LD LTS 18-64,DAYCARE,2103340753,1000036369
02.11.2021,ADULT SOCIAL CARE,THE CAMDEN SOCIETY (SOCIAL CARE),608,LD LTS 18-64,DAYCARE,2103340745,1000036369
02.11.2021,ADULT SOCIAL CARE,THE CAMDEN SOCIETY (SOCIAL CARE),722.88,LD LTS 18-64,DAYCARE,2103340761,1000036369
02.11.2021,ADULT SOCIAL CARE,THE CAMDEN SOCIETY (SOCIAL CARE),768,LD LTS 18-64,DAYCARE,2103340749,1000036369
02.11.2021,ADULT SOCIAL CARE,THE CAMDEN SOCIETY (SOCIAL CARE),912,LD LTS 18-64,DAYCARE,2103340756,1000036369
02.11.2021,ADULT SOCIAL CARE,THE CAMDEN SOCIETY (SOCIAL CARE),969.6,LD LTS 18-64,DAYCARE,2103340750,1000036369
02.11.2021,ADULT SOCIAL CARE,THE CAMDEN SOCIETY (SOCIAL CARE),"1,056.00",LD LTS 18-64,DAYCARE,2103340763,1000036369
02.11.2021,ADULT SOCIAL CARE,THE CAMDEN SOCIETY (SOCIAL CARE),"1,161.24",LD LTS 18-64,DAYCARE,2103340748,1000036369
02.11.2021,ADULT SOCIAL CARE,THE CAMDEN SOCIETY (SOCIAL CARE),"1,216.00",LD LTS 18-64,DAYCARE,2103340744,1000036369
02.11.2021,ADULT SOCIAL CARE,THE CAMDEN SOCIETY (SOCIAL CARE),"1,622.40",LD LTS 18-64,DAYCARE,2103340762,1000036369
02.11.2021,ADULT SOCIAL CARE,THE CAMDEN SOCIETY (SOCIAL CARE),"2,048.00",LD LTS 18-64,DAYCARE,2103340742,1000036369
02.11.2021,ADULT SOCIAL CARE,THE CAMDEN SOCIETY (SOCIAL CARE),"2,528.00",LD LTS 18-64,DAYCARE,2103340765,1000036369
02.11.2021,ADULT SOCIAL CARE,THE CAMDEN SOCIETY (SOCIAL CARE),"2,827.20",LD LTS 18-64,DAYCARE,2103340760,1000036369
02.11.2021,ADULT SOCIAL CARE,THE CAMDEN SOCIETY (SOCIAL CARE),"2,887.20",LD LTS 18-64,DAYCARE,2103340758,1000036369
02.11.2021,ADULT SOCIAL CARE,BLISSETT CARE LTD,532.99,LD LTS 18-64,HOMECARE - C&V,2103340804,1000042627
02.11.2021,ADULT SOCIAL CARE,BLISSETT CARE LTD,528.39,MEM LTS 65+,HOMECARE - C&V,2103340811,1000042627
02.11.2021,ADULT SOCIAL CARE,BLISSETT CARE LTD,"2,366.08",MEM LTS 65+,HOMECARE - C&V,2103340805,1000042627
02.11.2021,ADULT SOCIAL CARE,BLISSETT CARE LTD,269.01,MH LTS 65+,HOMECARE - C&V,2103340808,1000042627
02.11.2021,ADULT SOCIAL CARE,BLISSETT CARE LTD,321.61,MH LTS 65+,HOMECARE - C&V,2103340791,1000042627
02.11.2021,ADULT SOCIAL CARE,BLISSETT CARE LTD,505.36,MH LTS 65+,HOMECARE - C&V,2103340780,1000042627
02.11.2021,ADULT SOCIAL CARE,BLISSETT CARE LTD,"3,399.15",MH LTS 65+,HOMECARE - C&V,2103340789,1000042627
02.11.2021,ADULT SOCIAL CARE,BLISSETT CARE LTD,340.02,PHY LTS 18-64,HOMECARE - C&V,2103340781,1000042627
02.11.2021,ADULT SOCIAL CARE,BLISSETT CARE LTD,560.49,PHY LTS 18-64,HOMECARE - C&V,2103340768,1000042627
02.11.2021,ADULT SOCIAL CARE,BLISSETT CARE LTD,636.23,PHY LTS 18-64,HOMECARE - C&V,2103340813,1000042627
02.11.2021,ADULT SOCIAL CARE,BLISSETT CARE LTD,647.74,PHY LTS 18-64,HOMECARE - C&V,2103340775,1000042627
02.11.2021,ADULT SOCIAL CARE,BLISSETT CARE LTD,964.77,PHY LTS 18-64,HOMECARE - C&V,2103340801,1000042627
02.11.2021,ADULT SOCIAL CARE,BLISSETT CARE LTD,"1,116.24",PHY LTS 18-64,HOMECARE - C&V,2103340803,1000042627
02.11.2021,ADULT SOCIAL CARE,INSPIRE SUPPORT WORKERS LTD,"3,315.00",PHY LTS 18-64,HOMECARE - SPOT,2103340766,1000080725
02.11.2021,ADULT SOCIAL CARE,BLISSETT CARE LTD,273.1,PHY LTS 65+,HOMECARE - C&V,2103340783,1000042627
02.11.2021,ADULT SOCIAL CARE,BLISSETT CARE LTD,293.97,PHY LTS 65+,HOMECARE - C&V,2103340797,1000042627
02.11.2021,ADULT SOCIAL CARE,BLISSETT CARE LTD,294.04,PHY LTS 65+,HOMECARE - C&V,2103340772,1000042627
02.11.2021,ADULT SOCIAL CARE,BLISSETT CARE LTD,376.66,PHY LTS 65+,HOMECARE - C&V,2103340800,1000042627
02.11.2021,ADULT SOCIAL CARE,BLISSETT CARE LTD,395.02,PHY LTS 65+,HOMECARE - C&V,2103340794,1000042627
02.11.2021,ADULT SOCIAL CARE,BLISSETT CARE LTD,454.81,PHY LTS 65+,HOMECARE - C&V,2103340784,1000042627
02.11.2021,ADULT SOCIAL CARE,BLISSETT CARE LTD,504.26,PHY LTS 65+,HOMECARE - C&V,2103340774,1000042627
02.11.2021,ADULT SOCIAL CARE,BLISSETT CARE LTD,563.64,PHY LTS 65+,HOMECARE - C&V,2103340799,1000042627
02.11.2021,ADULT SOCIAL CARE,BLISSETT CARE LTD,594.97,PHY LTS 65+,HOMECARE - C&V,2103340798,1000042627
02.11.2021,ADULT SOCIAL CARE,BLISSETT CARE LTD,626.26,PHY LTS 65+,HOMECARE - C&V,2103340793,1000042627
02.11.2021,ADULT SOCIAL CARE,BLISSETT CARE LTD,679.84,PHY LTS 65+,HOMECARE - C&V,2103340795,1000042627
02.11.2021,ADULT SOCIAL CARE,BLISSETT CARE LTD,702.85,PHY LTS 65+,HOMECARE - C&V,2103340776,1000042627
02.11.2021,ADULT SOCIAL CARE,BLISSETT CARE LTD,744.37,PHY LTS 65+,HOMECARE - C&V,2103340782,1000042627
02.11.2021,ADULT SOCIAL CARE,BLISSETT CARE LTD,863.67,PHY LTS 65+,HOMECARE - C&V,2103340770,1000042627
02.11.2021,ADULT SOCIAL CARE,BLISSETT CARE LTD,877.24,PHY LTS 65+,HOMECARE - C&V,2103340788,1000042627
02.11.2021,ADULT SOCIAL CARE,BLISSETT CARE LTD,886.43,PHY LTS 65+,HOMECARE - C&V,2103340771,1000042627
02.11.2021,ADULT SOCIAL CARE,BLISSETT CARE LTD,886.59,PHY LTS 65+,HOMECARE - C&V,2103340802,1000042627
02.11.2021,ADULT SOCIAL CARE,BLISSETT CARE LTD,924.16,PHY LTS 65+,HOMECARE - C&V,2103340777,1000042627
02.11.2021,ADULT SOCIAL CARE,BLISSETT CARE LTD,924.71,PHY LTS 65+,HOMECARE - C&V,2103340796,1000042627
02.11.2021,ADULT SOCIAL CARE,BLISSETT CARE LTD,969.14,PHY LTS 65+,HOMECARE - C&V,2103340807,1000042627
02.11.2021,ADULT SOCIAL CARE,BLISSETT CARE LTD,"1,029.12",PHY LTS 65+,HOMECARE - C&V,2103340810,1000042627
02.11.2021,ADULT SOCIAL CARE,BLISSETT CARE LTD,"1,575.49",PHY LTS 65+,HOMECARE - C&V,2103340787,1000042627
02.11.2021,ADULT SOCIAL CARE,BLISSETT CARE LTD,"1,604.25",PHY LTS 65+,HOMECARE - C&V,2103340792,1000042627
02.11.2021,ADULT SOCIAL CARE,BLISSETT CARE LTD,"1,929.40",PHY LTS 65+,HOMECARE - C&V,2103340806,1000042627
02.11.2021,ADULT SOCIAL CARE,BLISSETT CARE LTD,"2,069.91",PHY LTS 65+,HOMECARE - C&V,2103340773,1000042627
02.11.2021,ADULT SOCIAL CARE,BLISSETT CARE LTD,"2,416.57",PHY LTS 65+,HOMECARE - C&V,2103340812,1000042627
02.11.2021,ADULT SOCIAL CARE,BLISSETT CARE LTD,"2,535.80",PHY LTS 65+,HOMECARE - C&V,2103340778,1000042627
02.11.2021,ADULT SOCIAL CARE,BLISSETT CARE LTD,"2,623.11",PHY LTS 65+,HOMECARE - C&V,2103340809,1000042627
02.11.2021,ADULT SOCIAL CARE,BLISSETT CARE LTD,"2,955.17",PHY LTS 65+,HOMECARE - C&V,2103340779,1000042627
02.11.2021,ADULT SOCIAL CARE,BLISSETT CARE LTD,"3,137.10",PHY LTS 65+,HOMECARE - C&V,2103340785,1000042627
02.11.2021,ASSET MANAGEMENT,ASHFORDS LLP,348.88,DISREPAIR,PAYMENTS FOR LEGAL SERVICES,2103340715,1000055865
02.11.2021,ASSET MANAGEMENT,ASHFORDS LLP,"1,875.00",DISREPAIR,PAYMENTS FOR LEGAL SERVICES,2103340728,1000055865
02.11.2021,ASSET MANAGEMENT,ASHFORDS LLP,"5,000.00",DISREPAIR,PAYMENTS FOR LEGAL SERVICES,2103340726,1000055865
02.11.2021,ASSET MANAGEMENT,ASHFORDS LLP,"5,373.50",DISREPAIR,PAYMENTS FOR LEGAL SERVICES,2103340727,1000055865
02.11.2021,ASSET MANAGEMENT,PROPERTY FACILITIES GROUP LTD,351.75,DISREPAIR,PAYMENTS FOR LEGAL SERVICES,2103340720,1000063713
02.11.2021,ASSET MANAGEMENT,PROPERTY FACILITIES GROUP LTD,540.44,DISREPAIR,PAYMENTS FOR LEGAL SERVICES,2103340714,1000063713
02.11.2021,ASSET MANAGEMENT,PROPERTY FACILITIES GROUP LTD,881.44,DISREPAIR,PAYMENTS FOR LEGAL SERVICES,2103340718,1000063713
02.11.2021,ASSET MANAGEMENT,PROPERTY FACILITIES GROUP LTD,"1,624.25",DISREPAIR,PAYMENTS FOR LEGAL SERVICES,2103340721,1000063713
02.11.2021,ASSET MANAGEMENT,PROPERTY FACILITIES GROUP LTD,"1,678.55",DISREPAIR,PAYMENTS FOR LEGAL SERVICES,2103340719,1000063713
02.11.2021,ASSET MANAGEMENT,PROPERTY FACILITIES GROUP LTD,"2,290.60",DISREPAIR,PAYMENTS FOR LEGAL SERVICES,2103340713,1000063713
02.11.2021,ASSET MANAGEMENT,BRYHILL TECHNICAL SERVICES,335.14,DISREPAIR,PAYMENTS FOR LEGAL SERVICES,2103339791,3000001722
02.11.2021,ASSET MANAGEMENT,BRYHILL TECHNICAL SERVICES,"1,323.32",DISREPAIR,PAYMENTS FOR LEGAL SERVICES,2103340337,3000001722
02.11.2021,ASSET MANAGEMENT,BRYHILL TECHNICAL SERVICES,"2,754.27",DISREPAIR,PAYMENTS FOR LEGAL SERVICES,2103339792,3000001722
02.11.2021,ASSET MANAGEMENT,REDACTED PERSONAL DATA,"2,717.62",DISREPAIR,PAYMENTS FOR LEGAL SERVICES,REDACTED,REDACTED
02.11.2021,ASSET MANAGEMENT,ANTONY HODARI  SOLICITORS,291.67,DISREPAIR,PAYMENTS FOR LEGAL SERVICES,2103340723,1000031040
02.11.2021,ASSET MANAGEMENT,ANTONY HODARI  SOLICITORS,416.67,DISREPAIR,PAYMENTS FOR LEGAL SERVICES,2103340717,1000031040
02.11.2021,ASSET MANAGEMENT,ANTONY HODARI  SOLICITORS,841.67,DISREPAIR,PAYMENTS FOR LEGAL SERVICES,2103340706,1000031040
02.11.2021,ASSET MANAGEMENT,ANTONY HODARI  SOLICITORS,"1,000.00",DISREPAIR,PAYMENTS FOR LEGAL SERVICES,2103340724,1000031040
02.11.2021,ASSET MANAGEMENT,BARNES SOLICITORS LLP,"2,812.50",DISREPAIR,PAYMENTS FOR LEGAL SERVICES,2103340709,1000083820
02.11.2021,ASSET MANAGEMENT,BARNES SOLICITORS LLP,"3,666.67",DISREPAIR,PAYMENTS FOR LEGAL SERVICES,2103340731,1000083820
02.11.2021,ASSET MANAGEMENT,BARNES SOLICITORS LLP,"5,208.33",DISREPAIR,PAYMENTS FOR LEGAL SERVICES,2103340729,1000083820
02.11.2021,ASSET MANAGEMENT,SBW  LAW,"1,666.67",DISREPAIR,PAYMENTS FOR LEGAL SERVICES,2103340730,1000085191
02.11.2021,ASSET MANAGEMENT,BOND TURNER  SOLICITORS,"1,250.00",DISREPAIR,PAYMENTS FOR LEGAL SERVICES,2103340716,1000085362
02.11.2021,ASSET MANAGEMENT,BOND TURNER  SOLICITORS,"8,330.90",DISREPAIR,PAYMENTS FOR LEGAL SERVICES,2103340722,1000085362
02.11.2021,ASSET MANAGEMENT,ENVISION  SOLICITORS LIMITED,"1,250.00",DISREPAIR,PAYMENTS FOR LEGAL SERVICES,2103340707,1000086191
02.11.2021,ASSET MANAGEMENT,ENVISION  SOLICITORS LIMITED,"2,500.00",DISREPAIR,PAYMENTS FOR LEGAL SERVICES,2103340708,1000086191
02.11.2021,ASSET MANAGEMENT HGF,KEE SYSTEMS LTD,258.84,HANDY PERSONS,MATERIALS,5902493771,1007491
02.11.2021,ASSET MANAGEMENT HGF,KEE SYSTEMS LTD,292.68,HANDY PERSONS,MATERIALS,5902493771,1007491
02.11.2021,ASSET MANAGEMENT HGF,KEE SYSTEMS LTD,365.66,HANDY PERSONS,MATERIALS,5902493771,1007491
02.11.2021,ASSET MANAGEMENT HGF,KEE SYSTEMS LTD,519.67,HANDY PERSONS,MATERIALS,5902493771,1007491
02.11.2021,CHILDREN AND ADULT,GOODY DEMOLITION LIMITED,"78,224.05",CAPITAL PS (EDUCATION),CONSTRUCTION SITE COSTS,2103340699,3000002190
02.11.2021,CHILDREN AND ADULT,MITIE FM LTD,720.8,CAPITAL PS (SOC SERV),CONSTRUCTION MAIN CONTRACT,2103340701,3000000166
02.11.2021,CHILDREN AND ADULT,MITIE FM LTD,"1,749.00",CAPITAL PS (SOC SERV),CONSTRUCTION MAIN CONTRACT,2103340701,3000000166
02.11.2021,CHILDREN AND FAMILIES,PARENTS AND CHILDREN TOGETHER,450,ADOPTION SUPP FUND,PROFESSIONAL FEES,5902493922,1000068128
02.11.2021,CHILDREN AND FAMILIES,PARENTS AND CHILDREN TOGETHER,675,ADOPTION SUPP FUND,PROFESSIONAL FEES,5902493923,1000068128
02.11.2021,CHILDREN AND FAMILIES,REDACTED PERSONAL DATA,"2,645.50",ADOPTION SUPP FUND,PROFESSIONAL FEES,REDACTED,REDACTED
02.11.2021,CHILDREN AND FAMILIES,REDACTED PERSONAL DATA,"3,355.00",ADOPTION SUPP FUND,PROFESSIONAL FEES,REDACTED,REDACTED
02.11.2021,CHILDREN AND FAMILIES,REDACTED PERSONAL DATA,"4,000.00",ADOPTION SUPP FUND,PROFESSIONAL FEES,REDACTED,REDACTED
02.11.2021,CHILDREN AND FAMILIES,REDACTED PERSONAL DATA,360,ADOPTION SUPP FUND,PROFESSIONAL FEES,REDACTED,REDACTED
02.11.2021,CHILDREN AND FAMILIES,REDACTED PERSONAL DATA,360,ADOPTION SUPP FUND,PROFESSIONAL FEES,REDACTED,REDACTED
02.11.2021,CHILDREN AND FAMILIES,REDACTED PERSONAL DATA,480,ADOPTION SUPP FUND,PROFESSIONAL FEES,REDACTED,REDACTED
02.11.2021,CHILDREN AND FAMILIES,REDACTED PERSONAL DATA,480,ADOPTION SUPP FUND,PROFESSIONAL FEES,REDACTED,REDACTED
02.11.2021,CHILDREN AND FAMILIES,REDACTED PERSONAL DATA,480,ADOPTION SUPP FUND,PROFESSIONAL FEES,REDACTED,REDACTED
02.11.2021,CHILDREN AND FAMILIES,REDACTED PERSONAL DATA,480,ADOPTION SUPP FUND,PROFESSIONAL FEES,REDACTED,REDACTED
02.11.2021,CHILDREN AND FAMILIES,REDACTED PERSONAL DATA,480,ADOPTION SUPP FUND,PROFESSIONAL FEES,REDACTED,REDACTED
02.11.2021,CHILDREN AND FAMILIES,REDACTED PERSONAL DATA,480,ADOPTION SUPP FUND,PROFESSIONAL FEES,REDACTED,REDACTED
02.11.2021,CHILDREN AND FAMILIES,REDACTED PERSONAL DATA,400,ADOPTION SUPP FUND,PROFESSIONAL FEES,REDACTED,REDACTED
02.11.2021,CHILDREN AND FAMILIES,REDACTED PERSONAL DATA,520,ADOPTION SUPP FUND,PROFESSIONAL FEES,REDACTED,REDACTED
02.11.2021,CHILDREN AND FAMILIES,REDACTED PERSONAL DATA,375,ADOPTION SUPP FUND,PROFESSIONAL FEES,REDACTED,REDACTED
02.11.2021,CHILDREN AND FAMILIES,REDACTED PERSONAL DATA,400,FOSTERING ALLOWANCES,ADDITIONAL PAYMENTS TO AGENCIES/CARERS,REDACTED,REDACTED
02.11.2021,CHILDREN AND FAMILIES,REDACTED PERSONAL DATA,300,FOSTERING ALLOWANCES,OTHER PAYMENTS FOR CLIENTS,REDACTED,REDACTED
02.11.2021,CHILDREN AND FAMILIES,REDACTED PERSONAL DATA,369.43,FOSTERING ALLOWANCES,PAYMENTS TO CARERS,REDACTED,REDACTED
02.11.2021,CHILDREN AND FAMILIES,REDACTED PERSONAL DATA,302.57,FOSTERING ALLOWANCES,PAYMENTS TO CARERS,REDACTED,REDACTED
02.11.2021,CHILDREN AND FAMILIES,REDACTED PERSONAL DATA,750,FOSTERING ALLOWANCES,PAYMENTS TO CARERS,REDACTED,REDACTED
02.11.2021,CHILDREN AND FAMILIES,REDACTED PERSONAL DATA,412.97,FRIENDS &FAMILY FOST,COMPUTER CONSUMABLES,REDACTED,REDACTED
02.11.2021,COMMUNITIES,ALLPAY LTD,401.24,NO RECOURSE TO PUBLIC FUNDS,ACCOMMODATION CHARGES,5902493716,1000043001
02.11.2021,COMMUNITIES,VENTURE HOUSING (LONDON) LTD,"1,605.00",NO RECOURSE TO PUBLIC FUNDS,ACCOMMODATION CHARGES,5902493713,1000056686
02.11.2021,COMMUNITIES,TAAKSVALE HOUSING LTD,"36,073.00",NO RECOURSE TO PUBLIC FUNDS,ACCOMMODATION CHARGES,5902493703,1000073665
02.11.2021,COMMUNITIES,FRIERN RD STREET PARTY ASSOCIATION,399,SOUTH,GRANTS,5902493943,1000087483
02.11.2021,CUSTOMER EXPERIENCE HGF,BRAMBLE BADENACH-NICOLSON,800,CORONER'S,PROFESSIONAL FEES,5902493678,1000087515
02.11.2021,DSG,RED R DESIGN,"2,850.00",ADMISSIONS,MARKETING & PUBLICITY SERVICES,5902493788,1000035984
02.11.2021,EDUCATION,LONDON TOOLS LIMITED,557,ALC  DIRECT DELIVERY,MATERIALS,5902493754,1000003017
02.11.2021,ENVIRONMENT AND LEISURE,WSP UK LTD,"10,370.00",CAPITAL PS (LEISURE),"PLANT, MACHINERY & EQUIPMENT ACQUISITION",5902493810,1000054214
02.11.2021,F & C S EXCLUDING CORPORATE BUDGETS,CAPITA BUSINESS SERVICES LTD,"7,001.50",ADMINISTRATIVE SUPPORT,SOFTWARE,5902493803,1000006291
02.11.2021,F & C S EXCLUDING CORPORATE BUDGETS,REDACTED PERSONAL DATA,500,SESS,OTHER PAYMENTS FOR CLIENTS,REDACTED,REDACTED
02.11.2021,F & C S EXCLUDING CORPORATE BUDGETS,REDACTED PERSONAL DATA,500,SESS,OTHER PAYMENTS FOR CLIENTS,REDACTED,REDACTED
02.11.2021,F & C S EXCLUDING CORPORATE BUDGETS,REDACTED PERSONAL DATA,500,SESS,OTHER PAYMENTS FOR CLIENTS,REDACTED,REDACTED
02.11.2021,F & C S EXCLUDING CORPORATE BUDGETS,REDACTED PERSONAL DATA,500,SESS,OTHER PAYMENTS FOR CLIENTS,REDACTED,REDACTED
02.11.2021,F & C S EXCLUDING CORPORATE BUDGETS,REDACTED PERSONAL DATA,500,SESS,OTHER PAYMENTS FOR CLIENTS,REDACTED,REDACTED
02.11.2021,F & C S EXCLUDING CORPORATE BUDGETS,REDACTED PERSONAL DATA,500,SESS,OTHER PAYMENTS FOR CLIENTS,REDACTED,REDACTED
02.11.2021,F & C S EXCLUDING CORPORATE BUDGETS,REDACTED PERSONAL DATA,500,SESS,OTHER PAYMENTS FOR CLIENTS,REDACTED,REDACTED
02.11.2021,HOUSING,OCO LIMITED,"138,474.17",PAYMENTS CONTROL ACCOUNT - OCO,I-WORLD CONTRACTORS HOLDING ACCOUNT,5902493724,1006066
02.11.2021,HOUSING,SMITH & BYFORD LTD,"113,765.58",SMITH AND BYFORD,I-WORLD CONTRACTORS HOLDING ACCOUNT,5902493725,11212119
02.11.2021,HOUSING GENERAL FUND,MITIE FM LTD,865.23,CAPITAL PS (REGEN),CONSTRUCTION MAIN CONTRACT,2103340701,3000000166
02.11.2021,HOUSING GENERAL FUND,MITIE FM LTD,"1,717.20",CAPITAL PS (REGEN),CONSTRUCTION MAIN CONTRACT,2103340701,3000000166
02.11.2021,HOUSING GENERAL FUND,MITIE FM LTD,"2,212.68",CAPITAL PS (REGEN),CONSTRUCTION MAIN CONTRACT,2103340701,3000000166
02.11.2021,HOUSING GENERAL FUND,MITIE FM LTD,"3,793.01",CAPITAL PS (REGEN),CONSTRUCTION MAIN CONTRACT,2103340701,3000000166
02.11.2021,HOUSING GENERAL FUND,MITIE FM LTD,"6,701.57",CAPITAL PS (REGEN),CONSTRUCTION MAIN CONTRACT,2103340701,3000000166
02.11.2021,HOUSING GENERAL FUND,MITIE FM LTD,"7,311.45",CAPITAL PS (REGEN),CONSTRUCTION MAIN CONTRACT,2103340701,3000000166
02.11.2021,HOUSING GENERAL FUND,WHITELEYS OFFICE SUPPLIES LTD,"98,040.00",CAPITAL PS (REGEN),FURNITURE & FITTINGS ACQUISITION,5902493819,1000083121
02.11.2021,HOUSING HRA,CALFORD SEADEN LLP,"3,333.33",CAPITAL PS (HRA),CONSTRUCTION FEES,5902493621,1061592
02.11.2021,HOUSING HRA,LASER SURVEYS LIMITED,650,CAPITAL PS (HRA),CONSTRUCTION FEES  - EXTERNAL,5902493641,1000051587
02.11.2021,HOUSING HRA,LASER SURVEYS LIMITED,675,CAPITAL PS (HRA),CONSTRUCTION FEES  - EXTERNAL,5902493645,1000051587
02.11.2021,HOUSING HRA,LASER SURVEYS LIMITED,"1,000.00",CAPITAL PS (HRA),CONSTRUCTION FEES  - EXTERNAL,5902493655,1000051587
02.11.2021,HOUSING HRA,LASER SURVEYS LIMITED,"1,400.00",CAPITAL PS (HRA),CONSTRUCTION FEES  - EXTERNAL,5902493641,1000051587
02.11.2021,HOUSING HRA,LASER SURVEYS LIMITED,"3,625.00",CAPITAL PS (HRA),CONSTRUCTION FEES  - EXTERNAL,5902493645,1000051587
02.11.2021,HOUSING HRA,LASER SURVEYS LIMITED,"4,300.00",CAPITAL PS (HRA),CONSTRUCTION FEES  - EXTERNAL,5902493641,1000051587
02.11.2021,HOUSING HRA,LASER SURVEYS LIMITED,"4,695.00",CAPITAL PS (HRA),CONSTRUCTION FEES  - EXTERNAL,5902493655,1000051587
02.11.2021,HOUSING HRA,NEW MILL CONSULTANTS (POPLAR) LIMITED,480,CAPITAL PS (HRA),CONSTRUCTION FEES  - EXTERNAL,5902493691,1000085810
02.11.2021,HOUSING HRA,NEW MILL CONSULTANTS (POPLAR) LIMITED,720,CAPITAL PS (HRA),CONSTRUCTION FEES  - EXTERNAL,5902493695,1000085810
02.11.2021,HOUSING HRA,ENGIE REGENERATION (APOLLO) LTD,"30,540.94",CAPITAL PS (HRA),CONSTRUCTION MAIN CONTRACT -CERTIFICATED,2103340702,4000449
02.11.2021,HOUSING HRA,A & E ELKINS LTD,"55,374.47",CAPITAL PS (HRA),CONSTRUCTION MAIN CONTRACT -CERTIFICATED,2103339790,4012501
02.11.2021,HOUSING HRA,A & E ELKINS LTD,"122,079.95",CAPITAL PS (HRA),CONSTRUCTION MAIN CONTRACT -CERTIFICATED,2103340700,4012501
02.11.2021,HOUSING HRA,NIBLOCK (BUILDERS) LTD,"28,845.47",CAPITAL PS (HRA),CONSTRUCTION MAIN CONTRACT -CERTIFICATED,2103340333,3000000235
02.11.2021,HOUSING HRA,NIBLOCK (BUILDERS) LTD,"28,868.66",CAPITAL PS (HRA),CONSTRUCTION MAIN CONTRACT -CERTIFICATED,2103340334,3000000235
02.11.2021,HOUSING HRA,NIBLOCK (BUILDERS) LTD,"28,947.04",CAPITAL PS (HRA),CONSTRUCTION MAIN CONTRACT -CERTIFICATED,2103340335,3000000235
02.11.2021,HOUSING HRA,GEOFFREY OSBORNE LIMITED,"70,366.06",CAPITAL PS (HRA),CONSTRUCTION MAIN CONTRACT -CERTIFICATED,2103340704,3000000753
02.11.2021,HOUSING HRA,DG SERVICING,"1,711.10",CAPITAL PS (HRA),UTILITIES INSTALLATION,5902493711,1000063140
02.11.2021,LEISURE DIRECTORATE,WF EDUCATION GROUP LIMITED,"6,957.14",JOHN HARVARD LIBRARY,EQUIPMENT PURCHASE & REPAIR,5902493799,1000086286
02.11.2021,LEISURE DIRECTORATE,CASTLE WATER LTD,"1,501.73",SDM BUDGET,WATER,5902493938,1000078867
02.11.2021,PUBLIC HEALTH,REDACTED PERSONAL DATA,500,COVID-19 CONTROL OUTBREAK MGMNT.FUND,OTHER PAYMENTS FOR CLIENTS,REDACTED,REDACTED
02.11.2021,PUBLIC HEALTH,REDACTED PERSONAL DATA,500,COVID-19 CONTROL OUTBREAK MGMNT.FUND,OTHER PAYMENTS FOR CLIENTS,REDACTED,REDACTED
02.11.2021,RESIDENT SERVICES,KENT COUNTY COUNCIL - LASER,"1,273.72",TA HOSTELS,ELECTRICITY,5902493942,1000012926
02.11.2021,RESIDENT SERVICES,ZFA ACCOMMODATION LTD,"1,350.00",TA PLACEMENTS,EXTERNAL AGENCIES AND BODIES,5902493920,1000082620
02.11.2021,RESIDENT SERVICES,ZFA ACCOMMODATION LTD,"1,395.00",TA PLACEMENTS,EXTERNAL AGENCIES AND BODIES,5902493905,1000082620
02.11.2021,RESIDENT SERVICES,ZFA ACCOMMODATION LTD,"1,395.00",TA PLACEMENTS,EXTERNAL AGENCIES AND BODIES,5902493925,1000082620
02.11.2021,RESIDENT SERVICES,ZFA ACCOMMODATION LTD,"2,294.00",TA PLACEMENTS,EXTERNAL AGENCIES AND BODIES,5902493929,1000082620
02.11.2021,RESIDENT SERVICES HGF,OSBORNES SOLICITORS,"3,750.00",HOMELESS PROJECTS,LEGAL FEES & COURT COSTS,5902493932,1000052598
02.11.2021,RESIDENT SERVICES HGF,REDACTED PERSONAL DATA,"6,437.00",NIGHTLY TA (NSC),EXTERNAL AGENCIES AND BODIES,REDACTED,REDACTED
02.11.2021,RESIDENT SERVICES HGF,QUINARY LTD,"7,079.00",NIGHTLY TA (NSC),EXTERNAL AGENCIES AND BODIES,5902493671,1000029106
02.11.2021,RESIDENT SERVICES HGF,TAAKSVALE HOUSING LTD,"52,527.00",NIGHTLY TA (NSC),EXTERNAL AGENCIES AND BODIES,5902493665,1000073665
02.11.2021,RESIDENT SERVICES HGF,STENFORD PROPERTY LTD,"41,748.00",NIGHTLY TA (NSC),EXTERNAL AGENCIES AND BODIES,5902493700,1000074759
02.11.2021,RESIDENT SERVICES HGF,RENT CONNECT HOUSING LTD,"14,698.50",NIGHTLY TA (NSC),EXTERNAL AGENCIES AND BODIES,5902493876,1000074815
02.11.2021,SBS OPERATIONS,HOWDENS JOINERY CO,253.76,BOROUGH & BANKSIDE DD,MATERIALS,5902493643,1000027491
02.11.2021,SBS OPERATIONS,HOWDENS JOINERY CO,361.28,BOROUGH & BANKSIDE VOIDS,MATERIALS,5902493702,1000027491
02.11.2021,SBS OPERATIONS,HOWDENS JOINERY CO,361.28,CAMBERWELL DD,MATERIALS,5902493789,1000027491
02.11.2021,SBS OPERATIONS,TRAVIS PERKINS TRADING COMPANY LTD,"1,331.96",PECKHAM VOIDS,MATERIALS,5902493957,1514319
02.11.2021,SBS OPERATIONS,TRAVIS PERKINS TRADING COMPANY LTD,"1,865.76",SBS AIDS AND ADAPTATIONS,MATERIALS,5902493800,1514319
02.11.2021,SBS OPERATIONS,AKW MEDI-CARE LTD,285.16,SBS AIDS AND ADAPTATIONS,MATERIALS,5902493626,1000047103
02.11.2021,SBS OPERATIONS,AKW MEDI-CARE LTD,285.16,SBS AIDS AND ADAPTATIONS,MATERIALS,5902493634,1000047103
02.11.2021,SBS OPERATIONS,AKW MEDI-CARE LTD,285.16,SBS AIDS AND ADAPTATIONS,MATERIALS,5902493637,1000047103
02.11.2021,SBS OPERATIONS,AKW MEDI-CARE LTD,285.16,SBS AIDS AND ADAPTATIONS,MATERIALS,5902493720,1000047103
02.11.2021,SBS OPERATIONS,AKW MEDI-CARE LTD,285.16,SBS AIDS AND ADAPTATIONS,MATERIALS,5902493721,1000047103
02.11.2021,SOUTHWARK BUILDING SERVICES,"BROWNING, JONES & MORRIS LTD",399,STORES/LOGISTICS,CREDITORS -GR/IR CLEARING ACCOUNT,5902493722,1027429
02.11.2021,SOUTHWARK BUILDING SERVICES,"BROWNING, JONES & MORRIS LTD",478,STORES/LOGISTICS,CREDITORS -GR/IR CLEARING ACCOUNT,5902493722,1027429
02.11.2021,SOUTHWARK BUILDING SERVICES,"BROWNING, JONES & MORRIS LTD",498,STORES/LOGISTICS,CREDITORS -GR/IR CLEARING ACCOUNT,5902493723,1027429
02.11.2021,SOUTHWARK BUILDING SERVICES,"BROWNING, JONES & MORRIS LTD",779.4,STORES/LOGISTICS,CREDITORS -GR/IR CLEARING ACCOUNT,5902493722,1027429
02.11.2021,SOUTHWARK BUILDING SERVICES,PPG ARCHITECTURAL COATINGS,463.6,STORES/LOGISTICS,CREDITORS -GR/IR CLEARING ACCOUNT,5902493714,11063178
02.11.2021,SOUTHWARK BUILDING SERVICES,PPG ARCHITECTURAL COATINGS,463.6,STORES/LOGISTICS,CREDITORS -GR/IR CLEARING ACCOUNT,5902493715,11063178
02.11.2021,SOUTHWARK BUILDING SERVICES,LONDON TOOLS LIMITED,260,STORES/LOGISTICS,CREDITORS -GR/IR CLEARING ACCOUNT,5902493743,1000003017
02.11.2021,SOUTHWARK BUILDING SERVICES,LONDON TOOLS LIMITED,315,STORES/LOGISTICS,CREDITORS -GR/IR CLEARING ACCOUNT,5902493747,1000003017
02.11.2021,SOUTHWARK BUILDING SERVICES,LONDON TOOLS LIMITED,416.1,STORES/LOGISTICS,CREDITORS -GR/IR CLEARING ACCOUNT,5902493747,1000003017
02.11.2021,SOUTHWARK BUILDING SERVICES,KEMICO LIMITED,"2,167.20",STORES/LOGISTICS,CREDITORS -GR/IR CLEARING ACCOUNT,5902493683,1000030226
02.11.2021,SOUTHWARK BUILDING SERVICES,KEMICO LIMITED,"3,909.00",STORES/LOGISTICS,CREDITORS -GR/IR CLEARING ACCOUNT,5902493683,1000030226
02.11.2021,SOUTHWARK BUILDING SERVICES,AKW MEDI-CARE LTD,288.4,STORES/LOGISTICS,CREDITORS -GR/IR CLEARING ACCOUNT,5902493628,1000047103
02.11.2021,SOUTHWARK BUILDING SERVICES,AKW MEDI-CARE LTD,345,STORES/LOGISTICS,CREDITORS -GR/IR CLEARING ACCOUNT,5902493628,1000047103
02.11.2021,SOUTHWARK BUILDING SERVICES,CORBYS & CO,684,STORES/LOGISTICS,CREDITORS -GR/IR CLEARING ACCOUNT,5902493682,1000055320
02.11.2021,SOUTHWARK BUILDING SERVICES,CORBYS & CO,"1,490.00",STORES/LOGISTICS,CREDITORS -GR/IR CLEARING ACCOUNT,5902493682,1000055320
03.11.2021,ADULT SOCIAL CARE,BEVAN BRITTAN LLP,"5,619.90", LD MGMT & SUPPORT,LEGAL FEES & COURT COSTS,5902494105,1000047779
03.11.2021,ADULT SOCIAL CARE,REDACTED PERSONAL DATA,"1,094.60",DISABILITIES LAC,PAYMENTS TO CARERS,REDACTED,REDACTED
03.11.2021,ADULT SOCIAL CARE,REDACTED PERSONAL DATA,"1,632.00",DISABILITIES LAC,PAYMENTS TO CARERS,REDACTED,REDACTED
03.11.2021,ADULT SOCIAL CARE,REDACTED PERSONAL DATA,756,DISABILITIES LAC,PAYMENTS TO CARERS,REDACTED,REDACTED
03.11.2021,ADULT SOCIAL CARE,REDACTED PERSONAL DATA,862,DISABILITIES LAC,PAYMENTS TO CARERS,REDACTED,REDACTED
03.11.2021,ADULT SOCIAL CARE,PROFAD CARE AGENCY,544.32,DISCHARGE TO ACCESS,HOMECARE - SPOT,2103341640,1000079032
03.11.2021,ADULT SOCIAL CARE,THE CAMDEN SOCIETY (SOCIAL CARE),330.24,LD LTS 18-64,DAYCARE,2103341625,1000036369
03.11.2021,ADULT SOCIAL CARE,THE CAMDEN SOCIETY (SOCIAL CARE),336,LD LTS 18-64,DAYCARE,2103341627,1000036369
03.11.2021,ADULT SOCIAL CARE,THE CAMDEN SOCIETY (SOCIAL CARE),384,LD LTS 18-64,DAYCARE,2103341608,1000036369
03.11.2021,ADULT SOCIAL CARE,THE CAMDEN SOCIETY (SOCIAL CARE),384,LD LTS 18-64,DAYCARE,2103341621,1000036369
03.11.2021,ADULT SOCIAL CARE,THE CAMDEN SOCIETY (SOCIAL CARE),384,LD LTS 18-64,DAYCARE,2103341623,1000036369
03.11.2021,ADULT SOCIAL CARE,THE CAMDEN SOCIETY (SOCIAL CARE),541.44,LD LTS 18-64,DAYCARE,2103341610,1000036369
03.11.2021,ADULT SOCIAL CARE,THE CAMDEN SOCIETY (SOCIAL CARE),564.48,LD LTS 18-64,DAYCARE,2103341617,1000036369
03.11.2021,ADULT SOCIAL CARE,THE CAMDEN SOCIETY (SOCIAL CARE),595.12,LD LTS 18-64,DAYCARE,2103341622,1000036369
03.11.2021,ADULT SOCIAL CARE,THE CAMDEN SOCIETY (SOCIAL CARE),608,LD LTS 18-64,DAYCARE,2103341616,1000036369
03.11.2021,ADULT SOCIAL CARE,THE CAMDEN SOCIETY (SOCIAL CARE),722.88,LD LTS 18-64,DAYCARE,2103341611,1000036369
03.11.2021,ADULT SOCIAL CARE,THE CAMDEN SOCIETY (SOCIAL CARE),768,LD LTS 18-64,DAYCARE,2103341606,1000036369
03.11.2021,ADULT SOCIAL CARE,THE CAMDEN SOCIETY (SOCIAL CARE),912,LD LTS 18-64,DAYCARE,2103341618,1000036369
03.11.2021,ADULT SOCIAL CARE,THE CAMDEN SOCIETY (SOCIAL CARE),969.6,LD LTS 18-64,DAYCARE,2103341609,1000036369
03.11.2021,ADULT SOCIAL CARE,THE CAMDEN SOCIETY (SOCIAL CARE),"1,056.00",LD LTS 18-64,DAYCARE,2103341612,1000036369
03.11.2021,ADULT SOCIAL CARE,THE CAMDEN SOCIETY (SOCIAL CARE),"1,056.00",LD LTS 18-64,DAYCARE,2103341614,1000036369
03.11.2021,ADULT SOCIAL CARE,THE CAMDEN SOCIETY (SOCIAL CARE),"1,216.00",LD LTS 18-64,DAYCARE,2103341626,1000036369
03.11.2021,ADULT SOCIAL CARE,THE CAMDEN SOCIETY (SOCIAL CARE),"1,622.40",LD LTS 18-64,DAYCARE,2103341615,1000036369
03.11.2021,ADULT SOCIAL CARE,THE CAMDEN SOCIETY (SOCIAL CARE),"2,048.00",LD LTS 18-64,DAYCARE,2103341607,1000036369
03.11.2021,ADULT SOCIAL CARE,THE CAMDEN SOCIETY (SOCIAL CARE),"2,528.00",LD LTS 18-64,DAYCARE,2103341628,1000036369
03.11.2021,ADULT SOCIAL CARE,THE CAMDEN SOCIETY (SOCIAL CARE),"2,827.20",LD LTS 18-64,DAYCARE,2103341619,1000036369
03.11.2021,ADULT SOCIAL CARE,THE CAMDEN SOCIETY (SOCIAL CARE),"2,887.20",LD LTS 18-64,DAYCARE,2103341613,1000036369
03.11.2021,ADULT SOCIAL CARE,CARE DIRECT UK LTD,486,LD LTS 18-64,SUPPORTED LIVING,2103341632,1000066322
03.11.2021,ADULT SOCIAL CARE,CARE DIRECT UK LTD,486,LD LTS 18-64,SUPPORTED LIVING,2103341633,1000066322
03.11.2021,ADULT SOCIAL CARE,LONDON CARE LTD,645.4,PHY LTS 18-64,HOMECARE - C&V,2103341651,1000003398
03.11.2021,ADULT SOCIAL CARE,LONDON CARE LTD,722.5,PHY LTS 18-64,HOMECARE - C&V,2103341654,1000003398
03.11.2021,ADULT SOCIAL CARE,LONDON CARE LTD,760.09,PHY LTS 18-64,HOMECARE - C&V,2103341653,1000003398
03.11.2021,ADULT SOCIAL CARE,LONDON CARE LTD,792.92,PHY LTS 18-64,HOMECARE - C&V,2103341652,1000003398
03.11.2021,ADULT SOCIAL CARE,LONDON CARE LTD,792.92,PHY LTS 18-64,HOMECARE - C&V,2103341655,1000003398
03.11.2021,ADULT SOCIAL CARE,LONDON CARE LTD,875.9,PHY LTS 18-64,HOMECARE - C&V,2103341647,1000003398
03.11.2021,ADULT SOCIAL CARE,LONDON CARE LTD,477.46,PHY LTS 65+,HOMECARE - C&V,2103341646,1000003398
03.11.2021,ADULT SOCIAL CARE,LONDON CARE LTD,590.08,PHY LTS 65+,HOMECARE - C&V,2103341649,1000003398
03.11.2021,ADULT SOCIAL CARE,LONDON CARE LTD,746.82,PHY LTS 65+,HOMECARE - C&V,2103341643,1000003398
03.11.2021,ADULT SOCIAL CARE,CARE DIRECT UK LTD,559.13,PHY LTS 65+,HOMECARE - SPOT,2103341634,1000066322
03.11.2021,ADULT SOCIAL CARE,CARE DIRECT UK LTD,559.13,PHY LTS 65+,HOMECARE - SPOT,2103341636,1000066322
03.11.2021,ADULT SOCIAL CARE,CARE DIRECT UK LTD,621.25,PHY LTS 65+,HOMECARE - SPOT,2103341630,1000066322
03.11.2021,ADULT SOCIAL CARE,CARE DIRECT UK LTD,621.25,PHY LTS 65+,HOMECARE - SPOT,2103341637,1000066322
03.11.2021,ADULT SOCIAL CARE,PROFAD CARE AGENCY,699.84,PHY LTS 65+,HOMECARE - SPOT,2103341641,1000079032
03.11.2021,ADULT SOCIAL CARE,PROFAD CARE AGENCY,"1,116.41",PHY LTS 65+,HOMECARE - SPOT,2103341639,1000079032
03.11.2021,ADULT SOCIAL CARE,PROFAD CARE AGENCY,"1,749.60",PHY STS 18-64,HOMECARE - IC,2103341642,1000079032
03.11.2021,ADULT SOCIAL CARE,THAMES HOMECARE SERVICE LTD,"26,600.00",REABLEMENT CONTRACT,HOMECARE - C&V,5902494022,1000079295
03.11.2021,ADULT SOCIAL CARE,LONDON CARE LTD,"1,364.56",SOCIAL ISOLATION,HOMECARE - C&V,2103341648,1000003398
03.11.2021,ADULT SOCIAL CARE,M & K SPARROW,283.19,SOUTHWARK RESOURCE CENTRE,EQUIPMENT PURCHASE & REPAIR,5902493981,11259323
03.11.2021,ASSET MANAGEMENT,SIMON L TAYLOR LTD,700,DISREPAIR,PAYMENTS FOR LEGAL SERVICES,5902494192,1000056151
03.11.2021,ASSET MANAGEMENT HGF,KENT COUNTY COUNCIL - LASER,"1,361.72",160 TOOLEY ST.,GAS,5902494034,1000012926
03.11.2021,ASSET MANAGEMENT HGF,KENT COUNTY COUNCIL - LASER,507.25,7 TALFOURD ROAD,ELECTRICITY,5902494120,1000012926
03.11.2021,ASSET MANAGEMENT HGF,KENT COUNTY COUNCIL - LASER,-635.34,BOURNEMOUTH GROVE,ELECTRICITY,5902494493,1000012926
03.11.2021,ASSET MANAGEMENT HGF,KENT COUNTY COUNCIL - LASER,635.34,BOURNEMOUTH GROVE,ELECTRICITY,5902494491,1000012926
03.11.2021,ASSET MANAGEMENT HGF,MITIE FM LIMITED,"5,746.33",PLANNED FM SERVICES BY KIER,INTEGRATED FACILITIES MANAGEMENT CONTRACT,5902494460,1000070792
03.11.2021,ASSET MANAGEMENT HGF,MITIE FM LIMITED,"-5,746.33",TSFM CONTINGENCY,INTEGRATED FACILITIES MANAGEMENT CONTRACT,5902494450,1000070792
03.11.2021,CENTRAL FUNCTIONS,CURRIE & BROWN UK LTD,500,COMMERCIAL PROPERTIES,PROFESSIONAL FEES,5902494077,1000033455
03.11.2021,CENTRAL FUNCTIONS,ALLPAY LTD,854.93,SERVICE LEVEL AGREEMENTS,BANK CHARGES,5902494170,1000043001
03.11.2021,CENTRAL FUNCTIONS,ALLPAY LTD,"7,033.00",SERVICE LEVEL AGREEMENTS,BANK CHARGES,5902494180,1000043001
03.11.2021,CENTRAL FUNCTIONS,LAMBERT SMITH HAMPTON GROUP LTD,"7,310.00",TECHNICAL SUPPORT,PROFESSIONAL FEES,5902493968,1000060045
03.11.2021,CENTRAL FUNCTIONS,LAMBERT SMITH HAMPTON GROUP LTD,"8,660.00",TECHNICAL SUPPORT,PROFESSIONAL FEES,5902493964,1000060045
03.11.2021,CENTRAL FUNCTIONS,LAMBERT SMITH HAMPTON GROUP LTD,"9,335.00",TECHNICAL SUPPORT,PROFESSIONAL FEES,5902493969,1000060045
03.11.2021,CHIEF EXECUTIVE'S OFFICE,RENAISI LTD,"37,962.05",CHIEF EXECUTIVE'S OFFICE,EXTERNAL AGENCIES AND BODIES,5902494106,1000022051
03.11.2021,CHILDREN AND ADULT,FARRANS CONSTRUCTION,"979,026.13",CAPITAL PS (EDUCATION),CONSTRUCTION MAIN CONTRACT -CERTIFICATED,2103340848,3000002159
03.11.2021,CHILDREN AND FAMILIES,REDACTED PERSONAL DATA,695.04,ADOPTION ALLOWANCES,PAYMENTS TO CARERS,REDACTED,REDACTED
03.11.2021,CHILDREN AND FAMILIES,REDACTED PERSONAL DATA,375.54,ADOPTION ALLOWANCES,PAYMENTS TO CARERS,REDACTED,REDACTED
03.11.2021,CHILDREN AND FAMILIES,REDACTED PERSONAL DATA,375.54,ADOPTION ALLOWANCES,PAYMENTS TO CARERS,REDACTED,REDACTED
03.11.2021,CHILDREN AND FAMILIES,REDACTED PERSONAL DATA,500,ADOPTION ALLOWANCES,PAYMENTS TO CARERS,REDACTED,REDACTED
03.11.2021,CHILDREN AND FAMILIES,REDACTED PERSONAL DATA,635.34,ADOPTION ALLOWANCES,PAYMENTS TO CARERS,REDACTED,REDACTED
03.11.2021,CHILDREN AND FAMILIES,REDACTED PERSONAL DATA,375.54,ADOPTION ALLOWANCES,PAYMENTS TO CARERS,REDACTED,REDACTED
03.11.2021,CHILDREN AND FAMILIES,REDACTED PERSONAL DATA,465.54,ADOPTION ALLOWANCES,PAYMENTS TO CARERS,REDACTED,REDACTED
03.11.2021,CHILDREN AND FAMILIES,REDACTED PERSONAL DATA,375.54,ADOPTION ALLOWANCES,PAYMENTS TO CARERS,REDACTED,REDACTED
03.11.2021,CHILDREN AND FAMILIES,REDACTED PERSONAL DATA,451.8,ADOPTION ALLOWANCES,PAYMENTS TO CARERS,REDACTED,REDACTED
03.11.2021,CHILDREN AND FAMILIES,REDACTED PERSONAL DATA,465.48,ADOPTION ALLOWANCES,PAYMENTS TO CARERS,REDACTED,REDACTED
03.11.2021,CHILDREN AND FAMILIES,REDACTED PERSONAL DATA,386,ADOPTION ALLOWANCES,PAYMENTS TO CARERS,REDACTED,REDACTED
03.11.2021,CHILDREN AND FAMILIES,REDACTED PERSONAL DATA,465.54,ADOPTION ALLOWANCES,PAYMENTS TO CARERS,REDACTED,REDACTED
03.11.2021,CHILDREN AND FAMILIES,REDACTED PERSONAL DATA,705.24,ADOPTION ALLOWANCES,PAYMENTS TO CARERS,REDACTED,REDACTED
03.11.2021,CHILDREN AND FAMILIES,REDACTED PERSONAL DATA,777.36,ADOPTION ALLOWANCES,PAYMENTS TO CARERS,REDACTED,REDACTED
03.11.2021,CHILDREN AND FAMILIES,REDACTED PERSONAL DATA,512.02,ADOPTION ALLOWANCES,PAYMENTS TO CARERS,REDACTED,REDACTED
03.11.2021,CHILDREN AND FAMILIES,REDACTED PERSONAL DATA,251.12,ADOPTION ALLOWANCES,PAYMENTS TO CARERS,REDACTED,REDACTED
03.11.2021,CHILDREN AND FAMILIES,REDACTED PERSONAL DATA,375.54,ADOPTION ALLOWANCES,PAYMENTS TO CARERS,REDACTED,REDACTED
03.11.2021,CHILDREN AND FAMILIES,REDACTED PERSONAL DATA,375.54,ADOPTION ALLOWANCES,PAYMENTS TO CARERS,REDACTED,REDACTED
03.11.2021,CHILDREN AND FAMILIES,REDACTED PERSONAL DATA,502,ADOPTION ALLOWANCES,PAYMENTS TO CARERS,REDACTED,REDACTED
03.11.2021,CHILDREN AND FAMILIES,REDACTED PERSONAL DATA,375.54,ADOPTION ALLOWANCES,PAYMENTS TO CARERS,REDACTED,REDACTED
03.11.2021,CHILDREN AND FAMILIES,REDACTED PERSONAL DATA,640.9,ADOPTION ALLOWANCES,PAYMENTS TO CARERS,REDACTED,REDACTED
03.11.2021,CHILDREN AND FAMILIES,REDACTED PERSONAL DATA,382.3,ADOPTION ALLOWANCES,PAYMENTS TO CARERS,REDACTED,REDACTED
03.11.2021,CHILDREN AND FAMILIES,REDACTED PERSONAL DATA,382.3,ADOPTION ALLOWANCES,PAYMENTS TO CARERS,REDACTED,REDACTED
03.11.2021,CHILDREN AND FAMILIES,REDACTED PERSONAL DATA,359.9,ADOPTION ALLOWANCES,PAYMENTS TO CARERS,REDACTED,REDACTED
03.11.2021,CHILDREN AND FAMILIES,REDACTED PERSONAL DATA,304.26,ADOPTION ALLOWANCES,PAYMENTS TO CARERS,REDACTED,REDACTED
03.11.2021,CHILDREN AND FAMILIES,REDACTED PERSONAL DATA,278.54,ADOPTION ALLOWANCES,PAYMENTS TO CARERS,REDACTED,REDACTED
03.11.2021,CHILDREN AND FAMILIES,REDACTED PERSONAL DATA,485.22,ADOPTION ALLOWANCES,PAYMENTS TO CARERS,REDACTED,REDACTED
03.11.2021,CHILDREN AND FAMILIES,REDACTED PERSONAL DATA,392.42,ADOPTION ALLOWANCES,PAYMENTS TO CARERS,REDACTED,REDACTED
03.11.2021,CHILDREN AND FAMILIES,REDACTED PERSONAL DATA,252.9,ADOPTION ALLOWANCES,PAYMENTS TO CARERS,REDACTED,REDACTED
03.11.2021,CHILDREN AND FAMILIES,REDACTED PERSONAL DATA,253.56,ADOPTION ALLOWANCES,PAYMENTS TO CARERS,REDACTED,REDACTED
03.11.2021,CHILDREN AND FAMILIES,REDACTED PERSONAL DATA,382.3,ADOPTION ALLOWANCES,PAYMENTS TO CARERS,REDACTED,REDACTED
03.11.2021,CHILDREN AND FAMILIES,REDACTED PERSONAL DATA,382.3,ADOPTION ALLOWANCES,PAYMENTS TO CARERS,REDACTED,REDACTED
03.11.2021,CHILDREN AND FAMILIES,REDACTED PERSONAL DATA,351.42,ADOPTION ALLOWANCES,PAYMENTS TO CARERS,REDACTED,REDACTED
03.11.2021,CHILDREN AND FAMILIES,REDACTED PERSONAL DATA,484.92,ADOPTION ALLOWANCES,PAYMENTS TO CARERS,REDACTED,REDACTED
03.11.2021,CHILDREN AND FAMILIES,REDACTED PERSONAL DATA,530,ADOPTION ALLOWANCES,PAYMENTS TO CARERS,REDACTED,REDACTED
03.11.2021,CHILDREN AND FAMILIES,REDACTED PERSONAL DATA,908,ADOPTION ALLOWANCES,PAYMENTS TO CARERS,REDACTED,REDACTED
03.11.2021,CHILDREN AND FAMILIES,REDACTED PERSONAL DATA,738.32,ADOPTION ALLOWANCES,PAYMENTS TO CARERS,REDACTED,REDACTED
03.11.2021,CHILDREN AND FAMILIES,REDACTED PERSONAL DATA,695.12,ADOPTION ALLOWANCES,PAYMENTS TO CARERS,REDACTED,REDACTED
03.11.2021,CHILDREN AND FAMILIES,REDACTED PERSONAL DATA,293.98,ADOPTION ALLOWANCES,PAYMENTS TO CARERS,REDACTED,REDACTED
03.11.2021,CHILDREN AND FAMILIES,REDACTED PERSONAL DATA,251.94,ADOPTION ALLOWANCES,PAYMENTS TO CARERS,REDACTED,REDACTED
03.11.2021,CHILDREN AND FAMILIES,REDACTED PERSONAL DATA,652.9,ADOPTION ALLOWANCES,PAYMENTS TO CARERS,REDACTED,REDACTED
03.11.2021,CHILDREN AND FAMILIES,REDACTED PERSONAL DATA,652.9,ADOPTION ALLOWANCES,PAYMENTS TO CARERS,REDACTED,REDACTED
03.11.2021,CHILDREN AND FAMILIES,REDACTED PERSONAL DATA,712.3,ADOPTION ALLOWANCES,PAYMENTS TO CARERS,REDACTED,REDACTED
03.11.2021,CHILDREN AND FAMILIES,REDACTED PERSONAL DATA,767.68,ADOPTION ALLOWANCES,PAYMENTS TO CARERS,REDACTED,REDACTED
03.11.2021,CHILDREN AND FAMILIES,REDACTED PERSONAL DATA,400.18,ADOPTION ALLOWANCES,PAYMENTS TO CARERS,REDACTED,REDACTED
03.11.2021,CHILDREN AND FAMILIES,REDACTED PERSONAL DATA,682.3,ADOPTION ALLOWANCES,PAYMENTS TO CARERS,REDACTED,REDACTED
03.11.2021,CHILDREN AND FAMILIES,REDACTED PERSONAL DATA,682.3,ADOPTION ALLOWANCES,PAYMENTS TO CARERS,REDACTED,REDACTED
03.11.2021,CHILDREN AND FAMILIES,REDACTED PERSONAL DATA,588.42,ADOPTION ALLOWANCES,PAYMENTS TO CARERS,REDACTED,REDACTED
03.11.2021,CHILDREN AND FAMILIES,REDACTED PERSONAL DATA,"1,053.20",ADOPTION ALLOWANCES,PAYMENTS TO CARERS,REDACTED,REDACTED
03.11.2021,CHILDREN AND FAMILIES,REDACTED PERSONAL DATA,386,ADOPTION ALLOWANCES,PAYMENTS TO CARERS,REDACTED,REDACTED
03.11.2021,CHILDREN AND FAMILIES,REDACTED PERSONAL DATA,618.6,ADOPTION ALLOWANCES,PAYMENTS TO CARERS,REDACTED,REDACTED
03.11.2021,CHILDREN AND FAMILIES,REDACTED PERSONAL DATA,660,ADOPTION ALLOWANCES,PAYMENTS TO CARERS,REDACTED,REDACTED
03.11.2021,CHILDREN AND FAMILIES,REDACTED PERSONAL DATA,276.1,ADOPTION ALLOWANCES,PAYMENTS TO CARERS,REDACTED,REDACTED
03.11.2021,CHILDREN AND FAMILIES,REDACTED PERSONAL DATA,268.62,ADOPTION ALLOWANCES,PAYMENTS TO CARERS,REDACTED,REDACTED
03.11.2021,CHILDREN AND FAMILIES,REDACTED PERSONAL DATA,676,ADOPTION ALLOWANCES,PAYMENTS TO CARERS,REDACTED,REDACTED
03.11.2021,CHILDREN AND FAMILIES,REDACTED PERSONAL DATA,700,ADOPTION ALLOWANCES,PAYMENTS TO CARERS,REDACTED,REDACTED
03.11.2021,CHILDREN AND FAMILIES,REDACTED PERSONAL DATA,288.92,ADOPTION ALLOWANCES,PAYMENTS TO CARERS,REDACTED,REDACTED
03.11.2021,CHILDREN AND FAMILIES,REDACTED PERSONAL DATA,630,ADOPTION SUPP FUND,PROFESSIONAL FEES,REDACTED,REDACTED
03.11.2021,CHILDREN AND FAMILIES,REDACTED PERSONAL DATA,795,ADOPTION SUPP FUND,PROFESSIONAL FEES,REDACTED,REDACTED
03.11.2021,CHILDREN AND FAMILIES,REDACTED PERSONAL DATA,"2,802.50",ADOPTION SUPP FUND,PROFESSIONAL FEES,REDACTED,REDACTED
03.11.2021,CHILDREN AND FAMILIES,REDACTED PERSONAL DATA,"4,757.00",ADOPTION SUPP FUND,PROFESSIONAL FEES,REDACTED,REDACTED
03.11.2021,CHILDREN AND FAMILIES,REDACTED PERSONAL DATA,"2,395.00",CARELEAVER UNIV SUPP,OTHER PAYMENTS FOR CLIENTS,REDACTED,REDACTED
03.11.2021,CHILDREN AND FAMILIES,KENT COUNTY COUNCIL - LASER,-744.6,CENTRAL SUPPORT,GAS,5902494017,1000012926
03.11.2021,CHILDREN AND FAMILIES,KENT COUNTY COUNCIL - LASER,447.01,CENTRAL SUPPORT,GAS,5902494015,1000012926
03.11.2021,CHILDREN AND FAMILIES,KENT COUNTY COUNCIL - LASER,604.87,CENTRAL SUPPORT,GAS,5902494008,1000012926
03.11.2021,CHILDREN AND FAMILIES,BRIGHTWAY CONTACT SERVICES,476.06,CONTACT SERVICE,OTHER PAYMENTS FOR CLIENTS,5902494079,1000086670
03.11.2021,CHILDREN AND FAMILIES,BRIGHTWAY CONTACT SERVICES,476.06,CONTACT SERVICE,OTHER PAYMENTS FOR CLIENTS,5902494080,1000086670
03.11.2021,CHILDREN AND FAMILIES,BRIGHTWAY CONTACT SERVICES,476.06,CONTACT SERVICE,OTHER PAYMENTS FOR CLIENTS,5902494081,1000086670
03.11.2021,CHILDREN AND FAMILIES,BRIGHTWAY CONTACT SERVICES,756.06,CONTACT SERVICE,OTHER PAYMENTS FOR CLIENTS,5902494083,1000086670
03.11.2021,CHILDREN AND FAMILIES,OPTIMUM FOCUS COMPANY LTD,691.17,FAMILY GROUP CONF�S,PROFESSIONAL FEES,5902494090,1000081322
03.11.2021,CHILDREN AND FAMILIES,REDACTED PERSONAL DATA,332.38,FAMILY GROUP CONF�S,PROFESSIONAL FEES,REDACTED,REDACTED
03.11.2021,CHILDREN AND FAMILIES,REDACTED PERSONAL DATA,396.5,FAMILY GROUP CONF�S,PROFESSIONAL FEES,REDACTED,REDACTED
03.11.2021,CHILDREN AND FAMILIES,REDACTED PERSONAL DATA,300,FE SUPPORT,CLIENT TRANSPORT,REDACTED,REDACTED
03.11.2021,CHILDREN AND FAMILIES,REDACTED PERSONAL DATA,300,FE SUPPORT,CLIENT TRANSPORT,REDACTED,REDACTED
03.11.2021,CHILDREN AND FAMILIES,REDACTED PERSONAL DATA,300,FE SUPPORT,CLIENT TRANSPORT,REDACTED,REDACTED
03.11.2021,CHILDREN AND FAMILIES,REDACTED PERSONAL DATA,762,FOSTERING ALLOWANCES,PAYMENTS TO CARERS,REDACTED,REDACTED
03.11.2021,CHILDREN AND FAMILIES,REDACTED PERSONAL DATA,862,FOSTERING ALLOWANCES,PAYMENTS TO CARERS,REDACTED,REDACTED
03.11.2021,CHILDREN AND FAMILIES,REDACTED PERSONAL DATA,862,FOSTERING ALLOWANCES,PAYMENTS TO CARERS,REDACTED,REDACTED
03.11.2021,CHILDREN AND FAMILIES,REDACTED PERSONAL DATA,864,FOSTERING ALLOWANCES,PAYMENTS TO CARERS,REDACTED,REDACTED
03.11.2021,CHILDREN AND FAMILIES,REDACTED PERSONAL DATA,954,FOSTERING ALLOWANCES,PAYMENTS TO CARERS,REDACTED,REDACTED
03.11.2021,CHILDREN AND FAMILIES,REDACTED PERSONAL DATA,864,FOSTERING ALLOWANCES,PAYMENTS TO CARERS,REDACTED,REDACTED
03.11.2021,CHILDREN AND FAMILIES,REDACTED PERSONAL DATA,954,FOSTERING ALLOWANCES,PAYMENTS TO CARERS,REDACTED,REDACTED
03.11.2021,CHILDREN AND FAMILIES,REDACTED PERSONAL DATA,862,FOSTERING ALLOWANCES,PAYMENTS TO CARERS,REDACTED,REDACTED
03.11.2021,CHILDREN AND FAMILIES,REDACTED PERSONAL DATA,864,FOSTERING ALLOWANCES,PAYMENTS TO CARERS,REDACTED,REDACTED
03.11.2021,CHILDREN AND FAMILIES,REDACTED PERSONAL DATA,862,FOSTERING ALLOWANCES,PAYMENTS TO CARERS,REDACTED,REDACTED
03.11.2021,CHILDREN AND FAMILIES,REDACTED PERSONAL DATA,862,FOSTERING ALLOWANCES,PAYMENTS TO CARERS,REDACTED,REDACTED
03.11.2021,CHILDREN AND FAMILIES,REDACTED PERSONAL DATA,896,FOSTERING ALLOWANCES,PAYMENTS TO CARERS,REDACTED,REDACTED
03.11.2021,CHILDREN AND FAMILIES,REDACTED PERSONAL DATA,946,FOSTERING ALLOWANCES,PAYMENTS TO CARERS,REDACTED,REDACTED
03.11.2021,CHILDREN AND FAMILIES,REDACTED PERSONAL DATA,712.3,FOSTERING ALLOWANCES,PAYMENTS TO CARERS,REDACTED,REDACTED
03.11.2021,CHILDREN AND FAMILIES,REDACTED PERSONAL DATA,920,FOSTERING ALLOWANCES,PAYMENTS TO CARERS,REDACTED,REDACTED
03.11.2021,CHILDREN AND FAMILIES,REDACTED PERSONAL DATA,762,FOSTERING ALLOWANCES,PAYMENTS TO CARERS,REDACTED,REDACTED
03.11.2021,CHILDREN AND FAMILIES,REDACTED PERSONAL DATA,862,FOSTERING ALLOWANCES,PAYMENTS TO CARERS,REDACTED,REDACTED
03.11.2021,CHILDREN AND FAMILIES,REDACTED PERSONAL DATA,-416,FOSTERING ALLOWANCES,PAYMENTS TO CARERS,REDACTED,REDACTED
03.11.2021,CHILDREN AND FAMILIES,REDACTED PERSONAL DATA,"1,632.00",FOSTERING ALLOWANCES,PAYMENTS TO CARERS,REDACTED,REDACTED
03.11.2021,CHILDREN AND FAMILIES,REDACTED PERSONAL DATA,954,FOSTERING ALLOWANCES,PAYMENTS TO CARERS,REDACTED,REDACTED
03.11.2021,CHILDREN AND FAMILIES,REDACTED PERSONAL DATA,864,FOSTERING ALLOWANCES,PAYMENTS TO CARERS,REDACTED,REDACTED
03.11.2021,CHILDREN AND FAMILIES,REDACTED PERSONAL DATA,954,FOSTERING ALLOWANCES,PAYMENTS TO CARERS,REDACTED,REDACTED
03.11.2021,CHILDREN AND FAMILIES,REDACTED PERSONAL DATA,-475.43,FOSTERING ALLOWANCES,PAYMENTS TO CARERS,REDACTED,REDACTED
03.11.2021,CHILDREN AND FAMILIES,REDACTED PERSONAL DATA,862,FOSTERING ALLOWANCES,PAYMENTS TO CARERS,REDACTED,REDACTED
03.11.2021,CHILDREN AND FAMILIES,REDACTED PERSONAL DATA,762,FOSTERING ALLOWANCES,PAYMENTS TO CARERS,REDACTED,REDACTED
03.11.2021,CHILDREN AND FAMILIES,REDACTED PERSONAL DATA,862,FOSTERING ALLOWANCES,PAYMENTS TO CARERS,REDACTED,REDACTED
03.11.2021,CHILDREN AND FAMILIES,REDACTED PERSONAL DATA,862,FOSTERING ALLOWANCES,PAYMENTS TO CARERS,REDACTED,REDACTED
03.11.2021,CHILDREN AND FAMILIES,REDACTED PERSONAL DATA,954,FOSTERING ALLOWANCES,PAYMENTS TO CARERS,REDACTED,REDACTED
03.11.2021,CHILDREN AND FAMILIES,REDACTED PERSONAL DATA,864,FOSTERING ALLOWANCES,PAYMENTS TO CARERS,REDACTED,REDACTED
03.11.2021,CHILDREN AND FAMILIES,REDACTED PERSONAL DATA,-728.57,FOSTERING ALLOWANCES,PAYMENTS TO CARERS,REDACTED,REDACTED
03.11.2021,CHILDREN AND FAMILIES,REDACTED PERSONAL DATA,896,FOSTERING ALLOWANCES,PAYMENTS TO CARERS,REDACTED,REDACTED
03.11.2021,CHILDREN AND FAMILIES,REDACTED PERSONAL DATA,896,FOSTERING ALLOWANCES,PAYMENTS TO CARERS,REDACTED,REDACTED
03.11.2021,CHILDREN AND FAMILIES,REDACTED PERSONAL DATA,"1,472.00",FOSTERING ALLOWANCES,PAYMENTS TO CARERS,REDACTED,REDACTED
03.11.2021,CHILDREN AND FAMILIES,REDACTED PERSONAL DATA,-319.71,FOSTERING ALLOWANCES,PAYMENTS TO CARERS,REDACTED,REDACTED
03.11.2021,CHILDREN AND FAMILIES,REDACTED PERSONAL DATA,954,FOSTERING ALLOWANCES,PAYMENTS TO CARERS,REDACTED,REDACTED
03.11.2021,CHILDREN AND FAMILIES,REDACTED PERSONAL DATA,954,FOSTERING ALLOWANCES,PAYMENTS TO CARERS,REDACTED,REDACTED
03.11.2021,CHILDREN AND FAMILIES,REDACTED PERSONAL DATA,-492.57,FOSTERING ALLOWANCES,PAYMENTS TO CARERS,REDACTED,REDACTED
03.11.2021,CHILDREN AND FAMILIES,REDACTED PERSONAL DATA,660,FOSTERING ALLOWANCES,PAYMENTS TO CARERS,REDACTED,REDACTED
03.11.2021,CHILDREN AND FAMILIES,REDACTED PERSONAL DATA,862,FOSTERING ALLOWANCES,PAYMENTS TO CARERS,REDACTED,REDACTED
03.11.2021,CHILDREN AND FAMILIES,REDACTED PERSONAL DATA,864.57,FOSTERING ALLOWANCES,PAYMENTS TO CARERS,REDACTED,REDACTED
03.11.2021,CHILDREN AND FAMILIES,REDACTED PERSONAL DATA,864.57,FOSTERING ALLOWANCES,PAYMENTS TO CARERS,REDACTED,REDACTED
03.11.2021,CHILDREN AND FAMILIES,REDACTED PERSONAL DATA,864.57,FOSTERING ALLOWANCES,PAYMENTS TO CARERS,REDACTED,REDACTED
03.11.2021,CHILDREN AND FAMILIES,REDACTED PERSONAL DATA,862,FOSTERING ALLOWANCES,PAYMENTS TO CARERS,REDACTED,REDACTED
03.11.2021,CHILDREN AND FAMILIES,REDACTED PERSONAL DATA,864,FOSTERING ALLOWANCES,PAYMENTS TO CARERS,REDACTED,REDACTED
03.11.2021,CHILDREN AND FAMILIES,REDACTED PERSONAL DATA,"1,632.00",FOSTERING ALLOWANCES,PAYMENTS TO CARERS,REDACTED,REDACTED
03.11.2021,CHILDREN AND FAMILIES,REDACTED PERSONAL DATA,"1,632.00",FOSTERING ALLOWANCES,PAYMENTS TO CARERS,REDACTED,REDACTED
03.11.2021,CHILDREN AND FAMILIES,REDACTED PERSONAL DATA,984,FOSTERING ALLOWANCES,PAYMENTS TO CARERS,REDACTED,REDACTED
03.11.2021,CHILDREN AND FAMILIES,REDACTED PERSONAL DATA,712,FOSTERING ALLOWANCES,PAYMENTS TO CARERS,REDACTED,REDACTED
03.11.2021,CHILDREN AND FAMILIES,REDACTED PERSONAL DATA,"1,166.00",FOSTERING ALLOWANCES,PAYMENTS TO CARERS,REDACTED,REDACTED
03.11.2021,CHILDREN AND FAMILIES,REDACTED PERSONAL DATA,830,FOSTERING ALLOWANCES,PAYMENTS TO CARERS,REDACTED,REDACTED
03.11.2021,CHILDREN AND FAMILIES,REDACTED PERSONAL DATA,832,FOSTERING ALLOWANCES,PAYMENTS TO CARERS,REDACTED,REDACTED
03.11.2021,CHILDREN AND FAMILIES,REDACTED PERSONAL DATA,862,FOSTERING ALLOWANCES,PAYMENTS TO CARERS,REDACTED,REDACTED
03.11.2021,CHILDREN AND FAMILIES,REDACTED PERSONAL DATA,862,FOSTERING ALLOWANCES,PAYMENTS TO CARERS,REDACTED,REDACTED
03.11.2021,CHILDREN AND FAMILIES,REDACTED PERSONAL DATA,-450.38,FOSTERING ALLOWANCES,PAYMENTS TO CARERS,REDACTED,REDACTED
03.11.2021,CHILDREN AND FAMILIES,REDACTED PERSONAL DATA,862,FOSTERING ALLOWANCES,PAYMENTS TO CARERS,REDACTED,REDACTED
03.11.2021,CHILDREN AND FAMILIES,REDACTED PERSONAL DATA,864,FOSTERING ALLOWANCES,PAYMENTS TO CARERS,REDACTED,REDACTED
03.11.2021,CHILDREN AND FAMILIES,REDACTED PERSONAL DATA,712,FOSTERING ALLOWANCES,PAYMENTS TO CARERS,REDACTED,REDACTED
03.11.2021,CHILDREN AND FAMILIES,REDACTED PERSONAL DATA,896,FOSTERING ALLOWANCES,PAYMENTS TO CARERS,REDACTED,REDACTED
03.11.2021,CHILDREN AND FAMILIES,REDACTED PERSONAL DATA,862,FOSTERING ALLOWANCES,PAYMENTS TO CARERS,REDACTED,REDACTED
03.11.2021,CHILDREN AND FAMILIES,REDACTED PERSONAL DATA,862,FOSTERING ALLOWANCES,PAYMENTS TO CARERS,REDACTED,REDACTED
03.11.2021,CHILDREN AND FAMILIES,REDACTED PERSONAL DATA,864,FOSTERING ALLOWANCES,PAYMENTS TO CARERS,REDACTED,REDACTED
03.11.2021,CHILDREN AND FAMILIES,REDACTED PERSONAL DATA,-369.43,FOSTERING ALLOWANCES,PAYMENTS TO CARERS,REDACTED,REDACTED
03.11.2021,CHILDREN AND FAMILIES,REDACTED PERSONAL DATA,862,FOSTERING ALLOWANCES,PAYMENTS TO CARERS,REDACTED,REDACTED
03.11.2021,CHILDREN AND FAMILIES,REDACTED PERSONAL DATA,864,FOSTERING ALLOWANCES,PAYMENTS TO CARERS,REDACTED,REDACTED
03.11.2021,CHILDREN AND FAMILIES,REDACTED PERSONAL DATA,712,FOSTERING ALLOWANCES,PAYMENTS TO CARERS,REDACTED,REDACTED
03.11.2021,CHILDREN AND FAMILIES,REDACTED PERSONAL DATA,954,FOSTERING ALLOWANCES,PAYMENTS TO CARERS,REDACTED,REDACTED
03.11.2021,CHILDREN AND FAMILIES,REDACTED PERSONAL DATA,862,FOSTERING ALLOWANCES,PAYMENTS TO CARERS,REDACTED,REDACTED
03.11.2021,CHILDREN AND FAMILIES,REDACTED PERSONAL DATA,862,FOSTERING ALLOWANCES,PAYMENTS TO CARERS,REDACTED,REDACTED
03.11.2021,CHILDREN AND FAMILIES,REDACTED PERSONAL DATA,954,FOSTERING ALLOWANCES,PAYMENTS TO CARERS,REDACTED,REDACTED
03.11.2021,CHILDREN AND FAMILIES,REDACTED PERSONAL DATA,862,FOSTERING ALLOWANCES,PAYMENTS TO CARERS,REDACTED,REDACTED
03.11.2021,CHILDREN AND FAMILIES,REDACTED PERSONAL DATA,954,FOSTERING ALLOWANCES,PAYMENTS TO CARERS,REDACTED,REDACTED
03.11.2021,CHILDREN AND FAMILIES,REDACTED PERSONAL DATA,712,FOSTERING ALLOWANCES,PAYMENTS TO CARERS,REDACTED,REDACTED
03.11.2021,CHILDREN AND FAMILIES,REDACTED PERSONAL DATA,832,FOSTERING ALLOWANCES,PAYMENTS TO CARERS,REDACTED,REDACTED
03.11.2021,CHILDREN AND FAMILIES,REDACTED PERSONAL DATA,862,FOSTERING ALLOWANCES,PAYMENTS TO CARERS,REDACTED,REDACTED
03.11.2021,CHILDREN AND FAMILIES,REDACTED PERSONAL DATA,954,FOSTERING ALLOWANCES,PAYMENTS TO CARERS,REDACTED,REDACTED
03.11.2021,CHILDREN AND FAMILIES,REDACTED PERSONAL DATA,762,FOSTERING ALLOWANCES,PAYMENTS TO CARERS,REDACTED,REDACTED
03.11.2021,CHILDREN AND FAMILIES,REDACTED PERSONAL DATA,862,FOSTERING ALLOWANCES,PAYMENTS TO CARERS,REDACTED,REDACTED
03.11.2021,CHILDREN AND FAMILIES,REDACTED PERSONAL DATA,954,FOSTERING ALLOWANCES,PAYMENTS TO CARERS,REDACTED,REDACTED
03.11.2021,CHILDREN AND FAMILIES,REDACTED PERSONAL DATA,682,FOSTERING ALLOWANCES,PAYMENTS TO CARERS,REDACTED,REDACTED
03.11.2021,CHILDREN AND FAMILIES,REDACTED PERSONAL DATA,732,FOSTERING ALLOWANCES,PAYMENTS TO CARERS,REDACTED,REDACTED
03.11.2021,CHILDREN AND FAMILIES,REDACTED PERSONAL DATA,712,FOSTERING ALLOWANCES,PAYMENTS TO CARERS,REDACTED,REDACTED
03.11.2021,CHILDREN AND FAMILIES,REDACTED PERSONAL DATA,862,FOSTERING ALLOWANCES,PAYMENTS TO CARERS,REDACTED,REDACTED
03.11.2021,CHILDREN AND FAMILIES,REDACTED PERSONAL DATA,862,FOSTERING ALLOWANCES,PAYMENTS TO CARERS,REDACTED,REDACTED
03.11.2021,CHILDREN AND FAMILIES,REDACTED PERSONAL DATA,862,FOSTERING ALLOWANCES,PAYMENTS TO CARERS,REDACTED,REDACTED
03.11.2021,CHILDREN AND FAMILIES,REDACTED PERSONAL DATA,862,FOSTERING ALLOWANCES,PAYMENTS TO CARERS,REDACTED,REDACTED
03.11.2021,CHILDREN AND FAMILIES,REDACTED PERSONAL DATA,862,FOSTERING ALLOWANCES,PAYMENTS TO CARERS,REDACTED,REDACTED
03.11.2021,CHILDREN AND FAMILIES,REDACTED PERSONAL DATA,712,FOSTERING ALLOWANCES,PAYMENTS TO CARERS,REDACTED,REDACTED
03.11.2021,CHILDREN AND FAMILIES,REDACTED PERSONAL DATA,762,FOSTERING ALLOWANCES,PAYMENTS TO CARERS,REDACTED,REDACTED
03.11.2021,CHILDREN AND FAMILIES,REDACTED PERSONAL DATA,862,FOSTERING ALLOWANCES,PAYMENTS TO CARERS,REDACTED,REDACTED
03.11.2021,CHILDREN AND FAMILIES,REDACTED PERSONAL DATA,712,FOSTERING ALLOWANCES,PAYMENTS TO CARERS,REDACTED,REDACTED
03.11.2021,CHILDREN AND FAMILIES,REDACTED PERSONAL DATA,862,FOSTERING ALLOWANCES,PAYMENTS TO CARERS,REDACTED,REDACTED
03.11.2021,CHILDREN AND FAMILIES,REDACTED PERSONAL DATA,862,FOSTERING ALLOWANCES,PAYMENTS TO CARERS,REDACTED,REDACTED
03.11.2021,CHILDREN AND FAMILIES,REDACTED PERSONAL DATA,862,FOSTERING ALLOWANCES,PAYMENTS TO CARERS,REDACTED,REDACTED
03.11.2021,CHILDREN AND FAMILIES,REDACTED PERSONAL DATA,954,FOSTERING ALLOWANCES,PAYMENTS TO CARERS,REDACTED,REDACTED
03.11.2021,CHILDREN AND FAMILIES,REDACTED PERSONAL DATA,862,FOSTERING ALLOWANCES,PAYMENTS TO CARERS,REDACTED,REDACTED
03.11.2021,CHILDREN AND FAMILIES,REDACTED PERSONAL DATA,762,FOSTERING ALLOWANCES,PAYMENTS TO CARERS,REDACTED,REDACTED
03.11.2021,CHILDREN AND FAMILIES,REDACTED PERSONAL DATA,832,FOSTERING ALLOWANCES,PAYMENTS TO CARERS,REDACTED,REDACTED
03.11.2021,CHILDREN AND FAMILIES,REDACTED PERSONAL DATA,832,FOSTERING ALLOWANCES,PAYMENTS TO CARERS,REDACTED,REDACTED
03.11.2021,CHILDREN AND FAMILIES,REDACTED PERSONAL DATA,300,FOSTERING ALLOWANCES,PAYMENTS TO CARERS,REDACTED,REDACTED
03.11.2021,CHILDREN AND FAMILIES,REDACTED PERSONAL DATA,762,FOSTERING ALLOWANCES,PAYMENTS TO CARERS,REDACTED,REDACTED
03.11.2021,CHILDREN AND FAMILIES,REDACTED PERSONAL DATA,762,FOSTERING ALLOWANCES,PAYMENTS TO CARERS,REDACTED,REDACTED
03.11.2021,CHILDREN AND FAMILIES,REDACTED PERSONAL DATA,832,FOSTERING ALLOWANCES,PAYMENTS TO CARERS,REDACTED,REDACTED
03.11.2021,CHILDREN AND FAMILIES,REDACTED PERSONAL DATA,864,FOSTERING ALLOWANCES,PAYMENTS TO CARERS,REDACTED,REDACTED
03.11.2021,CHILDREN AND FAMILIES,REDACTED PERSONAL DATA,732,FOSTERING ALLOWANCES,PAYMENTS TO CARERS,REDACTED,REDACTED
03.11.2021,CHILDREN AND FAMILIES,REDACTED PERSONAL DATA,864,FOSTERING ALLOWANCES,PAYMENTS TO CARERS,REDACTED,REDACTED
03.11.2021,CHILDREN AND FAMILIES,REDACTED PERSONAL DATA,762,FOSTERING ALLOWANCES,PAYMENTS TO CARERS,REDACTED,REDACTED
03.11.2021,CHILDREN AND FAMILIES,REDACTED PERSONAL DATA,854.86,FOSTERING ALLOWANCES,PAYMENTS TO CARERS,REDACTED,REDACTED
03.11.2021,CHILDREN AND FAMILIES,REDACTED PERSONAL DATA,862,FOSTERING ALLOWANCES,PAYMENTS TO CARERS,REDACTED,REDACTED
03.11.2021,CHILDREN AND FAMILIES,REDACTED PERSONAL DATA,776.08,FOSTERING ALLOWANCES,PAYMENTS TO CARERS,REDACTED,REDACTED
03.11.2021,CHILDREN AND FAMILIES,REDACTED PERSONAL DATA,682,FOSTERING ALLOWANCES,PAYMENTS TO CARERS,REDACTED,REDACTED
03.11.2021,CHILDREN AND FAMILIES,REDACTED PERSONAL DATA,862,FOSTERING ALLOWANCES,PAYMENTS TO CARERS,REDACTED,REDACTED
03.11.2021,CHILDREN AND FAMILIES,REDACTED PERSONAL DATA,762,FOSTERING ALLOWANCES,PAYMENTS TO CARERS,REDACTED,REDACTED
03.11.2021,CHILDREN AND FAMILIES,REDACTED PERSONAL DATA,762,FOSTERING ALLOWANCES,PAYMENTS TO CARERS,REDACTED,REDACTED
03.11.2021,CHILDREN AND FAMILIES,REDACTED PERSONAL DATA,862,FOSTERING ALLOWANCES,PAYMENTS TO CARERS,REDACTED,REDACTED
03.11.2021,CHILDREN AND FAMILIES,REDACTED PERSONAL DATA,832,FOSTERING ALLOWANCES,PAYMENTS TO CARERS,REDACTED,REDACTED
03.11.2021,CHILDREN AND FAMILIES,REDACTED PERSONAL DATA,832,FOSTERING ALLOWANCES,PAYMENTS TO CARERS,REDACTED,REDACTED
03.11.2021,CHILDREN AND FAMILIES,REDACTED PERSONAL DATA,-492.57,FOSTERING ALLOWANCES,PAYMENTS TO CARERS,REDACTED,REDACTED
03.11.2021,CHILDREN AND FAMILIES,REDACTED PERSONAL DATA,"3,764.28",FOSTERING ALLOWANCES,PAYMENTS TO CARERS,REDACTED,REDACTED
03.11.2021,CHILDREN AND FAMILIES,REDACTED PERSONAL DATA,830,FOSTERING ALLOWANCES,PAYMENTS TO CARERS,REDACTED,REDACTED
03.11.2021,CHILDREN AND FAMILIES,REDACTED PERSONAL DATA,"1,713.10",FOSTERING ALLOWANCES,PAYMENTS TO CARERS,REDACTED,REDACTED
03.11.2021,CHILDREN AND FAMILIES,REDACTED PERSONAL DATA,830,FOSTERING ALLOWANCES,PAYMENTS TO CARERS,REDACTED,REDACTED
03.11.2021,CHILDREN AND FAMILIES,REDACTED PERSONAL DATA,732,FOSTERING ALLOWANCES,PAYMENTS TO CARERS,REDACTED,REDACTED
03.11.2021,CHILDREN AND FAMILIES,REDACTED PERSONAL DATA,830,FOSTERING ALLOWANCES,PAYMENTS TO CARERS,REDACTED,REDACTED
03.11.2021,CHILDREN AND FAMILIES,REDACTED PERSONAL DATA,732,FOSTERING ALLOWANCES,PAYMENTS TO CARERS,REDACTED,REDACTED
03.11.2021,CHILDREN AND FAMILIES,REDACTED PERSONAL DATA,682,FOSTERING ALLOWANCES,PAYMENTS TO CARERS,REDACTED,REDACTED
03.11.2021,CHILDREN AND FAMILIES,REDACTED PERSONAL DATA,832,FOSTERING ALLOWANCES,PAYMENTS TO CARERS,REDACTED,REDACTED
03.11.2021,CHILDREN AND FAMILIES,REDACTED PERSONAL DATA,830,FOSTERING ALLOWANCES,PAYMENTS TO CARERS,REDACTED,REDACTED
03.11.2021,CHILDREN AND FAMILIES,REDACTED PERSONAL DATA,"1,632.00",FOSTERING ALLOWANCES,PAYMENTS TO CARERS,REDACTED,REDACTED
03.11.2021,CHILDREN AND FAMILIES,REDACTED PERSONAL DATA,920,FOSTERING ALLOWANCES,PAYMENTS TO CARERS,REDACTED,REDACTED
03.11.2021,CHILDREN AND FAMILIES,REDACTED PERSONAL DATA,"1,070.16",FOSTERING ALLOWANCES,PAYMENTS TO CARERS,REDACTED,REDACTED
03.11.2021,CHILDREN AND FAMILIES,REDACTED PERSONAL DATA,348,FOSTERING ALLOWANCES,PAYMENTS TO CARERS,REDACTED,REDACTED
03.11.2021,CHILDREN AND FAMILIES,AVOCET SOCIAL CARE LTD,"5,200.00",FOSTERING TEAM,PROFESSIONAL FEES,5902494179,1000071940
03.11.2021,CHILDREN AND FAMILIES,REDACTED PERSONAL DATA,400,FRIENDS &FAMILY FOST,ADDITIONAL PAYMENTS TO AGENCIES/CARERS,REDACTED,REDACTED
03.11.2021,CHILDREN AND FAMILIES,REDACTED PERSONAL DATA,912,FRIENDS &FAMILY FOST,PAYMENTS TO CARERS,REDACTED,REDACTED
03.11.2021,CHILDREN AND FAMILIES,REDACTED PERSONAL DATA,348,FRIENDS &FAMILY FOST,PAYMENTS TO CARERS,REDACTED,REDACTED
03.11.2021,CHILDREN AND FAMILIES,REDACTED PERSONAL DATA,832,FRIENDS &FAMILY FOST,PAYMENTS TO CARERS,REDACTED,REDACTED
03.11.2021,CHILDREN AND FAMILIES,REDACTED PERSONAL DATA,832,FRIENDS &FAMILY FOST,PAYMENTS TO CARERS,REDACTED,REDACTED
03.11.2021,CHILDREN AND FAMILIES,REDACTED PERSONAL DATA,716,FRIENDS &FAMILY FOST,PAYMENTS TO CARERS,REDACTED,REDACTED
03.11.2021,CHILDREN AND FAMILIES,REDACTED PERSONAL DATA,824,FRIENDS &FAMILY FOST,PAYMENTS TO CARERS,REDACTED,REDACTED
03.11.2021,CHILDREN AND FAMILIES,REDACTED PERSONAL DATA,824,FRIENDS &FAMILY FOST,PAYMENTS TO CARERS,REDACTED,REDACTED
03.11.2021,CHILDREN AND FAMILIES,REDACTED PERSONAL DATA,716,FRIENDS &FAMILY FOST,PAYMENTS TO CARERS,REDACTED,REDACTED
03.11.2021,CHILDREN AND FAMILIES,REDACTED PERSONAL DATA,824,FRIENDS &FAMILY FOST,PAYMENTS TO CARERS,REDACTED,REDACTED
03.11.2021,CHILDREN AND FAMILIES,REDACTED PERSONAL DATA,862,FRIENDS &FAMILY FOST,PAYMENTS TO CARERS,REDACTED,REDACTED
03.11.2021,CHILDREN AND FAMILIES,REDACTED PERSONAL DATA,954,FRIENDS &FAMILY FOST,PAYMENTS TO CARERS,REDACTED,REDACTED
03.11.2021,CHILDREN AND FAMILIES,REDACTED PERSONAL DATA,732,FRIENDS &FAMILY FOST,PAYMENTS TO CARERS,REDACTED,REDACTED
03.11.2021,CHILDREN AND FAMILIES,REDACTED PERSONAL DATA,832,FRIENDS &FAMILY FOST,PAYMENTS TO CARERS,REDACTED,REDACTED
03.11.2021,CHILDREN AND FAMILIES,REDACTED PERSONAL DATA,394,FRIENDS &FAMILY FOST,PAYMENTS TO CARERS,REDACTED,REDACTED
03.11.2021,CHILDREN AND FAMILIES,REDACTED PERSONAL DATA,394,FRIENDS &FAMILY FOST,PAYMENTS TO CARERS,REDACTED,REDACTED
03.11.2021,CHILDREN AND FAMILIES,REDACTED PERSONAL DATA,920,FRIENDS &FAMILY FOST,PAYMENTS TO CARERS,REDACTED,REDACTED
03.11.2021,CHILDREN AND FAMILIES,REDACTED PERSONAL DATA,732,FRIENDS &FAMILY FOST,PAYMENTS TO CARERS,REDACTED,REDACTED
03.11.2021,CHILDREN AND FAMILIES,REDACTED PERSONAL DATA,832,FRIENDS &FAMILY FOST,PAYMENTS TO CARERS,REDACTED,REDACTED
03.11.2021,CHILDREN AND FAMILIES,REDACTED PERSONAL DATA,732,FRIENDS &FAMILY FOST,PAYMENTS TO CARERS,REDACTED,REDACTED
03.11.2021,CHILDREN AND FAMILIES,REDACTED PERSONAL DATA,832,FRIENDS &FAMILY FOST,PAYMENTS TO CARERS,REDACTED,REDACTED
03.11.2021,CHILDREN AND FAMILIES,REDACTED PERSONAL DATA,832,FRIENDS &FAMILY FOST,PAYMENTS TO CARERS,REDACTED,REDACTED
03.11.2021,CHILDREN AND FAMILIES,REDACTED PERSONAL DATA,666,FRIENDS &FAMILY FOST,PAYMENTS TO CARERS,REDACTED,REDACTED
03.11.2021,CHILDREN AND FAMILIES,REDACTED PERSONAL DATA,830,FRIENDS &FAMILY FOST,PAYMENTS TO CARERS,REDACTED,REDACTED
03.11.2021,CHILDREN AND FAMILIES,REDACTED PERSONAL DATA,832,FRIENDS &FAMILY FOST,PAYMENTS TO CARERS,REDACTED,REDACTED
03.11.2021,CHILDREN AND FAMILIES,REDACTED PERSONAL DATA,824,FRIENDS &FAMILY FOST,PAYMENTS TO CARERS,REDACTED,REDACTED
03.11.2021,CHILDREN AND FAMILIES,REDACTED PERSONAL DATA,462,FRIENDS &FAMILY FOST,PAYMENTS TO CARERS,REDACTED,REDACTED
03.11.2021,CHILDREN AND FAMILIES,REDACTED PERSONAL DATA,832,FRIENDS &FAMILY FOST,PAYMENTS TO CARERS,REDACTED,REDACTED
03.11.2021,CHILDREN AND FAMILIES,REDACTED PERSONAL DATA,832,FRIENDS &FAMILY FOST,PAYMENTS TO CARERS,REDACTED,REDACTED
03.11.2021,CHILDREN AND FAMILIES,REDACTED PERSONAL DATA,400,FRIENDS &FAMILY FOST,PAYMENTS TO CARERS,REDACTED,REDACTED
03.11.2021,CHILDREN AND FAMILIES,REDACTED PERSONAL DATA,832,FRIENDS &FAMILY FOST,PAYMENTS TO CARERS,REDACTED,REDACTED
03.11.2021,CHILDREN AND FAMILIES,REDACTED PERSONAL DATA,682,FRIENDS &FAMILY FOST,PAYMENTS TO CARERS,REDACTED,REDACTED
03.11.2021,CHILDREN AND FAMILIES,REDACTED PERSONAL DATA,666,FRIENDS &FAMILY FOST,PAYMENTS TO CARERS,REDACTED,REDACTED
03.11.2021,CHILDREN AND FAMILIES,REDACTED PERSONAL DATA,832,FRIENDS &FAMILY FOST,PAYMENTS TO CARERS,REDACTED,REDACTED
03.11.2021,CHILDREN AND FAMILIES,REDACTED PERSONAL DATA,824,FRIENDS &FAMILY FOST,PAYMENTS TO CARERS,REDACTED,REDACTED
03.11.2021,CHILDREN AND FAMILIES,REDACTED PERSONAL DATA,832,FRIENDS &FAMILY FOST,PAYMENTS TO CARERS,REDACTED,REDACTED
03.11.2021,CHILDREN AND FAMILIES,REDACTED PERSONAL DATA,394,FRIENDS &FAMILY FOST,PAYMENTS TO CARERS,REDACTED,REDACTED
03.11.2021,CHILDREN AND FAMILIES,REDACTED PERSONAL DATA,418,FRIENDS &FAMILY FOST,PAYMENTS TO CARERS,REDACTED,REDACTED
03.11.2021,CHILDREN AND FAMILIES,REDACTED PERSONAL DATA,682,FRIENDS &FAMILY FOST,PAYMENTS TO CARERS,REDACTED,REDACTED
03.11.2021,CHILDREN AND FAMILIES,REDACTED PERSONAL DATA,732,FRIENDS &FAMILY FOST,PAYMENTS TO CARERS,REDACTED,REDACTED
03.11.2021,CHILDREN AND FAMILIES,REDACTED PERSONAL DATA,732,FRIENDS &FAMILY FOST,PAYMENTS TO CARERS,REDACTED,REDACTED
03.11.2021,CHILDREN AND FAMILIES,REDACTED PERSONAL DATA,760.57,FRIENDS &FAMILY FOST,PAYMENTS TO CARERS,REDACTED,REDACTED
03.11.2021,CHILDREN AND FAMILIES,REDACTED PERSONAL DATA,348,FRIENDS &FAMILY FOST,PAYMENTS TO CARERS,REDACTED,REDACTED
03.11.2021,CHILDREN AND FAMILIES,REDACTED PERSONAL DATA,394,FRIENDS &FAMILY FOST,PAYMENTS TO CARERS,REDACTED,REDACTED
03.11.2021,CHILDREN AND FAMILIES,REDACTED PERSONAL DATA,348,FRIENDS &FAMILY FOST,PAYMENTS TO CARERS,REDACTED,REDACTED
03.11.2021,CHILDREN AND FAMILIES,REDACTED PERSONAL DATA,832,FRIENDS &FAMILY FOST,PAYMENTS TO CARERS,REDACTED,REDACTED
03.11.2021,CHILDREN AND FAMILIES,REDACTED PERSONAL DATA,676,FRIENDS &FAMILY FOST,PAYMENTS TO CARERS,REDACTED,REDACTED
03.11.2021,CHILDREN AND FAMILIES,REDACTED PERSONAL DATA,394,FRIENDS &FAMILY FOST,PAYMENTS TO CARERS,REDACTED,REDACTED
03.11.2021,CHILDREN AND FAMILIES,REDACTED PERSONAL DATA,394,FRIENDS &FAMILY FOST,PAYMENTS TO CARERS,REDACTED,REDACTED
03.11.2021,CHILDREN AND FAMILIES,REDACTED PERSONAL DATA,394,FRIENDS &FAMILY FOST,PAYMENTS TO CARERS,REDACTED,REDACTED
03.11.2021,CHILDREN AND FAMILIES,REDACTED PERSONAL DATA,348,FRIENDS &FAMILY FOST,PAYMENTS TO CARERS,REDACTED,REDACTED
03.11.2021,CHILDREN AND FAMILIES,REDACTED PERSONAL DATA,394,FRIENDS &FAMILY FOST,PAYMENTS TO CARERS,REDACTED,REDACTED
03.11.2021,CHILDREN AND FAMILIES,REDACTED PERSONAL DATA,310,FRIENDS &FAMILY FOST,PAYMENTS TO CARERS,REDACTED,REDACTED
03.11.2021,CHILDREN AND FAMILIES,REDACTED PERSONAL DATA,310,FRIENDS &FAMILY FOST,PAYMENTS TO CARERS,REDACTED,REDACTED
03.11.2021,CHILDREN AND FAMILIES,REDACTED PERSONAL DATA,310,FRIENDS &FAMILY FOST,PAYMENTS TO CARERS,REDACTED,REDACTED
03.11.2021,CHILDREN AND FAMILIES,REDACTED PERSONAL DATA,462,FRIENDS &FAMILY FOST,PAYMENTS TO CARERS,REDACTED,REDACTED
03.11.2021,CHILDREN AND FAMILIES,REDACTED PERSONAL DATA,348,FRIENDS &FAMILY FOST,PAYMENTS TO CARERS,REDACTED,REDACTED
03.11.2021,CHILDREN AND FAMILIES,REDACTED PERSONAL DATA,-522,FRIENDS &FAMILY FOST,PAYMENTS TO CARERS,REDACTED,REDACTED
03.11.2021,CHILDREN AND FAMILIES,REDACTED PERSONAL DATA,"1,466.57",FRIENDS &FAMILY FOST,PAYMENTS TO CARERS,REDACTED,REDACTED
03.11.2021,CHILDREN AND FAMILIES,REDACTED PERSONAL DATA,"2,000.00",LEAVING CARE GRANT,OTHER PAYMENTS FOR CLIENTS,REDACTED,REDACTED
03.11.2021,CHILDREN AND FAMILIES,ZENITH CARS LTD,360,P & R CARE TEAM,CLIENT TRANSPORT,5902494174,1000070570
03.11.2021,CHILDREN AND FAMILIES,ZENITH CARS LTD,890,P & R CARE TEAM,CLIENT TRANSPORT,5902494175,1000070570
03.11.2021,CHILDREN AND FAMILIES,REDACTED PERSONAL DATA,388.04,SPECIAL GUARDIANSHIP,PAYMENTS TO CARERS,REDACTED,REDACTED
03.11.2021,CHILDREN AND FAMILIES,REDACTED PERSONAL DATA,342.45,SPECIAL GUARDIANSHIP,PAYMENTS TO CARERS,REDACTED,REDACTED
03.11.2021,CHILDREN AND FAMILIES,REDACTED PERSONAL DATA,389.34,SPECIAL GUARDIANSHIP,PAYMENTS TO CARERS,REDACTED,REDACTED
03.11.2021,CHILDREN AND FAMILIES,REDACTED PERSONAL DATA,356.15,SPECIAL GUARDIANSHIP,PAYMENTS TO CARERS,REDACTED,REDACTED
03.11.2021,CHILDREN AND FAMILIES,REDACTED PERSONAL DATA,403.04,SPECIAL GUARDIANSHIP,PAYMENTS TO CARERS,REDACTED,REDACTED
03.11.2021,CHILDREN AND FAMILIES,REDACTED PERSONAL DATA,"-15,953.73",SPECIAL GUARDIANSHIP,PAYMENTS TO CARERS,REDACTED,REDACTED
03.11.2021,CHILDREN AND FAMILIES,REDACTED PERSONAL DATA,379.87,SPECIAL GUARDIANSHIP,PAYMENTS TO CARERS,REDACTED,REDACTED
03.11.2021,CHILDREN AND FAMILIES,REDACTED PERSONAL DATA,934.64,SPECIAL GUARDIANSHIP,PAYMENTS TO CARERS,REDACTED,REDACTED
03.11.2021,CHILDREN AND FAMILIES,REDACTED PERSONAL DATA,"15,400.08",SPECIAL GUARDIANSHIP,PAYMENTS TO CARERS,REDACTED,REDACTED
03.11.2021,CHILDREN AND FAMILIES,REDACTED PERSONAL DATA,525,SPECIAL GUARDIANSHIP,PAYMENTS TO CARERS,REDACTED,REDACTED
03.11.2021,CHILDREN AND FAMILIES,REDACTED PERSONAL DATA,341.15,SPECIAL GUARDIANSHIP,PAYMENTS TO CARERS,REDACTED,REDACTED
03.11.2021,CHILDREN AND FAMILIES,REDACTED PERSONAL DATA,500,STAYPUT- FOST CARERS,PAYMENTS TO CARERS,REDACTED,REDACTED
03.11.2021,CHILDREN AND FAMILIES,REDACTED PERSONAL DATA,500,STAYPUT- FOST CARERS,PAYMENTS TO CARERS,REDACTED,REDACTED
03.11.2021,CHILDREN AND FAMILIES,REDACTED PERSONAL DATA,500,STAYPUT- FOST CARERS,PAYMENTS TO CARERS,REDACTED,REDACTED
03.11.2021,CHILDREN AND FAMILIES,REDACTED PERSONAL DATA,500,STAYPUT- FOST CARERS,PAYMENTS TO CARERS,REDACTED,REDACTED
03.11.2021,CHILDREN AND FAMILIES,REDACTED PERSONAL DATA,600,STAYPUT- FOST CARERS,PAYMENTS TO CARERS,REDACTED,REDACTED
03.11.2021,CHILDREN AND FAMILIES,REDACTED PERSONAL DATA,500,STAYPUT- FOST CARERS,PAYMENTS TO CARERS,REDACTED,REDACTED
03.11.2021,CHILDREN AND FAMILIES,REDACTED PERSONAL DATA,500,STAYPUT- FOST CARERS,PAYMENTS TO CARERS,REDACTED,REDACTED
03.11.2021,CHILDREN AND FAMILIES,REDACTED PERSONAL DATA,500,STAYPUT- FOST CARERS,PAYMENTS TO CARERS,REDACTED,REDACTED
03.11.2021,CHILDREN AND FAMILIES,REDACTED PERSONAL DATA,500,STAYPUT- FOST CARERS,PAYMENTS TO CARERS,REDACTED,REDACTED
03.11.2021,CHILDREN AND FAMILIES,REDACTED PERSONAL DATA,500,STAYPUT- FOST CARERS,PAYMENTS TO CARERS,REDACTED,REDACTED
03.11.2021,CHILDREN AND FAMILIES,REDACTED PERSONAL DATA,"1,842.85",STAYPUT- FOST CARERS,PAYMENTS TO CARERS,REDACTED,REDACTED
03.11.2021,CHILDREN AND FAMILIES,REDACTED PERSONAL DATA,500,STAYPUT- FOST CARERS,PAYMENTS TO CARERS,REDACTED,REDACTED
03.11.2021,CHILDREN AND FAMILIES,REDACTED PERSONAL DATA,500,STAYPUT- FOST CARERS,PAYMENTS TO CARERS,REDACTED,REDACTED
03.11.2021,CHILDREN AND FAMILIES,REDACTED PERSONAL DATA,500,STAYPUT- FOST CARERS,PAYMENTS TO CARERS,REDACTED,REDACTED
03.11.2021,CHILDREN AND FAMILIES,REDACTED PERSONAL DATA,500,STAYPUT- FOST CARERS,PAYMENTS TO CARERS,REDACTED,REDACTED
03.11.2021,CHILDREN AND FAMILIES,REDACTED PERSONAL DATA,500,STAYPUT- FOST CARERS,PAYMENTS TO CARERS,REDACTED,REDACTED
03.11.2021,CHILDREN AND FAMILIES,REDACTED PERSONAL DATA,500,STAYPUT- FOST CARERS,PAYMENTS TO CARERS,REDACTED,REDACTED
03.11.2021,CHILDREN AND FAMILIES,REDACTED PERSONAL DATA,500,STAYPUT- FOST CARERS,PAYMENTS TO CARERS,REDACTED,REDACTED
03.11.2021,CHILDREN AND FAMILIES,REDACTED PERSONAL DATA,852,STAYPUT- FOST CARERS,PAYMENTS TO CARERS,REDACTED,REDACTED
03.11.2021,CHILDREN AND FAMILIES,REDACTED PERSONAL DATA,500,STAYPUT- FOST CARERS,PAYMENTS TO CARERS,REDACTED,REDACTED
03.11.2021,CHILDREN AND FAMILIES,REDACTED PERSONAL DATA,500,STAYPUT- FOST CARERS,PAYMENTS TO CARERS,REDACTED,REDACTED
03.11.2021,CHILDREN AND FAMILIES,REDACTED PERSONAL DATA,500,STAYPUT- FOST CARERS,PAYMENTS TO CARERS,REDACTED,REDACTED
03.11.2021,CHILDREN AND FAMILIES,REDACTED PERSONAL DATA,500,STAYPUT- FOST CARERS,PAYMENTS TO CARERS,REDACTED,REDACTED
03.11.2021,CHILDREN AND FAMILIES,REDACTED PERSONAL DATA,656,STAYPUT- FOST CARERS,PAYMENTS TO CARERS,REDACTED,REDACTED
03.11.2021,CHILDREN AND FAMILIES,REDACTED PERSONAL DATA,500,STAYPUT- FOST CARERS,PAYMENTS TO CARERS,REDACTED,REDACTED
03.11.2021,CHILDREN AND FAMILIES,REDACTED PERSONAL DATA,600,STAYPUT- FOST CARERS,PAYMENTS TO CARERS,REDACTED,REDACTED
03.11.2021,CHILDREN AND FAMILIES,REDACTED PERSONAL DATA,529.32,STAYPUT- FOST CARERS,PAYMENTS TO CARERS,REDACTED,REDACTED
03.11.2021,CHILDREN AND FAMILIES,REDACTED PERSONAL DATA,500,STAYPUT- FOST CARERS,PAYMENTS TO CARERS,REDACTED,REDACTED
03.11.2021,CHILDREN AND FAMILIES,REDACTED PERSONAL DATA,500,STAYPUT- FOST CARERS,PAYMENTS TO CARERS,REDACTED,REDACTED
03.11.2021,CHILDREN AND FAMILIES,REDACTED PERSONAL DATA,832,STAYPUT- FOST CARERS,PAYMENTS TO CARERS,REDACTED,REDACTED
03.11.2021,CHILDREN AND FAMILIES,REDACTED PERSONAL DATA,600,STAYPUT- FOST CARERS,PAYMENTS TO CARERS,REDACTED,REDACTED
03.11.2021,CHILDREN AND FAMILIES,REDACTED PERSONAL DATA,500,STAYPUT- FOST CARERS,PAYMENTS TO CARERS,REDACTED,REDACTED
03.11.2021,CHILDREN AND FAMILIES,REDACTED PERSONAL DATA,500,STAYPUT- FOST CARERS,PAYMENTS TO CARERS,REDACTED,REDACTED
03.11.2021,CHILDREN AND FAMILIES,REDACTED PERSONAL DATA,500,STAYPUT- FOST CARERS,PAYMENTS TO CARERS,REDACTED,REDACTED
03.11.2021,CHILDREN AND FAMILIES,REDACTED PERSONAL DATA,700,STAYPUT- FOST CARERS,PAYMENTS TO CARERS,REDACTED,REDACTED
03.11.2021,CHILDREN AND FAMILIES,REDACTED PERSONAL DATA,656,STAYPUT- FOST CARERS,PAYMENTS TO CARERS,REDACTED,REDACTED
03.11.2021,CHILDREN AND FAMILIES,REDACTED PERSONAL DATA,600,STAYPUT- FOST CARERS,PAYMENTS TO CARERS,REDACTED,REDACTED
03.11.2021,CHILDREN AND FAMILIES,REDACTED PERSONAL DATA,900,STAYPUT- FOST CARERS,PAYMENTS TO CARERS,REDACTED,REDACTED
03.11.2021,CHILDREN AND FAMILIES,REDACTED PERSONAL DATA,"8,035.71",STAYPUT- FOST CARERS,PAYMENTS TO CARERS,REDACTED,REDACTED
03.11.2021,CHILDREN AND FAMILIES,DULWICH WOOD CHILDRENS CENTRE,"1,038.50",SUPPORTING FAMILIES,EXTERNAL AGENCIES AND BODIES,5902493973,5001000099
03.11.2021,CHILDREN AND FAMILIES,ZENITH CARS LTD,935,TEAM B,CLIENT TRANSPORT,5902494172,1000070570
03.11.2021,CHILDREN AND FAMILIES,FIRST CHOICE DAY NURSERY,"1,473.33",TEAM B,OTHER PAYMENTS FOR CLIENTS,5902494194,1000075368
03.11.2021,CHILDREN AND FAMILIES,FIRST CHOICE DAY NURSERY,"1,473.33",TEAM B,OTHER PAYMENTS FOR CLIENTS,5902494195,1000075368
03.11.2021,CHILDREN AND FAMILIES,ZENITH CARS LTD,380,TEAM C,OTHER PAYMENTS FOR CLIENTS,5902494172,1000070570
03.11.2021,CHILDREN AND FAMILIES,ZENITH CARS LTD,375,TEAM D,CLIENT TRANSPORT,5902494172,1000070570
03.11.2021,CHILDREN AND FAMILIES,THE APPROPRIATE ADULT SERVICE LTD,"1,540.00",YOS MGMT & SUPPORT,EXTERNAL AGENCIES AND BODIES,5902494197,1000047682
03.11.2021,CHILDREN AND FAMILIES,SITA UK LTD (SUEZ),284.1,YOS MGMT & SUPPORT,OFFICE EXPENSES,5902494196,1000006452
03.11.2021,COMMUNITIES,BIZZY BODIES CIC,"3,800.00",NORTH EAST,GRANTS,5902494066,1000076131
03.11.2021,COMMUNITIES,FRIENDS OF DULWICH SQUARE,"3,000.00",SOUTH,GRANTS,5902494084,1000087477
03.11.2021,COMMUNITIES HRA,DEYNSFORD TENANT MANAGEMENT ORGANISATION,"82,595.75",D'EYNSFORD ESTATE,M&M ALLOWANCE CO-OPS,5902494003,1000075613
03.11.2021,CUSTOMER EXPERIENCE,BACK 2,505,CUSTOMER SUPPORT,FURNITURE PURCHASE & REPAIR,5902494069,1000043346
03.11.2021,CUSTOMER EXPERIENCE HGF,EMS EVENTS LTD,"13,869.00",CORONER'S,PROFESSIONAL FEES,5902493996,1000057494
03.11.2021,DSG,GOOSE GREEN PRIMARY AND NURSERY SCHOOL,"1,222.65",NURSERY ED GRANT 3 AND 4 YR OLDS,GRANTS,2103341770,1000070613
03.11.2021,DSG,LONDON EARLY YEARS FOUNDATION,"1,162.20",NURSERY ED GRANT 3 AND 4 YR OLDS,GRANTS,2103341769,1000077919
03.11.2021,DSG,LONDON EARLY YEARS FOUNDATION,"1,162.20",NURSERY ED GRANT 3 AND 4 YR OLDS,GRANTS,2103341772,1000077919
03.11.2021,DSG,LONDON EARLY YEARS FOUNDATION,"2,324.40",NURSERY ED GRANT 3 AND 4 YR OLDS,GRANTS,2103341771,1000077919
03.11.2021,EDUCATION,UNIVERSITY OF BATH,"9,250.00",SCHOLARSHIP SCHEME,EXTERNAL AGENCIES AND BODIES,5902494182,1000042106
03.11.2021,EMPLOYEE EXPERIENCE,LEARNING WORKZ LTD,800,CONTRACT COSTS � NON R/C,TRAINING,5902494183,1000087518
03.11.2021,ENVIRONMENT AND LEISURE,CRAWSHAW ARBORCARE/CENTRAL LONDON TREE SURVEYS LTD ,750,CAPITAL PS (LEISURE),CONSTR'N SUB CONTRACT - NON CERTIFICATED,5902493220,1000087502
03.11.2021,ENVIRONMENT DIRECTORATE,DUNDALK MOTORS LONDON,341.5,COMMERCIAL VEH CTRL A/C,VEHICLE REPAIRS & MAINTENANCE,5902494031,1000084820
03.11.2021,ENVIRONMENT DIRECTORATE,BOC LTD,271.96,ENGINEERING CRAFTS,OP LEASE/HIRE CHARGES:PLANT/EQUIP/FURNIT,5902494135,1001589
03.11.2021,ENVIRONMENT DIRECTORATE,I.S & G STEEL STOCKHOLDER LTD,360,GRANGE DOORS,MATERIALS,5902494152,1028293
03.11.2021,ENVIRONMENT DIRECTORATE,I.S & G STEEL STOCKHOLDER LTD,530,GRANGE DOORS,MATERIALS,5902494152,1028293
03.11.2021,ENVIRONMENT DIRECTORATE,F H BRUNDLE,"1,667.50",GRANGE DOORS,MATERIALS,5902494140,1082714
03.11.2021,F & C S EXCLUDING CORPORATE BUDGETS,ALLPAY LTD,"1,069.38",CASHIERS SLA,BANK CHARGES,5902494158,1000043001
03.11.2021,F & C S EXCLUDING CORPORATE BUDGETS,ALLPAY LTD,"2,522.84",CASHIERS SLA,BANK CHARGES,5902494156,1000043001
03.11.2021,F & C S EXCLUDING CORPORATE BUDGETS,FAMILY FUND TRADING LTD,"-1,085.85",SESS,OTHER PAYMENTS FOR CLIENTS,5902493997,1000071092
03.11.2021,F & C S EXCLUDING CORPORATE BUDGETS,FAMILY FUND TRADING LTD,-463.1,SESS,OTHER PAYMENTS FOR CLIENTS,5902493997,1000071092
03.11.2021,F & C S EXCLUDING CORPORATE BUDGETS,FAMILY FUND TRADING LTD,"8,269.00",SESS,OTHER PAYMENTS FOR CLIENTS,5902493994,1000071092
03.11.2021,F & C S EXCLUDING CORPORATE BUDGETS,FAMILY FUND TRADING LTD,"10,405.83",SESS,OTHER PAYMENTS FOR CLIENTS,5902493994,1000071092
03.11.2021,HOUSING GENERAL FUND,DAVID MILES & PARTNERS LTD,"7,001.79",CAPITAL PS (REGEN),CONSTRUCTION,5902494129,1000001119
03.11.2021,HOUSING GENERAL FUND,HARRADINES REMOVALS,"20,390.00",CAPITAL PS (REGEN),CONSTRUCTION MAIN CONTRACT,5902494056,1006511
03.11.2021,HOUSING GENERAL FUND,DAVID MILES & PARTNERS LTD,"3,000.00",CAPITAL PS (REGEN),CONSTRUCTION MAIN CONTRACT,5902494150,1000001119
03.11.2021,HOUSING HRA,MARTIN TOLHURST SOLICITORS,"30,000.00",CAPITAL PS (HRA),CAPITAL GRANTS,2103340330,1000077496
03.11.2021,HOUSING HRA,ANAYSSE-JACOBS SOLICITORS,"30,000.00",CAPITAL PS (HRA),CAPITAL GRANTS,2103340329,1000086247
03.11.2021,HOUSING HRA,PULSE ASSOCIATES LTD (T/A PULSE CONSULT),"8,450.00",CAPITAL PS (HRA),CONSTRUCTION FEES,5902494187,1000087233
03.11.2021,HOUSING HRA,CALFORD SEADEN LLP,"3,360.00",CAPITAL PS (HRA),CONSTRUCTION FEES  - EXTERNAL,5902494171,1061592
03.11.2021,HOUSING HRA,CALFORD SEADEN LLP,"3,664.18",CAPITAL PS (HRA),CONSTRUCTION FEES  - EXTERNAL,5902494131,1061592
03.11.2021,HOUSING HRA,CALFORD SEADEN LLP,"8,096.68",CAPITAL PS (HRA),CONSTRUCTION FEES  - EXTERNAL,5902494189,1061592
03.11.2021,HOUSING HRA,SHARPE PRITCHARD LLP,436,CAPITAL PS (HRA),CONSTRUCTION FEES  - EXTERNAL,5902494128,1790085
03.11.2021,HOUSING HRA,SHARPE PRITCHARD LLP,540,CAPITAL PS (HRA),CONSTRUCTION FEES  - EXTERNAL,5902494168,1790085
03.11.2021,HOUSING HRA,BAILY GARNER (HEALTH AND SAFETY) LIMITED,"4,550.00",CAPITAL PS (HRA),CONSTRUCTION FEES  - EXTERNAL,5902494157,1000033754
03.11.2021,HOUSING HRA,WALWORTH HOMES LTD,"28,820.64",CAPITAL PS (HRA),CONSTRUCTION FEES  - EXTERNAL,5902494125,1000079197
03.11.2021,HOUSING HRA,STANDAGE & CO LTD,"26,497.54",CAPITAL PS (HRA),CONSTRUCTION MAIN CONTRACT -CERTIFICATED,2103341774,4002817
03.11.2021,HOUSING HRA,DURKAN LTD,"129,701.16",CAPITAL PS (HRA),CONSTRUCTION MAIN CONTRACT -CERTIFICATED,2103341775,3000000960
03.11.2021,HOUSING HRA,BRITISH GAS TRADING LTD,"1,414.72",CAPITAL PS (HRA),CONSTRUCTION SITE COSTS,5902494126,1000055977
03.11.2021,HOUSING HRA,BRITISH GAS TRADING LTD,"1,464.93",CAPITAL PS (HRA),CONSTRUCTION SITE COSTS,5902494119,1000055977
03.11.2021,HOUSING HRA,STANNAH LIFT SERVICES LTD,"2,291.00",CAPITAL PS (HRA),UTILITIES INSTALLATION,5902494153,1063595
03.11.2021,HOUSING HRA,DACS LTD,"4,855.56",CAPITAL PS (HRA),UTILITIES INSTALLATION,5902494162,1000079747
03.11.2021,HOUSING HRA,AJM ADAPTIONS LTD,"4,500.00",CAPITAL PS (HRA),UTILITIES INSTALLATION,5902494121,1000080297
03.11.2021,HOUSING HRA,PRIMELY LTD,879,CAPITAL PS (REGEN),CONSTRUCTION FEES  - EXTERNAL,5902494186,1000087455
03.11.2021,LEISURE DIRECTORATE,KENT COUNTY COUNCIL - LASER,"2,668.85",HERITAGE CENTRE & WALWORTH LIBRARY,ELECTRICITY,5902494039,1000012926
03.11.2021,LEISURE DIRECTORATE,LLOYDS KONECRANES LIMITED,"3,545.00",SDM BUDGET,VEHICLE REPAIRS & MAINTENANCE,5902494019,1000017240
03.11.2021,LEISURE DIRECTORATE,CASTLE WATER LTD,301.07,SDM BUDGET,WATER,5902493963,1000078867
03.11.2021,LEISURE DIRECTORATE,ASKEWS & HOLTS LIBRARY SERVICES LTD,497.89,STOCK SERVICES,BOOKS & PUBLICATIONS,5902493865,1494168
03.11.2021,NEW BUILD,SHARPE PRITCHARD LLP,"2,916.00",DEVELOPMENT DELIVERY,PROFESSIONAL FEES,5902494143,1790085
03.11.2021,PLANNING AND TRANSPORT,P DUTSON ASSOCIATES LTD,660,DESIGN & CONSERVATION,PROFESSIONAL FEES,5902494177,1000060182
03.11.2021,PLANNING AND TRANSPORT,LONDON SOUTH BANK UNIVERSITY,"4,375.00",MAJOR APPLICATIONS,TRAINING,5902494127,1000051012
03.11.2021,PLANNING AND TRANSPORT,UNBOXED CONSULTING LTD,"54,650.00",PLANNING POLICY TEAM,CONSULTANTS SERVICES,5902494110,1000082469
03.11.2021,PLANNING AND TRANSPORT,LONDON SOUTH BANK UNIVERSITY,"6,935.00",VALIDATION & FAST TRACK,TRAINING,5902494130,1000051012
03.11.2021,REGENERATION,CURRIE & BROWN UK LTD,500,KENNINGTON WORKSHOPS,PROFESSIONAL FEES,5902494077,1000033455
03.11.2021,RESIDENT SERVICES,KENT COUNTY COUNCIL - LASER,446.79,SUPPORTED HOSTELS,CATERING MATERIALS & SUPPLIES,5902494009,1000012926
03.11.2021,RESIDENT SERVICES HGF,CROWN HOUSING LTD,"5,190.00",NIGHTLY TA (NSC),EXTERNAL AGENCIES AND BODIES,5902494190,1000075070
03.11.2021,RESIDENT SERVICES HGF,ANISTEN HOMES,"-1,274.89",PSL PLACEMENTS,EXTERNAL AGENCIES AND BODIES,5902493990,1000084438
03.11.2021,RESIDENT SERVICES HGF,ANISTEN HOMES,"25,633.22",PSL PLACEMENTS,EXTERNAL AGENCIES AND BODIES,5902493986,1000084438
03.11.2021,SBS OPERATIONS,TRAVIS PERKINS TRADING COMPANY LTD,"1,331.96",BOROUGH & BANKSIDE VOIDS,MATERIALS,5902493960,1514319
03.11.2021,SBS OPERATIONS,TRAVIS PERKINS TRADING COMPANY LTD,332.09,PECKHAM DD,MATERIALS,5902494037,1514319
03.11.2021,SBS OPERATIONS,TRAVIS PERKINS TRADING COMPANY LTD,783,SBS COMMUNAL REPAIRS,MATERIALS,5902494038,1514319
03.11.2021,SBS OPERATIONS,TRAVIS PERKINS TRADING COMPANY LTD,323.33,WALWORTH DD,MATERIALS,5902494040,1514319
03.11.2021,SOUTHWARK BUILDING SERVICES,TRAVIS PERKINS TRADING COMPANY LTD,400.8,STORES/LOGISTICS,CREDITORS -GR/IR CLEARING ACCOUNT,5902494062,1514319
03.11.2021,SOUTHWARK BUILDING SERVICES,TRAVIS PERKINS TRADING COMPANY LTD,481.16,STORES/LOGISTICS,CREDITORS -GR/IR CLEARING ACCOUNT,5902494062,1514319
03.11.2021,SOUTHWARK BUILDING SERVICES,TRAVIS PERKINS TRADING COMPANY LTD,862.08,STORES/LOGISTICS,CREDITORS -GR/IR CLEARING ACCOUNT,5902494062,1514319
03.11.2021,SOUTHWARK BUILDING SERVICES,TRAVIS PERKINS TRADING COMPANY LTD,"1,346.28",STORES/LOGISTICS,CREDITORS -GR/IR CLEARING ACCOUNT,5902494062,1514319
03.11.2021,SOUTHWARK BUILDING SERVICES,TRAVIS PERKINS TRADING COMPANY LTD,"1,729.92",STORES/LOGISTICS,CREDITORS -GR/IR CLEARING ACCOUNT,5902494064,1514319
03.11.2021,SOUTHWARK BUILDING SERVICES,CALLOW LOCKSMITHS LTD,307.8,STORES/LOGISTICS,CREDITORS -GR/IR CLEARING ACCOUNT,5902494154,11179552
03.11.2021,SOUTHWARK BUILDING SERVICES,CALLOW LOCKSMITHS LTD,307.8,STORES/LOGISTICS,CREDITORS -GR/IR CLEARING ACCOUNT,5902494161,11179552
03.11.2021,SOUTHWARK BUILDING SERVICES,CALLOW LOCKSMITHS LTD,329.76,STORES/LOGISTICS,CREDITORS -GR/IR CLEARING ACCOUNT,5902494154,11179552
03.11.2021,SOUTHWARK BUILDING SERVICES,CALLOW LOCKSMITHS LTD,416.5,STORES/LOGISTICS,CREDITORS -GR/IR CLEARING ACCOUNT,5902494159,11179552
03.11.2021,SOUTHWARK BUILDING SERVICES,CALLOW LOCKSMITHS LTD,606.48,STORES/LOGISTICS,CREDITORS -GR/IR CLEARING ACCOUNT,5902494154,11179552
03.11.2021,SOUTHWARK BUILDING SERVICES,CALLOW LOCKSMITHS LTD,"2,049.18",STORES/LOGISTICS,CREDITORS -GR/IR CLEARING ACCOUNT,5902494161,11179552
03.11.2021,SOUTHWARK BUILDING SERVICES,A T & T (GB LTD ),"3,186.00",STORES/LOGISTICS,CREDITORS -GR/IR CLEARING ACCOUNT,5902494117,1000078342
03.11.2021,SOUTHWARK BUILDING SERVICES,INDUSTRIAL CHEMICAL EXPERTS LIMITED,971.25,STORES/LOGISTICS,CREDITORS -GR/IR CLEARING ACCOUNT,5902494115,1000083167
03.11.2021,SOUTHWARK BUILDING SERVICES,INDUSTRIAL CHEMICAL EXPERTS LIMITED,"1,990.00",STORES/LOGISTICS,CREDITORS -GR/IR CLEARING ACCOUNT,5902494115,1000083167
03.11.2021,STRATEGIC FINANCING BUDGETS,ARTHUR J GALLAGHER INSURANCE BROKER,"2,240.00",LIABILITY RELATED INSURANCE,PROPERTY INSURANCE COSTS,5902494076,1000082644
04.11.2021,ADULT SOCIAL CARE,REDACTED PERSONAL DATA,500,APPOINTEESHIPS,OTHER PAYMENTS FOR CLIENTS,REDACTED,REDACTED
04.11.2021,ADULT SOCIAL CARE,SURREY DOCKS FARM PROVIDENT SOCIETY,480,LD LTS 18-64,DAYCARE,2103341975,1000000958
04.11.2021,ADULT SOCIAL CARE,SURREY DOCKS FARM PROVIDENT SOCIETY,487.5,LD LTS 18-64,DAYCARE,2103341977,1000000958
04.11.2021,ADULT SOCIAL CARE,SURREY DOCKS FARM PROVIDENT SOCIETY,720,LD LTS 18-64,DAYCARE,2103341976,1000000958
04.11.2021,ADULT SOCIAL CARE,THE CAMDEN SOCIETY (SOCIAL CARE),330.24,LD LTS 18-64,DAYCARE,2103341921,1000036369
04.11.2021,ADULT SOCIAL CARE,THE CAMDEN SOCIETY (SOCIAL CARE),384,LD LTS 18-64,DAYCARE,2103341915,1000036369
04.11.2021,ADULT SOCIAL CARE,THE CAMDEN SOCIETY (SOCIAL CARE),384,LD LTS 18-64,DAYCARE,2103341917,1000036369
04.11.2021,ADULT SOCIAL CARE,THE CAMDEN SOCIETY (SOCIAL CARE),384,LD LTS 18-64,DAYCARE,2103341929,1000036369
04.11.2021,ADULT SOCIAL CARE,THE CAMDEN SOCIETY (SOCIAL CARE),541.44,LD LTS 18-64,DAYCARE,2103341916,1000036369
04.11.2021,ADULT SOCIAL CARE,THE CAMDEN SOCIETY (SOCIAL CARE),564.48,LD LTS 18-64,DAYCARE,2103341923,1000036369
04.11.2021,ADULT SOCIAL CARE,THE CAMDEN SOCIETY (SOCIAL CARE),608,LD LTS 18-64,DAYCARE,2103341913,1000036369
04.11.2021,ADULT SOCIAL CARE,THE CAMDEN SOCIETY (SOCIAL CARE),608,LD LTS 18-64,DAYCARE,2103341924,1000036369
04.11.2021,ADULT SOCIAL CARE,THE CAMDEN SOCIETY (SOCIAL CARE),722.88,LD LTS 18-64,DAYCARE,2103341927,1000036369
04.11.2021,ADULT SOCIAL CARE,THE CAMDEN SOCIETY (SOCIAL CARE),768,LD LTS 18-64,DAYCARE,2103341926,1000036369
04.11.2021,ADULT SOCIAL CARE,THE CAMDEN SOCIETY (SOCIAL CARE),768,LD LTS 18-64,DAYCARE,2103341931,1000036369
04.11.2021,ADULT SOCIAL CARE,THE CAMDEN SOCIETY (SOCIAL CARE),912,LD LTS 18-64,DAYCARE,2103341918,1000036369
04.11.2021,ADULT SOCIAL CARE,THE CAMDEN SOCIETY (SOCIAL CARE),969.6,LD LTS 18-64,DAYCARE,2103341922,1000036369
04.11.2021,ADULT SOCIAL CARE,THE CAMDEN SOCIETY (SOCIAL CARE),"1,872.00",LD LTS 18-64,DAYCARE,2103341971,1000036369
04.11.2021,ADULT SOCIAL CARE,THE CAMDEN SOCIETY (SOCIAL CARE),"2,048.00",LD LTS 18-64,DAYCARE,2103341930,1000036369
04.11.2021,ADULT SOCIAL CARE,THE CAMDEN SOCIETY (SOCIAL CARE),"2,528.00",LD LTS 18-64,DAYCARE,2103341932,1000036369
04.11.2021,ADULT SOCIAL CARE,THE CAMDEN SOCIETY (SOCIAL CARE),"2,827.20",LD LTS 18-64,DAYCARE,2103341914,1000036369
04.11.2021,ADULT SOCIAL CARE,THE CAMDEN SOCIETY (SOCIAL CARE),"2,887.20",LD LTS 18-64,DAYCARE,2103341919,1000036369
04.11.2021,ADULT SOCIAL CARE,LONDON CARE LTD,"1,364.56",MEM LTS 65+,HOMECARE - C&V,2103341963,1000003398
04.11.2021,ADULT SOCIAL CARE,LONDON CARE LTD,295.04,MH LTS 18-64,HOMECARE - C&V,2103341964,1000003398
04.11.2021,ADULT SOCIAL CARE,METROPOLITAN HOUSING TRUST LTD,"21,825.17",OLDER PEOPLES HUBS,EXTERNAL AGENCIES AND BODIES,5902494387,1000047547
04.11.2021,ADULT SOCIAL CARE,MARTIN VITERA LTD,365.38,ORIENT ST � RESPITE,PREMISES CLEANING,5902494239,1560597
04.11.2021,ADULT SOCIAL CARE,LONDON CARE LTD,"1,161.72",PHY LTS 18-64,HOMECARE - C&V,2103341956,1000003398
04.11.2021,ADULT SOCIAL CARE,SAGECARE LTD,516.32,PHY LTS 18-64,HOMECARE - C&V,2103342002,1000080924
04.11.2021,ADULT SOCIAL CARE,SAGECARE LTD,788.31,PHY LTS 18-64,HOMECARE - C&V,2103341989,1000080924
04.11.2021,ADULT SOCIAL CARE,SAGECARE LTD,834.41,PHY LTS 18-64,HOMECARE - C&V,2103341986,1000080924
04.11.2021,ADULT SOCIAL CARE,SAGECARE LTD,"1,286.19",PHY LTS 18-64,HOMECARE - C&V,2103341988,1000080924
04.11.2021,ADULT SOCIAL CARE,LONDON CARE LTD,313.48,PHY LTS 65+,HOMECARE - C&V,2103341970,1000003398
04.11.2021,ADULT SOCIAL CARE,LONDON CARE LTD,556.8,PHY LTS 65+,HOMECARE - C&V,2103341965,1000003398
04.11.2021,ADULT SOCIAL CARE,LONDON CARE LTD,622.35,PHY LTS 65+,HOMECARE - C&V,2103341967,1000003398
04.11.2021,ADULT SOCIAL CARE,LONDON CARE LTD,660.55,PHY LTS 65+,HOMECARE - C&V,2103341961,1000003398
04.11.2021,ADULT SOCIAL CARE,LONDON CARE LTD,736.28,PHY LTS 65+,HOMECARE - C&V,2103341955,1000003398
04.11.2021,ADULT SOCIAL CARE,LONDON CARE LTD,972.37,PHY LTS 65+,HOMECARE - C&V,2103341972,1000003398
04.11.2021,ADULT SOCIAL CARE,LONDON CARE LTD,"1,161.72",PHY LTS 65+,HOMECARE - C&V,2103341958,1000003398
04.11.2021,ADULT SOCIAL CARE,LONDON CARE LTD,"1,230.78",PHY LTS 65+,HOMECARE - C&V,2103341973,1000003398
04.11.2021,ADULT SOCIAL CARE,LONDON CARE LTD,"2,360.32",PHY LTS 65+,HOMECARE - C&V,2103341957,1000003398
04.11.2021,ADULT SOCIAL CARE,SAGECARE LTD,258.16,PHY LTS 65+,HOMECARE - C&V,2103341996,1000080924
04.11.2021,ADULT SOCIAL CARE,SAGECARE LTD,387.24,PHY LTS 65+,HOMECARE - C&V,2103341994,1000080924
04.11.2021,ADULT SOCIAL CARE,SAGECARE LTD,401.07,PHY LTS 65+,HOMECARE - C&V,2103341990,1000080924
04.11.2021,ADULT SOCIAL CARE,SAGECARE LTD,673.06,PHY LTS 65+,HOMECARE - C&V,2103342007,1000080924
04.11.2021,ADULT SOCIAL CARE,SAGECARE LTD,723.77,PHY LTS 65+,HOMECARE - C&V,2103341999,1000080924
04.11.2021,ADULT SOCIAL CARE,SAGECARE LTD,774.48,PHY LTS 65+,HOMECARE - C&V,2103342003,1000080924
04.11.2021,ADULT SOCIAL CARE,SAGECARE LTD,"1,083.35",PHY LTS 65+,HOMECARE - C&V,2103341981,1000080924
04.11.2021,ADULT SOCIAL CARE,SAGECARE LTD,"1,106.40",PHY LTS 65+,HOMECARE - C&V,2103341979,1000080924
04.11.2021,ADULT SOCIAL CARE,SAGECARE LTD,"1,235.48",PHY LTS 65+,HOMECARE - C&V,2103342005,1000080924
04.11.2021,ADULT SOCIAL CARE,SAGECARE LTD,"1,249.31",PHY LTS 65+,HOMECARE - C&V,2103341987,1000080924
04.11.2021,ADULT SOCIAL CARE,SAGECARE LTD,"3,093.31",PHY LTS 65+,HOMECARE - C&V,2103341997,1000080924
04.11.2021,ADULT SOCIAL CARE,SNOWBALL CARE UK LTD,912,PHY LTS 65+,HOMECARE - SPOT,2103341946,1000081483
04.11.2021,ADULT SOCIAL CARE,SNOWBALL CARE UK LTD,912,PHY LTS 65+,HOMECARE - SPOT,2103341947,1000081483
04.11.2021,ADULT SOCIAL CARE,SNOWBALL CARE UK LTD,912,PHY LTS 65+,HOMECARE - SPOT,2103341948,1000081483
04.11.2021,ADULT SOCIAL CARE,SNOWBALL CARE UK LTD,"1,696.00",PHY LTS 65+,HOMECARE - SPOT,2103341944,1000081483
04.11.2021,ADULT SOCIAL CARE,SNOWBALL CARE UK LTD,"1,696.00",PHY LTS 65+,HOMECARE - SPOT,2103341945,1000081483
04.11.2021,ADULT SOCIAL CARE,SNOWBALL CARE UK LTD,"1,696.00",PHY LTS 65+,HOMECARE - SPOT,2103341951,1000081483
04.11.2021,ADULT SOCIAL CARE,SAGECARE LTD,729.92,PHY STS 18-64,HOMECARE - IC,2103342006,1000080924
04.11.2021,ADULT SOCIAL CARE,SAGECARE LTD,894.34,PHY STS 18-64,HOMECARE - IC,2103341993,1000080924
04.11.2021,ADULT SOCIAL CARE,LONDON CARE LTD,444.1,PHY STS 65+,HOMECARE - IC,2103341968,1000003398
04.11.2021,ADULT SOCIAL CARE,SAGECARE LTD,516.32,PHY STS 65+,HOMECARE - IC,2103342004,1000080924
04.11.2021,ADULT SOCIAL CARE,SAGECARE LTD,885.92,PHY STS 65+,HOMECARE - IC,2103341991,1000080924
04.11.2021,ADULT SOCIAL CARE,SAGECARE LTD,"1,083.35",PHY STS 65+,HOMECARE - IC,2103342010,1000080924
04.11.2021,ADULT SOCIAL CARE,SAGECARE LTD,"1,281.58",PHY STS 65+,HOMECARE - IC,2103342011,1000080924
04.11.2021,ADULT SOCIAL CARE,SYKES CHOICE LTD,"1,200.00",SAFEGUARDING & DOLS,EXTERNAL AGENCIES AND BODIES,5902494376,1000082690
04.11.2021,ADULT SOCIAL CARE,SURREY DOCKS FARM PROVIDENT SOCIETY,500,SOCIAL ISOLATION,DAYCARE,2103341978,1000000958
04.11.2021,ADULT SOCIAL CARE,CITY MOBILITY LTD,260,SOUTHWARK RESOURCE CENTRE,EQUIPMENT PURCHASE & REPAIR,5902494249,1000053995
04.11.2021,ADULT SOCIAL CARE,STREETSCENE ADDICTION RECOVERY LTD,265,SUB LTS 18-64,CLIENT TRANSPORT,2103341912,11221787
04.11.2021,ASSET MANAGEMENT,SIMON L TAYLOR LTD,700,DISREPAIR,PAYMENTS FOR LEGAL SERVICES,5902494199,1000056151
04.11.2021,ASSET MANAGEMENT,ARMINA LTD,"1,845.13",DISREPAIR,PAYMENTS FOR LEGAL SERVICES,2103341911,3000002121
04.11.2021,ASSET MANAGEMENT,KINGSFIELD COMPUTER PRODUCTS LTD,569.94,PROGRAMME & ASSET,SOFTWARE,5902494357,1000086087
04.11.2021,ASSET MANAGEMENT HGF,ROYAL MAIL GROUP LTD,"1,346.62",160 TOOLEY ST.,POSTAGES,5902493042,1000061535
04.11.2021,ASSET MANAGEMENT HGF,ROYAL MAIL GROUP LTD,"1,682.29",160 TOOLEY ST.,POSTAGES,5902494216,1000061535
04.11.2021,ASSET MANAGEMENT HGF,ROYAL MAIL GROUP LTD,"2,201.00",160 TOOLEY ST.,POSTAGES,5902494219,1000061535
04.11.2021,ASSET MANAGEMENT HGF,KENT COUNTY COUNCIL - LASER,"1,218.64",BOURNEMOUTH GROVE,ELECTRICITY,5902494218,1000012926
04.11.2021,ASSET MANAGEMENT HGF,NPOWER LTD,625.85,CURLEW HOUSE,ELECTRICITY,5902494220,1000078994
04.11.2021,ASSET MANAGEMENT HGF,NPOWER LTD,"1,053.62",CURLEW HOUSE,ELECTRICITY,5902494221,1000078994
04.11.2021,ASSET MANAGEMENT HGF,KENT COUNTY COUNCIL - LASER,"8,360.46",QUEENS RD 1 (BLOCK F),ELECTRICITY,5902494225,1000012926
04.11.2021,ASSET MANAGEMENT HGF,KENT COUNTY COUNCIL - LASER,"2,595.99",QUEENS ROAD 2 (BLOCK J),ELECTRICITY,5902494214,1000012926
04.11.2021,CHILDREN AND ADULT,CBS MAINTENANCE SERVICES LTD,"51,059.03",CAPITAL PS (EDUCATION),CONSTRUCTION FEES - INTERNAL,2103339145,3000001518
04.11.2021,CHILDREN AND FAMILIES,JUSTICE AND LAW SOLICITORS,"3,592.20",16 PLUS TEAM,EXTERNAL AGENCIES AND BODIES,5902494230,1000087490
04.11.2021,CHILDREN AND FAMILIES,ACAINN LTD,"1,950.00",ADOPT LONDON SOUTH,EXTERNAL AGENCIES AND BODIES,5902494344,1000083763
04.11.2021,CHILDREN AND FAMILIES,PAULETTE NICHOLLS,525,ADOPT LONDON SOUTH,INTERPRETING SERVICES,5902494346,1000086963
04.11.2021,CHILDREN AND FAMILIES,PLAY THERAPY SERVICES LTD,423.5,ADOPTION SUPP FUND,PROFESSIONAL FEES,5902494340,1000085546
04.11.2021,CHILDREN AND FAMILIES,REDACTED PERSONAL DATA,300,CARELEAVER UNIV SUPP,CLIENT TRANSPORT,REDACTED,REDACTED
04.11.2021,CHILDREN AND FAMILIES,REDACTED PERSONAL DATA,700,CARELEAVER UNIV SUPP,OTHER PAYMENTS FOR CLIENTS,REDACTED,REDACTED
04.11.2021,CHILDREN AND FAMILIES,INTERPRETING DIRECT CO (UK) LTD,"16,677.20",CENTRAL SUPPORT,TRANSLATION SERVICES,5902494207,1000070133
04.11.2021,CHILDREN AND FAMILIES,REDACTED PERSONAL DATA,602.25,FAMILY ASSESSMENTS,RESIDENTIAL CARE,REDACTED,REDACTED
04.11.2021,CHILDREN AND FAMILIES,REDACTED PERSONAL DATA,"1,674.75",FAMILY ASSESSMENTS,RESIDENTIAL CARE,REDACTED,REDACTED
04.11.2021,CHILDREN AND FAMILIES,REDACTED PERSONAL DATA,"5,684.25",FAMILY ASSESSMENTS,RESIDENTIAL CARE,REDACTED,REDACTED
04.11.2021,CHILDREN AND FAMILIES,REDACTED PERSONAL DATA,300,FE SUPPORT,CLIENT TRANSPORT,REDACTED,REDACTED
04.11.2021,CHILDREN AND FAMILIES,REDACTED PERSONAL DATA,300,FE SUPPORT,CLIENT TRANSPORT,REDACTED,REDACTED
04.11.2021,CHILDREN AND FAMILIES,REDACTED PERSONAL DATA,300,FE SUPPORT,CLIENT TRANSPORT,REDACTED,REDACTED
04.11.2021,CHILDREN AND FAMILIES,REDACTED PERSONAL DATA,500,FE SUPPORT,OTHER PAYMENTS FOR CLIENTS,REDACTED,REDACTED
04.11.2021,CHILDREN AND FAMILIES,REDACTED PERSONAL DATA,500,FE SUPPORT,OTHER PAYMENTS FOR CLIENTS,REDACTED,REDACTED
04.11.2021,CHILDREN AND FAMILIES,REDACTED PERSONAL DATA,500,FE SUPPORT,OTHER PAYMENTS FOR CLIENTS,REDACTED,REDACTED
04.11.2021,CHILDREN AND FAMILIES,BRITISH DYSLEXIA ASSOCIATION,375,P & R CARE TEAM,EXTERNAL AGENCIES AND BODIES,5902493209,1000063328
04.11.2021,CHILDREN AND FAMILIES,SEEN & HEARD THERAPIES,300,P & R CARE TEAM,OTHER PAYMENTS FOR CLIENTS,5902494208,1000086621
04.11.2021,CHILDREN AND FAMILIES,SEEN & HEARD THERAPIES,375,P & R CARE TEAM,OTHER PAYMENTS FOR CLIENTS,5902494210,1000086621
04.11.2021,CHILDREN AND FAMILIES,PG PASSENGER SERVICES LIMITED,260,P & R CARE TEAM,OTHER PAYMENTS FOR CLIENTS,5902493215,1000087367
04.11.2021,CHILDREN AND FAMILIES,REDACTED PERSONAL DATA,375,P & R CARE TEAM,OTHER PAYMENTS FOR CLIENTS,REDACTED,REDACTED
04.11.2021,CHILDREN AND FAMILIES,ARC COMMUNITY TRUSTEES,650,SPECIAL GUARDIANSHIP,PAYMENTS TO CARERS,5902494233,1000046206
04.11.2021,CHILDREN AND FAMILIES,BE BRIGHT PROJECT LTD,705.52,TEAM A,PAYMENTS TO CARERS,5902494234,1000086212
04.11.2021,CHILDREN AND FAMILIES,ZED SW LTD,"1,075.00",UASC CARELEAVERS,EXTERNAL AGENCIES AND BODIES,5902494213,1000087466
04.11.2021,COMMUNITIES,BRIMTONROY T&RA,"2,000.00",EAST CENTRAL,GRANTS,5902494383,1000001919
04.11.2021,COMMUNITIES,BRIMTONROY T&RA,"2,000.00",EAST CENTRAL,GRANTS,5902494384,1000001919
04.11.2021,COMMUNITIES,BRIMTONROY T&RA,"3,000.00",EAST CENTRAL,GRANTS,5902494382,1000001919
04.11.2021,COMMUNITIES,ARARA (ASTBURY ROAD AREA RESIDENTS ASSOCIATION),"3,500.00",EAST CENTRAL,GRANTS,5902494375,1000006449
04.11.2021,COMMUNITIES,SAGECARE LTD,"1,180.16",NO RECOURSE TO PUBLIC FUNDS,HOMECARE - C&V,2103341985,1000080924
04.11.2021,COMMUNITIES,SAGECARE LTD,"1,733.36",NO RECOURSE TO PUBLIC FUNDS,HOMECARE - C&V,2103341982,1000080924
04.11.2021,COMMUNITIES,ADDICTION RECOVERY CENTRES LTD,"1,200.00",TIER 4 SERVICES,MEDICAL / HEALTH & SAFETY SERVICES,5902494201,1000060881
04.11.2021,CUSTOMER EXPERIENCE,KENT COUNTY COUNCIL - LASER,"1,736.20",CUSTOMER SUPPORT,ELECTRICITY,5902494212,1000012926
04.11.2021,CUSTOMER EXPERIENCE,PENNA PLC,"3,984.00",CUSTOMER SUPPORT,OTHER EMPLOYEE EXPENSES,5902494211,1000050664
04.11.2021,DSG,KINTORE WAY CHILDRENS CENTRE,"65,145.10",KINTORE WAY CHILDRENS CENTRE,SCHOOLS CAPITATION,2103341784,5001000047
04.11.2021,DSG,ALFRED SALTER PRIMARY SCHOOL,"26,390.88",NURSERY ED GRANT 3 AND 4 YR OLDS,SCHOOLS CAPITATION,2103341794,5001000005
04.11.2021,DSG,BESSEMER GRANGE PRIMARY SCHOOL,"15,064.92",NURSERY ED GRANT 3 AND 4 YR OLDS,SCHOOLS CAPITATION,2103341795,5001000009
04.11.2021,DSG,BRUNSWICK PARK PRIMARY SCHOOL,"36,663.00",NURSERY ED GRANT 3 AND 4 YR OLDS,SCHOOLS CAPITATION,2103341796,5001000013
04.11.2021,DSG,CAMELOT PRIMARY SCHOOL,"3,307.60",NURSERY ED GRANT 3 AND 4 YR OLDS,SCHOOLS CAPITATION,2103341786,5001000014
04.11.2021,DSG,DOG KENNEL HILL PRIMARY SCHOOL,"6,482.00",NURSERY ED GRANT 3 AND 4 YR OLDS,SCHOOLS CAPITATION,2103341787,5001000025
04.11.2021,DSG,GRANGE PRIMARY SCHOOL,"8,501.94",NURSERY ED GRANT 3 AND 4 YR OLDS,SCHOOLS CAPITATION,2103341788,5001000029
04.11.2021,DSG,FRIARS PRIMARY (FOUNDATION) SCHOOL,"7,934.25",NURSERY ED GRANT 3 AND 4 YR OLDS,SCHOOLS CAPITATION,2103341800,5001000033
04.11.2021,DSG,HEBER PRIMARY SCHOOL,"6,286.01",NURSERY ED GRANT 3 AND 4 YR OLDS,SCHOOLS CAPITATION,2103341789,5001000035
04.11.2021,DSG,IVYDALE PRIMARY SCHOOL,"20,758.68",NURSERY ED GRANT 3 AND 4 YR OLDS,SCHOOLS CAPITATION,2103341790,5001000038
04.11.2021,DSG,JOHN RUSKIN PRIMARY SCHOOL,"3,486.60",NURSERY ED GRANT 3 AND 4 YR OLDS,SCHOOLS CAPITATION,2103341791,5001000040
04.11.2021,DSG,KEYWORTH PRIMARY SCHOOL,"4,904.46",NURSERY ED GRANT 3 AND 4 YR OLDS,SCHOOLS CAPITATION,2103341792,5001000041
04.11.2021,DSG,RIVERSIDE PRIMARY SCHOOL,"7,979.00",NURSERY ED GRANT 3 AND 4 YR OLDS,SCHOOLS CAPITATION,2103341793,5001000056
04.11.2021,DSG,ST ANTHONYS RC SCHOOL,"14,062.62",NURSERY ED GRANT 3 AND 4 YR OLDS,SCHOOLS CAPITATION,2103341799,5001000064
04.11.2021,DSG,ST JOSEPHS RC PRIMARY SCHOOL,"4,701.45",NURSERY ED GRANT 3 AND 4 YR OLDS,SCHOOLS CAPITATION,2103341797,5001000077
04.11.2021,DSG,ST PETERS CE SCHOOL,"4,915.20",NURSERY ED GRANT 3 AND 4 YR OLDS,SCHOOLS CAPITATION,2103341798,5001000083
04.11.2021,DSG,BDO LLP,"7,399.00",SCHOOLS AUDIT,PAYMENTS FOR FINANCIAL SERVICES,5902493314,1000057898
04.11.2021,DSG,THE GROVE CHILDRENS CENTRE,"13,120.05",THE GROVE NURSERY SCHOOL,SCHOOLS CAPITATION,2103341785,5001000090
04.11.2021,EDUCATION,PULSE HEALTHCARE LTD,308,SCH TRANS � TRAVEL,AGENCY STAFF,5902494245,1000035063
04.11.2021,EDUCATION,PULSE HEALTHCARE LTD,308,SCH TRANS � TRAVEL,AGENCY STAFF,5902494246,1000035063
04.11.2021,EDUCATION,ROOTS AND SHOOTS,640.8,SCH TRANS � TRAVEL,OTHER PAYMENTS FOR CLIENTS,5902494280,1000037582
04.11.2021,EDUCATION,CASTLE WATER LTD,419.05,THOMAS CALTON CENTRE,WATER,5902494391,1000078867
04.11.2021,EDUCATION,CASTLE WATER LTD,627.27,THOMAS CALTON CENTRE,WATER,5902494394,1000078867
04.11.2021,EDUCATION,CASTLE WATER LTD,870.77,THOMAS CALTON CENTRE,WATER,5902494388,1000078867
04.11.2021,EMPLOYEE EXPERIENCE,WEB LABS LTD,375,HR PAYROLL COSTS,RECRUITMENT ADVERTISING,5902494243,1000039819
04.11.2021,EMPLOYEE EXPERIENCE,SHL UK LTD,"13,400.00",OCCUPATIONAL ASSESSMENT,CONSULTANTS SERVICES,5902493484,1050652
04.11.2021,ENVIRONMENT AND LEISURE,STREET TREE CARE LTD,"3,900.00",CAPITAL PS (LEISURE),CONSTRUCTION FEES,5902492947,1000055901
04.11.2021,ENVIRONMENT AND LEISURE,CYCLEHOOP LTD,600,CAPITAL PS (LEISURE),CONSTRUCTION MAIN CONTRACT -CERTIFICATED,5902494263,1000057894
04.11.2021,ENVIRONMENT AND LEISURE,CYCLEHOOP LTD,800,CAPITAL PS (LEISURE),CONSTRUCTION MAIN CONTRACT -CERTIFICATED,5902494263,1000057894
04.11.2021,ENVIRONMENT AND LEISURE,CYCLEHOOP LTD,"1,400.00",CAPITAL PS (LEISURE),CONSTRUCTION MAIN CONTRACT -CERTIFICATED,5902494263,1000057894
04.11.2021,ENVIRONMENT AND LEISURE,EVERYONE HEALTH LTD,"3,894.00",STOP SMOKING,EXTERNAL AGENCIES AND BODIES,5902494316,1000084159
04.11.2021,ENVIRONMENT DIRECTORATE,RADNES SERVICES LTD,308,COMMERCIAL VEH CTRL A/C,HIRED VEHICLES,5902494337,1000080334
04.11.2021,ENVIRONMENT DIRECTORATE,RADNES SERVICES LTD,773.5,COMMERCIAL VEH CTRL A/C,HIRED VEHICLES,5902494328,1000080334
04.11.2021,ENVIRONMENT DIRECTORATE,RADNES SERVICES LTD,773.5,COMMERCIAL VEH CTRL A/C,HIRED VEHICLES,5902494333,1000080334
04.11.2021,ENVIRONMENT DIRECTORATE,VOLKSWAGEN FINANCIAL SERVICES (UK),380,FLEET INSURANCE WORKS,TRANSPORT INSURANCE COSTS,5902494252,1000079245
04.11.2021,ENVIRONMENT DIRECTORATE,VOLKSWAGEN FINANCIAL SERVICES (UK),540,FLEET INSURANCE WORKS,TRANSPORT INSURANCE COSTS,5902494254,1000079245
04.11.2021,ENVIRONMENT DIRECTORATE,VOLKSWAGEN FINANCIAL SERVICES (UK),625,FLEET INSURANCE WORKS,TRANSPORT INSURANCE COSTS,5902494255,1000079245
04.11.2021,ENVIRONMENT DIRECTORATE,VOLKSWAGEN FINANCIAL SERVICES (UK),755,FLEET INSURANCE WORKS,TRANSPORT INSURANCE COSTS,5902494253,1000079245
04.11.2021,ENVIRONMENT DIRECTORATE,MHC TRAFFIC LTD,320,PROJECT SUPPORT,OFFICE EXPENSES,5902494237,1000081233
04.11.2021,ENVIRONMENT DIRECTORATE,MHC TRAFFIC LTD,320,PROJECT SUPPORT,OFFICE EXPENSES,5902494238,1000081233
04.11.2021,ENVIRONMENT DIRECTORATE,ARCHANT COMMUNITY MEDIA LIMITED,450,RESIDENTIAL SERVICES,MARKETING & PUBLICITY SERVICES,5902494209,1000053175
04.11.2021,ENVIRONMENT DIRECTORATE,CALM MEDIATION,"3,675.00",SASBU,CONSULTANTS SERVICES,5902494203,1000086031
04.11.2021,ENVIRONMENT DIRECTORATE,PROFESSIONAL WITNESSES LTD,"2,985.05",TEAMS 1 TO 12,PROFESSIONAL FEES,5902493011,1000077492
04.11.2021,F & C S EXCLUDING CORPORATE BUDGETS,REDACTED PERSONAL DATA,500,SESS,OTHER PAYMENTS FOR CLIENTS,REDACTED,REDACTED
04.11.2021,F & C S EXCLUDING CORPORATE BUDGETS,REDACTED PERSONAL DATA,500,SESS,OTHER PAYMENTS FOR CLIENTS,REDACTED,REDACTED
04.11.2021,F & C S EXCLUDING CORPORATE BUDGETS,REDACTED PERSONAL DATA,500,SESS,OTHER PAYMENTS FOR CLIENTS,REDACTED,REDACTED
04.11.2021,F & C S EXCLUDING CORPORATE BUDGETS,REDACTED PERSONAL DATA,500,SESS,OTHER PAYMENTS FOR CLIENTS,REDACTED,REDACTED
04.11.2021,F & C S EXCLUDING CORPORATE BUDGETS,REDACTED PERSONAL DATA,500,SESS,OTHER PAYMENTS FOR CLIENTS,REDACTED,REDACTED
04.11.2021,F & C S EXCLUDING CORPORATE BUDGETS,REDACTED PERSONAL DATA,500,SESS,OTHER PAYMENTS FOR CLIENTS,REDACTED,REDACTED
04.11.2021,F & C S EXCLUDING CORPORATE BUDGETS,REDACTED PERSONAL DATA,500,SESS,OTHER PAYMENTS FOR CLIENTS,REDACTED,REDACTED
04.11.2021,F & C S EXCLUDING CORPORATE BUDGETS,REDACTED PERSONAL DATA,500,SESS,OTHER PAYMENTS FOR CLIENTS,REDACTED,REDACTED
04.11.2021,F & C S EXCLUDING CORPORATE BUDGETS,REDACTED PERSONAL DATA,500,SESS,OTHER PAYMENTS FOR CLIENTS,REDACTED,REDACTED
04.11.2021,F & C S EXCLUDING CORPORATE BUDGETS,REDACTED PERSONAL DATA,500,SESS,OTHER PAYMENTS FOR CLIENTS,REDACTED,REDACTED
04.11.2021,F & C S EXCLUDING CORPORATE BUDGETS,REDACTED PERSONAL DATA,500,SESS,OTHER PAYMENTS FOR CLIENTS,REDACTED,REDACTED
04.11.2021,F & C S EXCLUDING CORPORATE BUDGETS,REDACTED PERSONAL DATA,500,SESS,OTHER PAYMENTS FOR CLIENTS,REDACTED,REDACTED
04.11.2021,F & C S EXCLUDING CORPORATE BUDGETS,REDACTED PERSONAL DATA,500,SESS,OTHER PAYMENTS FOR CLIENTS,REDACTED,REDACTED
04.11.2021,F & C S EXCLUDING CORPORATE BUDGETS,REDACTED PERSONAL DATA,500,SESS,OTHER PAYMENTS FOR CLIENTS,REDACTED,REDACTED
04.11.2021,F & C S EXCLUDING CORPORATE BUDGETS,REDACTED PERSONAL DATA,500,SESS,OTHER PAYMENTS FOR CLIENTS,REDACTED,REDACTED
04.11.2021,HOUSING,PENNINGTON CHOICES LTD,"24,020.51",PENNINGTON,I-WORLD CONTRACTORS HOLDING ACCOUNT,5902493309,1000067888
04.11.2021,HOUSING HRA,CALFORD SEADEN LLP,"3,291.30",CAPITAL PS (HRA),CONSTRUCTION FEES  - EXTERNAL,5902494206,1061592
04.11.2021,HOUSING HRA,CALFORD SEADEN LLP,"3,663.96",CAPITAL PS (HRA),CONSTRUCTION FEES  - EXTERNAL,5902493013,1061592
04.11.2021,HOUSING HRA,CALFORD SEADEN LLP,"12,102.22",CAPITAL PS (HRA),CONSTRUCTION FEES  - EXTERNAL,5902494310,1061592
04.11.2021,HOUSING HRA,TERRAIN SURVEYS LTD,"3,315.00",CAPITAL PS (HRA),CONSTRUCTION FEES  - EXTERNAL,5902494399,1000084727
04.11.2021,HOUSING HRA,COTTRELL AND VERMEULEN ARCH LTD,"3,442.50",CAPITAL PS (HRA),CONSTRUCTION FEES - ARCHITECT,5902494392,1000012119
04.11.2021,HOUSING HRA,LEVITT BERNSTEIN ASSOCIATION LIMITED,"13,084.00",CAPITAL PS (HRA),CONSTRUCTION FEES - ARCHITECT,5902494215,1000036622
04.11.2021,HOUSING HRA,HAPTIC ARCHITECTS LTD,"10,880.00",CAPITAL PS (HRA),CONSTRUCTION FEES - ARCHITECT,5902494389,1000087287
04.11.2021,HOUSING HRA,HAPTIC ARCHITECTS LTD,"27,024.00",CAPITAL PS (HRA),CONSTRUCTION FEES - ARCHITECT,5902494389,1000087287
04.11.2021,HOUSING HRA,HAPTIC ARCHITECTS LTD,"28,096.00",CAPITAL PS (HRA),CONSTRUCTION FEES - ARCHITECT,5902494389,1000087287
04.11.2021,HOUSING HRA,SHARPE PRITCHARD LLP,"1,135.00",CAPITAL PS (HRA),CONSTRUCTION FEES - LEGAL,5902494256,1790085
04.11.2021,HOUSING HRA,SHARPE PRITCHARD LLP,"2,384.00",CAPITAL PS (HRA),CONSTRUCTION FEES - LEGAL,5902494379,1790085
04.11.2021,HOUSING HRA,MORGAN SINDALL PLC,"59,693.66",CAPITAL PS (HRA),CONSTRUCTION MAIN CONTRACT,2103342038,3000001556
04.11.2021,HOUSING HRA,ENGIE REGENERATION (APOLLO) LTD,"29,049.85",CAPITAL PS (HRA),CONSTRUCTION MAIN CONTRACT -CERTIFICATED,2103340703,4000449
04.11.2021,HOUSING HRA,STANDAGE & CO LTD,"171,299.46",CAPITAL PS (HRA),CONSTRUCTION MAIN CONTRACT -CERTIFICATED,2103342040,4002817
04.11.2021,HOUSING HRA,STANNAH LIFT SERVICES LTD,534.27,CAPITAL PS (HRA),UTILITIES INSTALLATION,5902494200,1063595
04.11.2021,HOUSING HRA,AJMADAPTIONS LTD,"3,010.00",CAPITAL PS (HRA),UTILITIES INSTALLATION,2103342043,3000002056
04.11.2021,LEISURE DIRECTORATE,KENT COUNTY COUNCIL - LASER,481.97,DAMILOLA TAYLOR CENTRE,ELECTRICITY,5902494318,1000012926
04.11.2021,LEISURE DIRECTORATE,WF EDUCATION GROUP LIMITED,265,HERITAGE CENTRE & WALWORTH LIBRARY,EQUIPMENT PURCHASE & REPAIR,5902494360,1000086286
04.11.2021,LEISURE DIRECTORATE,CASTLE WATER LTD,451.97,PECKHAM LIBRARY,WATER,5902494241,1000078867
04.11.2021,LEISURE DIRECTORATE,R S COMPONENTS,292.5,SDM BUDGET,MATERIALS,5902493326,1000044084
04.11.2021,PLANNING AND TRANSPORT,SOUTHWARK NEWSPAPER LTD,348,PLANNING POLICY TEAM,COMMS & COMPUTING CONTRACT CHARGES,5902494371,1556957
04.11.2021,PUBLIC HEALTH,REDACTED PERSONAL DATA,500,COVID-19 CONTROL OUTBREAK MGMNT.FUND,OTHER PAYMENTS FOR CLIENTS,REDACTED,REDACTED
04.11.2021,PUBLIC HEALTH,REDACTED PERSONAL DATA,500,COVID-19 CONTROL OUTBREAK MGMNT.FUND,OTHER PAYMENTS FOR CLIENTS,REDACTED,REDACTED
04.11.2021,PUBLIC HEALTH,REDACTED PERSONAL DATA,500,COVID-19 CONTROL OUTBREAK MGMNT.FUND,OTHER PAYMENTS FOR CLIENTS,REDACTED,REDACTED
04.11.2021,REGENERATION,PENNINGTON CHOICES LTD,985,PROFESSIONAL SERVICES (GENERAL),PROFESSIONAL FEES,5902494320,1000067888
04.11.2021,RESIDENT SERVICES,CHESHIRE ESTATE AND LEGAL LTD,"1,000.00",TA HOSTELS,PAYMENTS FOR LEGAL SERVICES,2103341803,1000081488
04.11.2021,RESIDENT SERVICES,CHESHIRE ESTATE AND LEGAL LTD,"2,000.00",TA HOSTELS,PAYMENTS FOR LEGAL SERVICES,2103341802,1000081488
04.11.2021,RESIDENT SERVICES,ANTONY HODARI  SOLICITORS,"6,000.00",TA HOSTELS,PAYMENTS FOR LEGAL SERVICES,2103341801,1000031040
04.11.2021,RESIDENT SERVICES,NATIONWIDE ACCOMMODATION,"6,698.48",TA PLACEMENTS,EXTERNAL AGENCIES AND BODIES,5902494271,1000076112
04.11.2021,RESIDENT SERVICES,APEX HOUSING SOLUTIONS LTD,"6,360.00",TA PLACEMENTS,EXTERNAL AGENCIES AND BODIES,5902494295,1000079786
04.11.2021,RESIDENT SERVICES HGF,FRESHVIEW ESTATES LTD,"1,029.85",HOMELESS PROJECTS,GRANTS,5902494396,1000081189
04.11.2021,RESIDENT SERVICES HGF,HOMELESS LINK,832.5,RAPID REHOUSING,TRAINING,5902494204,1904651
04.11.2021,SOUTHWARK BUILDING SERVICES,"BROWNING, JONES & MORRIS LTD",420,STORES/LOGISTICS,CREDITORS -GR/IR CLEARING ACCOUNT,5902494284,1027429
04.11.2021,SOUTHWARK BUILDING SERVICES,"BROWNING, JONES & MORRIS LTD",551.76,STORES/LOGISTICS,CREDITORS -GR/IR CLEARING ACCOUNT,5902494296,1027429
04.11.2021,SOUTHWARK BUILDING SERVICES,"BROWNING, JONES & MORRIS LTD",839.7,STORES/LOGISTICS,CREDITORS -GR/IR CLEARING ACCOUNT,5902494300,1027429
04.11.2021,SOUTHWARK BUILDING SERVICES,"BROWNING, JONES & MORRIS LTD","1,392.00",STORES/LOGISTICS,CREDITORS -GR/IR CLEARING ACCOUNT,5902494293,1027429
04.11.2021,STRATEGIC FINANCING BUDGETS,COMENSURA LTD,"660,451.02",AGENCY RECOVERY,AGENCY STAFF,5902494332,1000051261
05.11.2021,ADULT SOCIAL CARE,THAMES HOMECARE SERVICE LTD,379.08,DISCHARGE TO ACCESS,HOMECARE - C&V,2103342381,1000079295
05.11.2021,ADULT SOCIAL CARE,THAMES HOMECARE SERVICE LTD,692.64,DISCHARGE TO ACCESS,HOMECARE - C&V,2103342377,1000079295
05.11.2021,ADULT SOCIAL CARE,HARRISON CATERING SERVICES LTD,614.86,FRED FRANCIS CENTRE,CATERING MATERIALS & SUPPLIES,5902494405,1000025486
05.11.2021,ADULT SOCIAL CARE,NPOWER LTD,392.31,FRED FRANCIS CENTRE,ELECTRICITY,5902494439,1000078994
05.11.2021,ADULT SOCIAL CARE,NPOWER LTD,394.95,FRED FRANCIS CENTRE,ELECTRICITY,5902494442,1000078994
05.11.2021,ADULT SOCIAL CARE,THAMES HOMECARE SERVICE LTD,262.08,LD LTS 18-64,HOMECARE - SPOT,2103342364,1000079295
05.11.2021,ADULT SOCIAL CARE,THAMES HOMECARE SERVICE LTD,655.2,LD STS 18-64,HOMECARE - IC,2103342365,1000079295
05.11.2021,ADULT SOCIAL CARE,THAMES HOMECARE SERVICE LTD,851.76,LD STS 18-64,HOMECARE - IC,2103342344,1000079295
05.11.2021,ADULT SOCIAL CARE,TOGETHER FOR MENTAL WELLBEING,"9,342.50",LD/MH/SM MANAGEMENT,EXTERNAL AGENCIES AND BODIES,5902494444,1000039537
05.11.2021,ADULT SOCIAL CARE,THAMES HOMECARE SERVICE LTD,655.2,MEM LTS 65+,HOMECARE - SPOT,2103342352,1000079295
05.11.2021,ADULT SOCIAL CARE,THAMES HOMECARE SERVICE LTD,486.72,MH LTS 65+,HOMECARE - SPOT,2103342404,1000079295
05.11.2021,ADULT SOCIAL CARE,THAMES HOMECARE SERVICE LTD,266.76,PHY LTS 18-64,HOMECARE - SPOT,2103342425,1000079295
05.11.2021,ADULT SOCIAL CARE,THAMES HOMECARE SERVICE LTD,294.84,PHY LTS 18-64,HOMECARE - SPOT,2103342353,1000079295
05.11.2021,ADULT SOCIAL CARE,THAMES HOMECARE SERVICE LTD,299.52,PHY LTS 18-64,HOMECARE - SPOT,2103342310,1000079295
05.11.2021,ADULT SOCIAL CARE,THAMES HOMECARE SERVICE LTD,360.36,PHY LTS 18-64,HOMECARE - SPOT,2103342417,1000079295
05.11.2021,ADULT SOCIAL CARE,THAMES HOMECARE SERVICE LTD,374.4,PHY LTS 18-64,HOMECARE - SPOT,2103342355,1000079295
05.11.2021,ADULT SOCIAL CARE,THAMES HOMECARE SERVICE LTD,589.68,PHY LTS 18-64,HOMECARE - SPOT,2103342338,1000079295
05.11.2021,ADULT SOCIAL CARE,THAMES HOMECARE SERVICE LTD,589.68,PHY LTS 18-64,HOMECARE - SPOT,2103342371,1000079295
05.11.2021,ADULT SOCIAL CARE,THAMES HOMECARE SERVICE LTD,589.68,PHY LTS 18-64,HOMECARE - SPOT,2103342383,1000079295
05.11.2021,ADULT SOCIAL CARE,THAMES HOMECARE SERVICE LTD,655.2,PHY LTS 18-64,HOMECARE - SPOT,2103342363,1000079295
05.11.2021,ADULT SOCIAL CARE,THAMES HOMECARE SERVICE LTD,669.24,PHY LTS 18-64,HOMECARE - SPOT,2103342389,1000079295
05.11.2021,ADULT SOCIAL CARE,THAMES HOMECARE SERVICE LTD,673.92,PHY LTS 18-64,HOMECARE - SPOT,2103342374,1000079295
05.11.2021,ADULT SOCIAL CARE,THAMES HOMECARE SERVICE LTD,720.72,PHY LTS 18-64,HOMECARE - SPOT,2103342351,1000079295
05.11.2021,ADULT SOCIAL CARE,THAMES HOMECARE SERVICE LTD,851.76,PHY LTS 18-64,HOMECARE - SPOT,2103342345,1000079295
05.11.2021,ADULT SOCIAL CARE,THAMES HOMECARE SERVICE LTD,870.48,PHY LTS 18-64,HOMECARE - SPOT,2103342347,1000079295
05.11.2021,ADULT SOCIAL CARE,THAMES HOMECARE SERVICE LTD,294.84,PHY LTS 65+,HOMECARE - C&V,2103342390,1000079295
05.11.2021,ADULT SOCIAL CARE,THAMES HOMECARE SERVICE LTD,332.28,PHY LTS 65+,HOMECARE - C&V,2103342348,1000079295
05.11.2021,ADULT SOCIAL CARE,THAMES HOMECARE SERVICE LTD,393.12,PHY LTS 65+,HOMECARE - C&V,2103342335,1000079295
05.11.2021,ADULT SOCIAL CARE,THAMES HOMECARE SERVICE LTD,"1,179.36",PHY LTS 65+,HOMECARE - C&V,2103342413,1000079295
05.11.2021,ADULT SOCIAL CARE,THAMES HOMECARE SERVICE LTD,262.08,PHY LTS 65+,HOMECARE - SPOT,2103342343,1000079295
05.11.2021,ADULT SOCIAL CARE,THAMES HOMECARE SERVICE LTD,276.12,PHY LTS 65+,HOMECARE - SPOT,2103342368,1000079295
05.11.2021,ADULT SOCIAL CARE,THAMES HOMECARE SERVICE LTD,280.8,PHY LTS 65+,HOMECARE - SPOT,2103342292,1000079295
05.11.2021,ADULT SOCIAL CARE,THAMES HOMECARE SERVICE LTD,280.8,PHY LTS 65+,HOMECARE - SPOT,2103342393,1000079295
05.11.2021,ADULT SOCIAL CARE,THAMES HOMECARE SERVICE LTD,294.84,PHY LTS 65+,HOMECARE - SPOT,2103342286,1000079295
05.11.2021,ADULT SOCIAL CARE,THAMES HOMECARE SERVICE LTD,294.84,PHY LTS 65+,HOMECARE - SPOT,2103342288,1000079295
05.11.2021,ADULT SOCIAL CARE,THAMES HOMECARE SERVICE LTD,294.84,PHY LTS 65+,HOMECARE - SPOT,2103342362,1000079295
05.11.2021,ADULT SOCIAL CARE,THAMES HOMECARE SERVICE LTD,294.84,PHY LTS 65+,HOMECARE - SPOT,2103342387,1000079295
05.11.2021,ADULT SOCIAL CARE,THAMES HOMECARE SERVICE LTD,313.56,PHY LTS 65+,HOMECARE - SPOT,2103342331,1000079295
05.11.2021,ADULT SOCIAL CARE,THAMES HOMECARE SERVICE LTD,332.28,PHY LTS 65+,HOMECARE - SPOT,2103342289,1000079295
05.11.2021,ADULT SOCIAL CARE,THAMES HOMECARE SERVICE LTD,332.28,PHY LTS 65+,HOMECARE - SPOT,2103342350,1000079295
05.11.2021,ADULT SOCIAL CARE,THAMES HOMECARE SERVICE LTD,336.96,PHY LTS 65+,HOMECARE - SPOT,2103342380,1000079295
05.11.2021,ADULT SOCIAL CARE,THAMES HOMECARE SERVICE LTD,346.32,PHY LTS 65+,HOMECARE - SPOT,2103342282,1000079295
05.11.2021,ADULT SOCIAL CARE,THAMES HOMECARE SERVICE LTD,355.68,PHY LTS 65+,HOMECARE - SPOT,2103342326,1000079295
05.11.2021,ADULT SOCIAL CARE,THAMES HOMECARE SERVICE LTD,360.36,PHY LTS 65+,HOMECARE - SPOT,2103342395,1000079295
05.11.2021,ADULT SOCIAL CARE,THAMES HOMECARE SERVICE LTD,402.48,PHY LTS 65+,HOMECARE - SPOT,2103342309,1000079295
05.11.2021,ADULT SOCIAL CARE,THAMES HOMECARE SERVICE LTD,416.52,PHY LTS 65+,HOMECARE - SPOT,2103342294,1000079295
05.11.2021,ADULT SOCIAL CARE,THAMES HOMECARE SERVICE LTD,430.56,PHY LTS 65+,HOMECARE - SPOT,2103342333,1000079295
05.11.2021,ADULT SOCIAL CARE,THAMES HOMECARE SERVICE LTD,486.72,PHY LTS 65+,HOMECARE - SPOT,2103342341,1000079295
05.11.2021,ADULT SOCIAL CARE,THAMES HOMECARE SERVICE LTD,505.44,PHY LTS 65+,HOMECARE - SPOT,2103342392,1000079295
05.11.2021,ADULT SOCIAL CARE,THAMES HOMECARE SERVICE LTD,524.16,PHY LTS 65+,HOMECARE - SPOT,2103342357,1000079295
05.11.2021,ADULT SOCIAL CARE,THAMES HOMECARE SERVICE LTD,524.16,PHY LTS 65+,HOMECARE - SPOT,2103342411,1000079295
05.11.2021,ADULT SOCIAL CARE,THAMES HOMECARE SERVICE LTD,589.68,PHY LTS 65+,HOMECARE - SPOT,2103342287,1000079295
05.11.2021,ADULT SOCIAL CARE,THAMES HOMECARE SERVICE LTD,589.68,PHY LTS 65+,HOMECARE - SPOT,2103342375,1000079295
05.11.2021,ADULT SOCIAL CARE,THAMES HOMECARE SERVICE LTD,589.68,PHY LTS 65+,HOMECARE - SPOT,2103342394,1000079295
05.11.2021,ADULT SOCIAL CARE,THAMES HOMECARE SERVICE LTD,617.76,PHY LTS 65+,HOMECARE - SPOT,2103342318,1000079295
05.11.2021,ADULT SOCIAL CARE,THAMES HOMECARE SERVICE LTD,617.76,PHY LTS 65+,HOMECARE - SPOT,2103342420,1000079295
05.11.2021,ADULT SOCIAL CARE,THAMES HOMECARE SERVICE LTD,627.12,PHY LTS 65+,HOMECARE - SPOT,2103342360,1000079295
05.11.2021,ADULT SOCIAL CARE,THAMES HOMECARE SERVICE LTD,627.12,PHY LTS 65+,HOMECARE - SPOT,2103342391,1000079295
05.11.2021,ADULT SOCIAL CARE,THAMES HOMECARE SERVICE LTD,655.2,PHY LTS 65+,HOMECARE - SPOT,2103342284,1000079295
05.11.2021,ADULT SOCIAL CARE,THAMES HOMECARE SERVICE LTD,655.2,PHY LTS 65+,HOMECARE - SPOT,2103342399,1000079295
05.11.2021,ADULT SOCIAL CARE,THAMES HOMECARE SERVICE LTD,655.2,PHY LTS 65+,HOMECARE - SPOT,2103342422,1000079295
05.11.2021,ADULT SOCIAL CARE,THAMES HOMECARE SERVICE LTD,659.88,PHY LTS 65+,HOMECARE - SPOT,2103342414,1000079295
05.11.2021,ADULT SOCIAL CARE,THAMES HOMECARE SERVICE LTD,664.56,PHY LTS 65+,HOMECARE - SPOT,2103342373,1000079295
05.11.2021,ADULT SOCIAL CARE,THAMES HOMECARE SERVICE LTD,683.28,PHY LTS 65+,HOMECARE - SPOT,2103342415,1000079295
05.11.2021,ADULT SOCIAL CARE,THAMES HOMECARE SERVICE LTD,692.64,PHY LTS 65+,HOMECARE - SPOT,2103342325,1000079295
05.11.2021,ADULT SOCIAL CARE,THAMES HOMECARE SERVICE LTD,692.64,PHY LTS 65+,HOMECARE - SPOT,2103342337,1000079295
05.11.2021,ADULT SOCIAL CARE,THAMES HOMECARE SERVICE LTD,702,PHY LTS 65+,HOMECARE - SPOT,2103342295,1000079295
05.11.2021,ADULT SOCIAL CARE,THAMES HOMECARE SERVICE LTD,720.72,PHY LTS 65+,HOMECARE - SPOT,2103342349,1000079295
05.11.2021,ADULT SOCIAL CARE,THAMES HOMECARE SERVICE LTD,748.8,PHY LTS 65+,HOMECARE - SPOT,2103342396,1000079295
05.11.2021,ADULT SOCIAL CARE,THAMES HOMECARE SERVICE LTD,786.24,PHY LTS 65+,HOMECARE - SPOT,2103342298,1000079295
05.11.2021,ADULT SOCIAL CARE,THAMES HOMECARE SERVICE LTD,786.24,PHY LTS 65+,HOMECARE - SPOT,2103342339,1000079295
05.11.2021,ADULT SOCIAL CARE,THAMES HOMECARE SERVICE LTD,804.96,PHY LTS 65+,HOMECARE - SPOT,2103342423,1000079295
05.11.2021,ADULT SOCIAL CARE,THAMES HOMECARE SERVICE LTD,814.32,PHY LTS 65+,HOMECARE - SPOT,2103342307,1000079295
05.11.2021,ADULT SOCIAL CARE,THAMES HOMECARE SERVICE LTD,851.76,PHY LTS 65+,HOMECARE - SPOT,2103342382,1000079295
05.11.2021,ADULT SOCIAL CARE,THAMES HOMECARE SERVICE LTD,936,PHY LTS 65+,HOMECARE - SPOT,2103342306,1000079295
05.11.2021,ADULT SOCIAL CARE,THAMES HOMECARE SERVICE LTD,"1,076.40",PHY LTS 65+,HOMECARE - SPOT,2103342427,1000079295
05.11.2021,ADULT SOCIAL CARE,THAMES HOMECARE SERVICE LTD,"1,525.68",PHY LTS 65+,HOMECARE - SPOT,2103342407,1000079295
05.11.2021,ADULT SOCIAL CARE,THAMES HOMECARE SERVICE LTD,458.64,PHY STS 18-64,HOMECARE - IC,2103342388,1000079295
05.11.2021,ADULT SOCIAL CARE,THAMES HOMECARE SERVICE LTD,"1,085.76",PHY STS 18-64,HOMECARE - IC,2103342376,1000079295
05.11.2021,ADULT SOCIAL CARE,THAMES HOMECARE SERVICE LTD,294.84,PHY STS 65+,HOMECARE - IC,2103342379,1000079295
05.11.2021,ADULT SOCIAL CARE,THAMES HOMECARE SERVICE LTD,304.2,PHY STS 65+,HOMECARE - IC,2103342346,1000079295
05.11.2021,ADULT SOCIAL CARE,THAMES HOMECARE SERVICE LTD,374.4,PHY STS 65+,HOMECARE - IC,2103342332,1000079295
05.11.2021,ADULT SOCIAL CARE,THAMES HOMECARE SERVICE LTD,589.68,PHY STS 65+,HOMECARE - IC,2103342366,1000079295
05.11.2021,ADULT SOCIAL CARE,THAMES HOMECARE SERVICE LTD,655.2,PHY STS 65+,HOMECARE - IC,2103342328,1000079295
05.11.2021,ADULT SOCIAL CARE,THAMES HOMECARE SERVICE LTD,655.2,PHY STS 65+,HOMECARE - IC,2103342336,1000079295
05.11.2021,ADULT SOCIAL CARE,THAMES HOMECARE SERVICE LTD,655.2,PHY STS 65+,HOMECARE - IC,2103342359,1000079295
05.11.2021,ADULT SOCIAL CARE,THAMES HOMECARE SERVICE LTD,711.36,PHY STS 65+,HOMECARE - IC,2103342424,1000079295
05.11.2021,ADULT SOCIAL CARE,THAMES HOMECARE SERVICE LTD,786.24,PHY STS 65+,HOMECARE - IC,2103342315,1000079295
05.11.2021,ADULT SOCIAL CARE,THAMES HOMECARE SERVICE LTD,"1,048.32",PHY STS 65+,HOMECARE - IC,2103342405,1000079295
05.11.2021,ADULT SOCIAL CARE,THAMES HOMECARE SERVICE LTD,313.56,SEN LTS 65+,HOMECARE - SPOT,2103342372,1000079295
05.11.2021,ADULT SOCIAL CARE,CONTACT PROFESSIONALS,494,SPECIALIST CARE,OTHER PAYMENTS FOR CLIENTS,2103342228,1000057263
05.11.2021,ADULT SOCIAL CARE,ADVANTAGE HEALTHCARE LTD,658.32,SPECIALIST CARE,SECTION 17 PAYMENTS TO AGENCIES/CARERS,2103342185,1000049612
05.11.2021,ADULT SOCIAL CARE,CONTACT PROFESSIONALS,285,SPECIALIST CARE,SECTION 17 PAYMENTS TO AGENCIES/CARERS,2103342240,1000057263
05.11.2021,ADULT SOCIAL CARE,CONTACT PROFESSIONALS,342,SPECIALIST CARE,SECTION 17 PAYMENTS TO AGENCIES/CARERS,2103342204,1000057263
05.11.2021,ADULT SOCIAL CARE,CONTACT PROFESSIONALS,380,SPECIALIST CARE,SECTION 17 PAYMENTS TO AGENCIES/CARERS,2103342215,1000057263
05.11.2021,ASSET MANAGEMENT,CHESHIRE ESTATE AND LEGAL LTD,480,DISREPAIR,LEGAL FEES & COURT COSTS,5902494443,1000081488
05.11.2021,ASSET MANAGEMENT,ASHFORDS LLP OFFICE ACCOUNT,266.5,DISREPAIR,PAYMENTS FOR LEGAL SERVICES,5902494351,1000082695
05.11.2021,ASSET MANAGEMENT,ASHFORDS LLP OFFICE ACCOUNT,300,DISREPAIR,PAYMENTS FOR LEGAL SERVICES,5902494361,1000082695
05.11.2021,ASSET MANAGEMENT,ASHFORDS LLP OFFICE ACCOUNT,346,DISREPAIR,PAYMENTS FOR LEGAL SERVICES,5902494488,1000082695
05.11.2021,ASSET MANAGEMENT,ASHFORDS LLP OFFICE ACCOUNT,425,DISREPAIR,PAYMENTS FOR LEGAL SERVICES,5902494381,1000082695
05.11.2021,ASSET MANAGEMENT,ASHFORDS LLP OFFICE ACCOUNT,"1,325.00",DISREPAIR,PAYMENTS FOR LEGAL SERVICES,5902494367,1000082695
05.11.2021,ASSET MANAGEMENT,ASHFORDS LLP OFFICE ACCOUNT,"2,500.00",DISREPAIR,PAYMENTS FOR LEGAL SERVICES,5902494479,1000082695
05.11.2021,ASSET MANAGEMENT,SANDERSONS BUILDING SERVICES LTD,"3,151.60",DISREPAIR,PAYMENTS FOR LEGAL SERVICES,2103340266,3000002065
05.11.2021,ASSET MANAGEMENT,ARMINA LTD,"-2,305.65",DISREPAIR,PAYMENTS FOR LEGAL SERVICES,5902494867,3000002121
05.11.2021,ASSET MANAGEMENT,ARMINA LTD,-481.31,DISREPAIR,PAYMENTS FOR LEGAL SERVICES,5902494865,3000002121
05.11.2021,ASSET MANAGEMENT,ARMINA LTD,481.31,DISREPAIR,PAYMENTS FOR LEGAL SERVICES,5902494851,3000002121
05.11.2021,ASSET MANAGEMENT,ARMINA LTD,"2,305.65",DISREPAIR,PAYMENTS FOR LEGAL SERVICES,5902494858,3000002121
05.11.2021,ASSET MANAGEMENT,ARMINA LTD,"2,622.78",DISREPAIR,PAYMENTS FOR LEGAL SERVICES,2103339785,3000002121
05.11.2021,ASSET MANAGEMENT,LONDON FIRE BRIGADE,352,ENG CONTRACTS (NORTH),LIFTS,5902494317,1000083629
05.11.2021,ASSET MANAGEMENT,LONDON FIRE BRIGADE,352,ENG CONTRACTS (NORTH),LIFTS,5902494322,1000083629
05.11.2021,ASSET MANAGEMENT,BRIDGEWATER LTD,727.97,MAJOR REPAIRS,BUILDING R&M,5902494377,1000065042
05.11.2021,ASSET MANAGEMENT HGF,BALCAS TIMBER LTD,"2,236.00",160 TOOLEY ST.,OIL,5902494432,1000062808
05.11.2021,ASSET MANAGEMENT HGF,SHARPE PRITCHARD LLP,"5,690.00",CFM OPERATIONAL BUDGET,PROFESSIONAL FEES,5902494413,1790085
05.11.2021,ASSET MANAGEMENT HGF,SPARTAN CREW LTD,"1,548.00",REPAIR AND MAINTENANCE SERVICES,BUILDING R&M,5902494483,1000087067
05.11.2021,ASSET MANAGEMENT HGF,EMS EVENTS LTD,310,TSFM CONTINGENCY,INTEGRATED FACILITIES MANAGEMENT CONTRACT,5902494451,1000057494
05.11.2021,CENTRAL FUNCTIONS,BRESLIN CONSTRUCTION LTD,"4,000.00",COMMERCIAL PROPERTIES,BUILDING R&M,2103340336,3000001948
05.11.2021,CENTRAL FUNCTIONS,WILLIAM MARTIN PROPERTY CONSULTANTS,"1,450.00",COMMERCIAL PROPERTIES,PROFESSIONAL FEES,5902494447,1000062171
05.11.2021,CENTRAL FUNCTIONS,WILLIAM MARTIN PROPERTY CONSULTANTS,"1,550.00",COMMERCIAL PROPERTIES,PROFESSIONAL FEES,5902494445,1000062171
05.11.2021,CHIEF EXECUTIVE,SYSTRA LTD,"9,593.00",CAPITAL PS (REGEN),CONSTRUCTION FEES  - EXTERNAL,5902493267,11305109
05.11.2021,CHIEF EXECUTIVE,CAMBRIDGE ENVIRONMENTAL RESEARCH,"7,500.00",CAPITAL PS (REGEN),CONSTRUCTION FEES  - EXTERNAL,5902493323,1000004793
05.11.2021,CHIEF EXECUTIVE,SUSTRANS LTD,"2,906.00",CAPITAL PS (REGEN),CONSTRUCTION FEES  - EXTERNAL,5902494311,1000047385
05.11.2021,CHIEF EXECUTIVE,SUSTRANS LTD,"5,000.00",CAPITAL PS (REGEN),CONSTRUCTION FEES  - EXTERNAL,5902494311,1000047385
05.11.2021,CHIEF EXECUTIVE,SUSTRANS LTD,"7,761.00",CAPITAL PS (REGEN),CONSTRUCTION FEES  - EXTERNAL,5902494144,1000047385
05.11.2021,CHIEF EXECUTIVE,BRESLIN CONSTRUCTION LTD,"4,325.00",CAPITAL PS (REGEN),CONSTRUCTION FEES  - EXTERNAL,2103340331,3000001948
05.11.2021,CHIEF EXECUTIVE,KENT COUNTY COUNCIL - LASER,"1,554.57",CAPITAL PS (REGEN),CONSTRUCTION MAIN CONTRACT -CERTIFICATED,5902493381,1000012926
05.11.2021,CHILDREN AND FAMILIES,PARENTS AND CHILDREN TOGETHER,750,ADOPTION SUPP FUND,PROFESSIONAL FEES,5902494617,1000068128
05.11.2021,CHILDREN AND FAMILIES,THE FAMILY PLACE LTD,486.86,ADOPTION SUPP FUND,PROFESSIONAL FEES,5902494613,1000077965
05.11.2021,CHILDREN AND FAMILIES,THE FAMILY PLACE LTD,585,ADOPTION SUPP FUND,PROFESSIONAL FEES,5902494614,1000077965
05.11.2021,CHILDREN AND FAMILIES,NETWORK RECRUITMENT SOLUTIONS,300,CONTACT SERVICE,OTHER PAYMENTS FOR CLIENTS,5902493185,1000071241
05.11.2021,CHILDREN AND FAMILIES,NETWORK RECRUITMENT SOLUTIONS,300,CONTACT SERVICE,OTHER PAYMENTS FOR CLIENTS,5902494533,1000071241
05.11.2021,CHILDREN AND FAMILIES,NETWORK RECRUITMENT SOLUTIONS,350,CONTACT SERVICE,OTHER PAYMENTS FOR CLIENTS,5902494530,1000071241
05.11.2021,CHILDREN AND FAMILIES,NETWORK RECRUITMENT SOLUTIONS,450,CONTACT SERVICE,OTHER PAYMENTS FOR CLIENTS,5902493182,1000071241
05.11.2021,CHILDREN AND FAMILIES,NETWORK RECRUITMENT SOLUTIONS,600,CONTACT SERVICE,OTHER PAYMENTS FOR CLIENTS,5902494531,1000071241
05.11.2021,CHILDREN AND FAMILIES,NETWORK RECRUITMENT SOLUTIONS,704.05,CONTACT SERVICE,OTHER PAYMENTS FOR CLIENTS,5902493181,1000071241
05.11.2021,CHILDREN AND FAMILIES,NETWORK RECRUITMENT SOLUTIONS,750,CONTACT SERVICE,OTHER PAYMENTS FOR CLIENTS,5902493184,1000071241
05.11.2021,CHILDREN AND FAMILIES,NETWORK RECRUITMENT SOLUTIONS,"1,050.00",CONTACT SERVICE,OTHER PAYMENTS FOR CLIENTS,5902494532,1000071241
05.11.2021,CHILDREN AND FAMILIES,UNIQUE CONTACT AND COMMUNITY SERVICES LTD,350,CONTACT SERVICE,OTHER PAYMENTS FOR CLIENTS,5902494433,1000075550
05.11.2021,CHILDREN AND FAMILIES,UNIQUE CONTACT AND COMMUNITY SERVICES LTD,"1,260.00",CONTACT SERVICE,OTHER PAYMENTS FOR CLIENTS,5902494435,1000075550
05.11.2021,CHILDREN AND FAMILIES,JAMMA UMOJA (RESIDENTIAL SERVICES),"3,465.00",FAMILY ASSESSMENTS,RESIDENTIAL CARE,2103342121,1000080325
05.11.2021,CHILDREN AND FAMILIES,HERA SOCIAL CARE LTD,257.83,FAMILY GROUP CONF�S,PROFESSIONAL FEES,5902493512,1000084935
05.11.2021,CHILDREN AND FAMILIES,TACT,396.42,FRIENDS & FAMILY FOSTERING,EXTERNAL AGENCIES AND BODIES,2103342274,1000012941
05.11.2021,CHILDREN AND FAMILIES,FIVE RIVERS CHILD CARE LTD,"3,365.71",FRIENDS & FAMILY FOSTERING,EXTERNAL AGENCIES AND BODIES,2103342272,1000018792
05.11.2021,CHILDREN AND FAMILIES,FIVE RIVERS CHILD CARE LTD,"3,576.96",FRIENDS & FAMILY FOSTERING,EXTERNAL AGENCIES AND BODIES,2103342267,1000018792
05.11.2021,CHILDREN AND FAMILIES,FIVE RIVERS CHILD CARE LTD,"3,576.96",FRIENDS & FAMILY FOSTERING,EXTERNAL AGENCIES AND BODIES,2103342275,1000018792
05.11.2021,CHILDREN AND FAMILIES,KASPER FOSTERING,"3,513.23",FRIENDS & FAMILY FOSTERING,EXTERNAL AGENCIES AND BODIES,2103342266,1000036628
05.11.2021,CHILDREN AND FAMILIES,KASPER FOSTERING,"4,640.39",FRIENDS & FAMILY FOSTERING,EXTERNAL AGENCIES AND BODIES,2103342273,1000036628
05.11.2021,CHILDREN AND FAMILIES,FOSTERING LONDON LTD,"5,672.68",FRIENDS & FAMILY FOSTERING,EXTERNAL AGENCIES AND BODIES,2103342265,1000077541
05.11.2021,CHILDREN AND FAMILIES,FOSTERING LONDON LTD,"8,771.00",FRIENDS & FAMILY FOSTERING,EXTERNAL AGENCIES AND BODIES,2103342263,1000077541
05.11.2021,CHILDREN AND FAMILIES,SHARED CARE SERVICES LTD,"6,606.72",FRIENDS & FAMILY FOSTERING,EXTERNAL AGENCIES AND BODIES,2103342269,1000080308
05.11.2021,CHILDREN AND FAMILIES,FAMILY FIRST FOSTERING LTD,"3,820.75",FRIENDS & FAMILY FOSTERING,EXTERNAL AGENCIES AND BODIES,2103342264,1000080631
05.11.2021,CHILDREN AND FAMILIES,FAMILY WORKS FOSTERING LTD,"6,275.29",FRIENDS & FAMILY FOSTERING,EXTERNAL AGENCIES AND BODIES,2103342268,1000082529
05.11.2021,CHILDREN AND FAMILIES,LOGICOUS LTD,"1,236.75",FRIENDS &FAMILY FOST,PAYMENTS TO CARERS,5902494434,1000073852
05.11.2021,CHILDREN AND FAMILIES,HOLLY BRYAN ASSOCIATES LTD,"5,800.00",MANAGEMENT INFORMATION UNIT,PROFESSIONAL FEES,5902494616,1000077962
05.11.2021,CHILDREN AND FAMILIES,THE BEXLEY DAY NURSERY LIMITED,335.55,P & R CARE TEAM,EXTERNAL AGENCIES AND BODIES,5902494501,1000033000
05.11.2021,CHILDREN AND FAMILIES,PURPLE PEBBLES(CHILD CARE) SERVICES,"-1,100.00",SEMI-IND CARELEAVERS,COSTS RECOVERED,2103342439,1000070705
05.11.2021,CHILDREN AND FAMILIES,PURPLE PEBBLES(CHILD CARE) SERVICES,-962.85,SEMI-IND CARELEAVERS,COSTS RECOVERED,2103342438,1000070705
05.11.2021,CHILDREN AND FAMILIES,PURPLE PEBBLES(CHILD CARE) SERVICES,-516.52,SEMI-IND CARELEAVERS,COSTS RECOVERED,2103342432,1000070705
05.11.2021,CHILDREN AND FAMILIES,OWNLIFE LTD,"3,542.87",SEMI-IND CARELEAVERS,EXTERNAL AGENCIES AND BODIES,2103342249,1000056219
05.11.2021,CHILDREN AND FAMILIES,CONTACT PROFESSIONALS,263,SEMI-IND CARELEAVERS,EXTERNAL AGENCIES AND BODIES,2103342248,1000057263
05.11.2021,CHILDREN AND FAMILIES,PURPLE PEBBLES(CHILD CARE) SERVICES,"1,357.14",SEMI-IND CARELEAVERS,EXTERNAL AGENCIES AND BODIES,2103342146,1000070705
05.11.2021,CHILDREN AND FAMILIES,PURPLE PEBBLES(CHILD CARE) SERVICES,"1,705.00",SEMI-IND CARELEAVERS,EXTERNAL AGENCIES AND BODIES,2103342126,1000070705
05.11.2021,CHILDREN AND FAMILIES,PURPLE PEBBLES(CHILD CARE) SERVICES,"1,882.14",SEMI-IND CARELEAVERS,EXTERNAL AGENCIES AND BODIES,2103342129,1000070705
05.11.2021,CHILDREN AND FAMILIES,PURPLE PEBBLES(CHILD CARE) SERVICES,"1,882.14",SEMI-IND CARELEAVERS,EXTERNAL AGENCIES AND BODIES,2103342131,1000070705
05.11.2021,CHILDREN AND FAMILIES,PURPLE PEBBLES(CHILD CARE) SERVICES,"2,103.57",SEMI-IND CARELEAVERS,EXTERNAL AGENCIES AND BODIES,2103342128,1000070705
05.11.2021,CHILDREN AND FAMILIES,PURPLE PEBBLES(CHILD CARE) SERVICES,"2,214.29",SEMI-IND CARELEAVERS,EXTERNAL AGENCIES AND BODIES,2103342137,1000070705
05.11.2021,CHILDREN AND FAMILIES,PURPLE PEBBLES(CHILD CARE) SERVICES,"2,480.00",SEMI-IND CARELEAVERS,EXTERNAL AGENCIES AND BODIES,2103342125,1000070705
05.11.2021,CHILDREN AND FAMILIES,OWNLIFE LTD,"4,320.00",SEMI-IND LAC 16-17,EXTERNAL AGENCIES AND BODIES,2103342254,1000056219
05.11.2021,CHILDREN AND FAMILIES,PURPLE PEBBLES(CHILD CARE) SERVICES,767.86,SEMI-IND LAC 16-17,EXTERNAL AGENCIES AND BODIES,2103342167,1000070705
05.11.2021,CHILDREN AND FAMILIES,PURPLE PEBBLES(CHILD CARE) SERVICES,"5,535.71",SEMI-IND LAC 16-17,EXTERNAL AGENCIES AND BODIES,2103342180,1000070705
05.11.2021,CHILDREN AND FAMILIES,REDACTED PERSONAL DATA,"1,262.70",TEAM B,OTHER PAYMENTS FOR CLIENTS,REDACTED,REDACTED
05.11.2021,CHILDREN AND FAMILIES,REDACTED PERSONAL DATA,"1,596.00",TEAM B,OTHER PAYMENTS FOR CLIENTS,REDACTED,REDACTED
05.11.2021,CHILDREN AND FAMILIES,1ST PLACE CHILDREN & PARENTS CENTRE,549.12,TEAM C,OTHER PAYMENTS FOR CLIENTS,2103342279,1000049952
05.11.2021,CHILDREN AND FAMILIES,PURPLE PEBBLES(CHILD CARE) SERVICES,-875,UASC CARELEAVERS,COSTS RECOVERED,2103342434,1000070705
05.11.2021,CHILDREN AND FAMILIES,PURPLE PEBBLES(CHILD CARE) SERVICES,-875,UASC CARELEAVERS,COSTS RECOVERED,2103342435,1000070705
05.11.2021,CHILDREN AND FAMILIES,PURPLE PEBBLES(CHILD CARE) SERVICES,-875,UASC CARELEAVERS,COSTS RECOVERED,2103342436,1000070705
05.11.2021,CHILDREN AND FAMILIES,PURPLE PEBBLES(CHILD CARE) SERVICES,-516.52,UASC CARELEAVERS,COSTS RECOVERED,2103342433,1000070705
05.11.2021,CHILDREN AND FAMILIES,STEP AHEAD SERVICES LTD,"2,125.71",UASC CARELEAVERS,EXTERNAL AGENCIES AND BODIES,2103342251,1000036544
05.11.2021,CHILDREN AND FAMILIES,OWNLIFE LTD,"2,790.00",UASC CARELEAVERS,EXTERNAL AGENCIES AND BODIES,2103342250,1000056219
05.11.2021,CHILDREN AND FAMILIES,PURPLE PEBBLES(CHILD CARE) SERVICES,350,UASC CARELEAVERS,EXTERNAL AGENCIES AND BODIES,2103342142,1000070705
05.11.2021,CHILDREN AND FAMILIES,PURPLE PEBBLES(CHILD CARE) SERVICES,400,UASC CARELEAVERS,EXTERNAL AGENCIES AND BODIES,2103342152,1000070705
05.11.2021,CHILDREN AND FAMILIES,PURPLE PEBBLES(CHILD CARE) SERVICES,678.57,UASC CARELEAVERS,EXTERNAL AGENCIES AND BODIES,2103342141,1000070705
05.11.2021,CHILDREN AND FAMILIES,PURPLE PEBBLES(CHILD CARE) SERVICES,"1,594.29",UASC CARELEAVERS,EXTERNAL AGENCIES AND BODIES,2103342124,1000070705
05.11.2021,CHILDREN AND FAMILIES,PURPLE PEBBLES(CHILD CARE) SERVICES,"1,660.71",UASC CARELEAVERS,EXTERNAL AGENCIES AND BODIES,2103342123,1000070705
05.11.2021,CHILDREN AND FAMILIES,PURPLE PEBBLES(CHILD CARE) SERVICES,"1,660.71",UASC CARELEAVERS,EXTERNAL AGENCIES AND BODIES,2103342135,1000070705
05.11.2021,CHILDREN AND FAMILIES,PURPLE PEBBLES(CHILD CARE) SERVICES,"1,660.71",UASC CARELEAVERS,EXTERNAL AGENCIES AND BODIES,2103342136,1000070705
05.11.2021,CHILDREN AND FAMILIES,PURPLE PEBBLES(CHILD CARE) SERVICES,"1,660.71",UASC CARELEAVERS,EXTERNAL AGENCIES AND BODIES,2103342139,1000070705
05.11.2021,CHILDREN AND FAMILIES,PURPLE PEBBLES(CHILD CARE) SERVICES,"1,660.71",UASC CARELEAVERS,EXTERNAL AGENCIES AND BODIES,2103342140,1000070705
05.11.2021,CHILDREN AND FAMILIES,PURPLE PEBBLES(CHILD CARE) SERVICES,"1,660.71",UASC CARELEAVERS,EXTERNAL AGENCIES AND BODIES,2103342161,1000070705
05.11.2021,CHILDREN AND FAMILIES,PURPLE PEBBLES(CHILD CARE) SERVICES,"1,749.29",UASC CARELEAVERS,EXTERNAL AGENCIES AND BODIES,2103342122,1000070705
05.11.2021,CHILDREN AND FAMILIES,PURPLE PEBBLES(CHILD CARE) SERVICES,"1,771.43",UASC CARELEAVERS,EXTERNAL AGENCIES AND BODIES,2103342154,1000070705
05.11.2021,CHILDREN AND FAMILIES,PURPLE PEBBLES(CHILD CARE) SERVICES,"1,815.71",UASC CARELEAVERS,EXTERNAL AGENCIES AND BODIES,2103342138,1000070705
05.11.2021,CHILDREN AND FAMILIES,PURPLE PEBBLES(CHILD CARE) SERVICES,"1,882.14",UASC CARELEAVERS,EXTERNAL AGENCIES AND BODIES,2103342133,1000070705
05.11.2021,CHILDREN AND FAMILIES,PURPLE PEBBLES(CHILD CARE) SERVICES,"1,904.29",UASC CARELEAVERS,EXTERNAL AGENCIES AND BODIES,2103342156,1000070705
05.11.2021,CHILDREN AND FAMILIES,PURPLE PEBBLES(CHILD CARE) SERVICES,"1,948.57",UASC CARELEAVERS,EXTERNAL AGENCIES AND BODIES,2103342145,1000070705
05.11.2021,CHILDREN AND FAMILIES,PURPLE PEBBLES(CHILD CARE) SERVICES,"1,948.57",UASC CARELEAVERS,EXTERNAL AGENCIES AND BODIES,2103342157,1000070705
05.11.2021,CHILDREN AND FAMILIES,PURPLE PEBBLES(CHILD CARE) SERVICES,"1,948.57",UASC CARELEAVERS,EXTERNAL AGENCIES AND BODIES,2103342158,1000070705
05.11.2021,CHILDREN AND FAMILIES,PURPLE PEBBLES(CHILD CARE) SERVICES,"1,948.57",UASC CARELEAVERS,EXTERNAL AGENCIES AND BODIES,2103342160,1000070705
05.11.2021,CHILDREN AND FAMILIES,PURPLE PEBBLES(CHILD CARE) SERVICES,"1,981.79",UASC CARELEAVERS,EXTERNAL AGENCIES AND BODIES,2103342151,1000070705
05.11.2021,CHILDREN AND FAMILIES,PURPLE PEBBLES(CHILD CARE) SERVICES,"1,992.86",UASC CARELEAVERS,EXTERNAL AGENCIES AND BODIES,2103342132,1000070705
05.11.2021,CHILDREN AND FAMILIES,PURPLE PEBBLES(CHILD CARE) SERVICES,"1,992.86",UASC CARELEAVERS,EXTERNAL AGENCIES AND BODIES,2103342153,1000070705
05.11.2021,CHILDREN AND FAMILIES,PURPLE PEBBLES(CHILD CARE) SERVICES,"2,059.29",UASC CARELEAVERS,EXTERNAL AGENCIES AND BODIES,2103342134,1000070705
05.11.2021,CHILDREN AND FAMILIES,PURPLE PEBBLES(CHILD CARE) SERVICES,"2,092.50",UASC CARELEAVERS,EXTERNAL AGENCIES AND BODIES,2103342127,1000070705
05.11.2021,CHILDREN AND FAMILIES,STEP AHEAD SERVICES LTD,280,UASC CARELEAVERS,OTHER PAYMENTS FOR CLIENTS,2103342252,1000036544
05.11.2021,CHILDREN AND FAMILIES,PURPLE PEBBLES(CHILD CARE) SERVICES,280,UASC CARELEAVERS,OTHER PAYMENTS FOR CLIENTS,2103342143,1000070705
05.11.2021,CHILDREN AND FAMILIES,PURPLE PEBBLES(CHILD CARE) SERVICES,280,UASC CARELEAVERS,OTHER PAYMENTS FOR CLIENTS,2103342144,1000070705
05.11.2021,CHILDREN AND FAMILIES,PURPLE PEBBLES(CHILD CARE) SERVICES,280,UASC CARELEAVERS,OTHER PAYMENTS FOR CLIENTS,2103342149,1000070705
05.11.2021,CHILDREN AND FAMILIES,PURPLE PEBBLES(CHILD CARE) SERVICES,280,UASC CARELEAVERS,OTHER PAYMENTS FOR CLIENTS,2103342155,1000070705
05.11.2021,CHILDREN AND FAMILIES,PURPLE PEBBLES(CHILD CARE) SERVICES,280,UASC CARELEAVERS,OTHER PAYMENTS FOR CLIENTS,2103342159,1000070705
05.11.2021,CHILDREN AND FAMILIES,PURPLE PEBBLES(CHILD CARE) SERVICES,350,UASC CARELEAVERS,OTHER PAYMENTS FOR CLIENTS,2103342130,1000070705
05.11.2021,CHILDREN AND FAMILIES,PURPLE PEBBLES(CHILD CARE) SERVICES,350,UASC CARELEAVERS,OTHER PAYMENTS FOR CLIENTS,2103342150,1000070705
05.11.2021,CHILDREN AND FAMILIES,PURPLE PEBBLES(CHILD CARE) SERVICES,350,UASC CARELEAVERS,OTHER PAYMENTS FOR CLIENTS,2103342162,1000070705
05.11.2021,CHILDREN AND FAMILIES,PURPLE PEBBLES(CHILD CARE) SERVICES,500,UASC LAC 16-17,EXTERNAL AGENCIES AND BODIES,2103342171,1000070705
05.11.2021,CHILDREN AND FAMILIES,PURPLE PEBBLES(CHILD CARE) SERVICES,500,UASC LAC 16-17,EXTERNAL AGENCIES AND BODIES,2103342174,1000070705
05.11.2021,CHILDREN AND FAMILIES,PURPLE PEBBLES(CHILD CARE) SERVICES,800,UASC LAC 16-17,EXTERNAL AGENCIES AND BODIES,2103342173,1000070705
05.11.2021,CHILDREN AND FAMILIES,PURPLE PEBBLES(CHILD CARE) SERVICES,"1,882.14",UASC LAC 16-17,EXTERNAL AGENCIES AND BODIES,2103342181,1000070705
05.11.2021,CHILDREN AND FAMILIES,PURPLE PEBBLES(CHILD CARE) SERVICES,"2,957.14",UASC LAC 16-17,EXTERNAL AGENCIES AND BODIES,2103342165,1000070705
05.11.2021,CHILDREN AND FAMILIES,PURPLE PEBBLES(CHILD CARE) SERVICES,"3,542.86",UASC LAC 16-17,EXTERNAL AGENCIES AND BODIES,2103342163,1000070705
05.11.2021,CHILDREN AND FAMILIES,PURPLE PEBBLES(CHILD CARE) SERVICES,"3,542.86",UASC LAC 16-17,EXTERNAL AGENCIES AND BODIES,2103342168,1000070705
05.11.2021,CHILDREN AND FAMILIES,PURPLE PEBBLES(CHILD CARE) SERVICES,"3,542.86",UASC LAC 16-17,EXTERNAL AGENCIES AND BODIES,2103342169,1000070705
05.11.2021,CHILDREN AND FAMILIES,PURPLE PEBBLES(CHILD CARE) SERVICES,"3,542.86",UASC LAC 16-17,EXTERNAL AGENCIES AND BODIES,2103342170,1000070705
05.11.2021,CHILDREN AND FAMILIES,PURPLE PEBBLES(CHILD CARE) SERVICES,"3,542.86",UASC LAC 16-17,EXTERNAL AGENCIES AND BODIES,2103342184,1000070705
05.11.2021,CHILDREN AND FAMILIES,PCS SERVICES LIMITED,"1,285.71",UASC LAC 16-17,EXTERNAL AGENCIES AND BODIES,2103342258,1000087059
05.11.2021,CHILDREN AND FAMILIES,PCS SERVICES LIMITED,"1,385.71",UASC LAC 16-17,EXTERNAL AGENCIES AND BODIES,2103342256,1000087059
05.11.2021,CHILDREN AND FAMILIES,PCS SERVICES LIMITED,"1,385.71",UASC LAC 16-17,EXTERNAL AGENCIES AND BODIES,2103342261,1000087059
05.11.2021,CHILDREN AND FAMILIES,PURPLE PEBBLES(CHILD CARE) SERVICES,280,UASC LAC 16-17,OTHER PAYMENTS FOR CLIENTS,2103342164,1000070705
05.11.2021,CHILDREN AND FAMILIES,PURPLE PEBBLES(CHILD CARE) SERVICES,280,UASC LAC 16-17,OTHER PAYMENTS FOR CLIENTS,2103342166,1000070705
05.11.2021,CHILDREN AND FAMILIES,PURPLE PEBBLES(CHILD CARE) SERVICES,280,UASC LAC 16-17,OTHER PAYMENTS FOR CLIENTS,2103342176,1000070705
05.11.2021,CHILDREN AND FAMILIES,PURPLE PEBBLES(CHILD CARE) SERVICES,280,UASC LAC 16-17,OTHER PAYMENTS FOR CLIENTS,2103342177,1000070705
05.11.2021,CHILDREN AND FAMILIES,PURPLE PEBBLES(CHILD CARE) SERVICES,280,UASC LAC 16-17,OTHER PAYMENTS FOR CLIENTS,2103342178,1000070705
05.11.2021,CHILDREN AND FAMILIES,PURPLE PEBBLES(CHILD CARE) SERVICES,280,UASC LAC 16-17,OTHER PAYMENTS FOR CLIENTS,2103342179,1000070705
05.11.2021,CHILDREN AND FAMILIES,PURPLE PEBBLES(CHILD CARE) SERVICES,350,UASC LAC 16-17,OTHER PAYMENTS FOR CLIENTS,2103342182,1000070705
05.11.2021,COMMUNITIES,THAMES HOMECARE SERVICE LTD,360.36,NO RECOURSE TO PUBLIC FUNDS,HOMECARE - C&V,2103342367,1000079295
05.11.2021,COMMUNITIES,LINK AGE SOUTHWARK,"2,150.00",WEST CENTRAL,GRANTS,5902494456,1000034150
05.11.2021,COMMUNITIES HRA,LIMES WALK T&RA,"1,300.00",RESIDENTS PARTICIPATION FUND,GRANTS,5902494542,1000075885
05.11.2021,CUSTOMER EXPERIENCE HGF,ALLIED PUBLICITY SERVICES (MANCHESTER) LTD,887.57,BLUE BADGES,MATERIALS,5902493429,1000082115
05.11.2021,CUSTOMER EXPERIENCE HGF,VALTECH LTD,313.2,BLUE BADGES,MATERIALS,5902493422,1000082245
05.11.2021,EDUCATION,ASSN FOR ADULT EDUCATION & TRAINING ORGANISATIONS,820,ALC MANAGEMENT AND SUPPORT,TRAINING,5902494635,11040792
05.11.2021,EDUCATION,HATS GROUP LTD,492,SCH TRANS � TRAVEL,CAB FARES,5902494505,1000042743
05.11.2021,EDUCATION,CASTLE WATER LTD,325.43,THOMAS CALTON CENTRE,WATER,5902494414,1000078867
05.11.2021,EDUCATION,CASTLE WATER LTD,385.35,THOMAS CALTON CENTRE,WATER,5902494421,1000078867
05.11.2021,EDUCATION,CASTLE WATER LTD,405.69,THOMAS CALTON CENTRE,WATER,5902494411,1000078867
05.11.2021,EDUCATION,CASTLE WATER LTD,437.48,THOMAS CALTON CENTRE,WATER,5902494423,1000078867
05.11.2021,EDUCATION,CASTLE WATER LTD,608.74,THOMAS CALTON CENTRE,WATER,5902494422,1000078867
05.11.2021,EMPLOYEE EXPERIENCE,EMPLOYMENT LAW SERVICES LTD,371,HR PAYROLL COSTS,TRAINING,5902494430,1000087507
05.11.2021,ENVIRONMENT AND LEISURE,NEWINGTON T&RA,"5,000.00",CAPITAL PS (LEISURE),CAPITAL GRANTS,5902493685,1000015851
05.11.2021,ENVIRONMENT AND LEISURE,LETTSOM ALLOTMENTS ASSOCIATION,490.79,CAPITAL PS (LEISURE),CAPITAL GRANTS,5902494404,1000084346
05.11.2021,ENVIRONMENT AND LEISURE,BLOOM PROCUREMENT SERVICES LTD,"3,434.76",CAPITAL PS (LEISURE),CONSTRUCTION FEES  - EXTERNAL,5902494410,1000082531
05.11.2021,ENVIRONMENT AND LEISURE,BLOOM PROCUREMENT SERVICES LTD,"10,340.24",CAPITAL PS (LEISURE),CONSTRUCTION FEES  - EXTERNAL,5902494410,1000082531
05.11.2021,ENVIRONMENT AND LEISURE,SUSTRANS LTD,"6,710.00",CAPITAL PS (LEISURE),"PLANT, MACHINERY & EQUIPMENT ACQUISITION",5902493531,1000047385
05.11.2021,ENVIRONMENT AND LEISURE,BELL BRUSH COMPANY,252,MANAGEMENT TEAM,MATERIALS,5902494485,1259776
05.11.2021,ENVIRONMENT DIRECTORATE,HITACHI CAPITAL VEHICLE SOLN LTD,458.61,CAR LEASING CTRL A/C,VEHICLE LEASING CHARGES,5902494529,1000007619
05.11.2021,ENVIRONMENT DIRECTORATE,HITACHI CAPITAL VEHICLE SOLN LTD,466.53,CAR LEASING CTRL A/C,VEHICLE LEASING CHARGES,5902494529,1000007619
05.11.2021,ENVIRONMENT DIRECTORATE,ARNOLD CLARK VEHICLE MANAGEMENT,-525.29,CAR LEASING CTRL A/C,VEHICLE LEASING CHARGES,5902494572,1000079116
05.11.2021,ENVIRONMENT DIRECTORATE,ARNOLD CLARK VEHICLE MANAGEMENT,-518.96,CAR LEASING CTRL A/C,VEHICLE LEASING CHARGES,5902494572,1000079116
05.11.2021,ENVIRONMENT DIRECTORATE,ARNOLD CLARK VEHICLE MANAGEMENT,"1,021.80",CAR LEASING CTRL A/C,VEHICLE LEASING CHARGES,5902494578,1000079116
05.11.2021,ENVIRONMENT DIRECTORATE,ARNOLD CLARK VEHICLE MANAGEMENT,"1,032.56",CAR LEASING CTRL A/C,VEHICLE LEASING CHARGES,5902494578,1000079116
05.11.2021,ENVIRONMENT DIRECTORATE,DAWSON RENTALS BUS & COACH LTD,"1,455.65",COMMERCIAL VEH CTRL A/C,HIRED VEHICLES,5902494464,1000042174
05.11.2021,ENVIRONMENT DIRECTORATE,E. H. ROBERTS - PENET GROUP LTD,726,COMMERCIAL VEH CTRL A/C,HIRED VEHICLES,5902494599,1000082787
05.11.2021,ENVIRONMENT DIRECTORATE,E. H. ROBERTS - PENET GROUP LTD,726,COMMERCIAL VEH CTRL A/C,HIRED VEHICLES,5902494604,1000082787
05.11.2021,ENVIRONMENT DIRECTORATE,E. H. ROBERTS - PENET GROUP LTD,726,COMMERCIAL VEH CTRL A/C,HIRED VEHICLES,5902494607,1000082787
05.11.2021,ENVIRONMENT DIRECTORATE,E. H. ROBERTS - PENET GROUP LTD,726,COMMERCIAL VEH CTRL A/C,HIRED VEHICLES,5902494618,1000082787
05.11.2021,ENVIRONMENT DIRECTORATE,E. H. ROBERTS - PENET GROUP LTD,836,COMMERCIAL VEH CTRL A/C,HIRED VEHICLES,5902494565,1000082787
05.11.2021,ENVIRONMENT DIRECTORATE,E. H. ROBERTS - PENET GROUP LTD,836,COMMERCIAL VEH CTRL A/C,HIRED VEHICLES,5902494570,1000082787
05.11.2021,ENVIRONMENT DIRECTORATE,E. H. ROBERTS - PENET GROUP LTD,836,COMMERCIAL VEH CTRL A/C,HIRED VEHICLES,5902494588,1000082787
05.11.2021,ENVIRONMENT DIRECTORATE,E. H. ROBERTS - PENET GROUP LTD,"1,035.00",COMMERCIAL VEH CTRL A/C,HIRED VEHICLES,5902494585,1000082787
05.11.2021,ENVIRONMENT DIRECTORATE,E. H. ROBERTS - PENET GROUP LTD,"1,056.00",COMMERCIAL VEH CTRL A/C,HIRED VEHICLES,5902494563,1000082787
05.11.2021,ENVIRONMENT DIRECTORATE,E. H. ROBERTS - PENET GROUP LTD,"1,650.00",COMMERCIAL VEH CTRL A/C,HIRED VEHICLES,5902494573,1000082787
05.11.2021,ENVIRONMENT DIRECTORATE,E. H. ROBERTS - PENET GROUP LTD,"1,650.00",COMMERCIAL VEH CTRL A/C,HIRED VEHICLES,5902494577,1000082787
05.11.2021,ENVIRONMENT DIRECTORATE,E. H. ROBERTS - PENET GROUP LTD,"1,650.00",COMMERCIAL VEH CTRL A/C,HIRED VEHICLES,5902494579,1000082787
05.11.2021,ENVIRONMENT DIRECTORATE,E. H. ROBERTS - PENET GROUP LTD,"1,650.00",COMMERCIAL VEH CTRL A/C,HIRED VEHICLES,5902494582,1000082787
05.11.2021,ENVIRONMENT DIRECTORATE,E. H. ROBERTS - PENET GROUP LTD,"1,650.00",COMMERCIAL VEH CTRL A/C,HIRED VEHICLES,5902494620,1000082787
05.11.2021,ENVIRONMENT DIRECTORATE,PERFORMANCE CHEMICALS LTD,"1,630.87",ESTATE CLEANING-GENERAL,MATERIALS,5902494525,1000037129
05.11.2021,ENVIRONMENT DIRECTORATE,IMPERIAL JANITORIAL SUPPLIES LTD,617.97,ESTATE CLEANING-GENERAL,MATERIALS,5902493272,1000038126
05.11.2021,ENVIRONMENT DIRECTORATE,IMPERIAL JANITORIAL SUPPLIES LTD,"1,206.93",ESTATE CLEANING-GENERAL,MATERIALS,5902494424,1000038126
05.11.2021,ENVIRONMENT DIRECTORATE,QUARTERMAN WINDSCREENS LTD,"1,790.00",FLEET INSURANCE WORKS,TRANSPORT INSURANCE COSTS,5902494517,1043709
05.11.2021,ENVIRONMENT DIRECTORATE,SPALDINGS (UK) LTD,387.48,GROUNDS MAINTENANCE - GENERAL,MATERIALS,5902494428,1907384
05.11.2021,ENVIRONMENT DIRECTORATE,WEB LABS LTD,"2,200.00",PEST CONTROL,SOFTWARE,5902494459,1000039819
05.11.2021,ENVIRONMENT DIRECTORATE,VERSALIFT UNITED KINGDOM LIMITED,420,PUBLIC LIGHTING,TRAINING,5902494567,1000042745
05.11.2021,ENVIRONMENT DIRECTORATE,CADENCE INNOVA LTD.,"19,990.00",RESIDENTIAL SERVICES,PROFESSIONAL FEES,5902494513,1000085771
05.11.2021,ENVIRONMENT DIRECTORATE,CYCLE CONFIDENT LTD,"18,000.00","ROAD SAFETY EDUCATION,TRAINING&PUBLICITY",PROFESSIONAL FEES,5902493142,1000070228
05.11.2021,ENVIRONMENT DIRECTORATE,KENT COUNTY COUNCIL - LASER,407.22,STREET LIGHTING REACTIVE,ELECTRICITY,5902494556,1000012926
05.11.2021,ENVIRONMENT DIRECTORATE,NPOWER LTD,340.67,STREET TRADING A/C,ELECTRICITY,5902494608,1000078994
05.11.2021,ENVIRONMENT DIRECTORATE,NPOWER LTD,397.24,STREET TRADING A/C,ELECTRICITY,5902494603,1000078994
05.11.2021,ENVIRONMENT DIRECTORATE,NPOWER LTD,400.48,STREET TRADING A/C,ELECTRICITY,5902494611,1000078994
05.11.2021,ENVIRONMENT DIRECTORATE,NPOWER LTD,764.83,STREET TRADING A/C,ELECTRICITY,5902494594,1000078994
05.11.2021,ENVIRONMENT DIRECTORATE,BATES ALARMS LTD,401,STREET TRADING A/C,SECURITY EQUIPMENT F&F,5902494558,1000080216
05.11.2021,F & C S EXCLUDING CORPORATE BUDGETS,MRO PEOPLE LTD,850,ADMINISTRATIVE SUPPORT,TRAINING,5902494511,1000083017
05.11.2021,F & C S EXCLUDING CORPORATE BUDGETS,BUDGET CARPETS,433.33,SESS,OTHER PAYMENTS FOR CLIENTS,5902494580,11319076
05.11.2021,HOUSING,GUIDELINE LIFT SERVICES LTD,"68,480.54",GUIDELINE,I-WORLD CONTRACTORS HOLDING ACCOUNT,5902494436,1000064176
05.11.2021,HOUSING,GUIDELINE LIFT SERVICES LTD,"71,390.06",GUIDELINE,I-WORLD CONTRACTORS HOLDING ACCOUNT,5902494438,1000064176
05.11.2021,HOUSING HRA,DISABILITY ADAPTIONS CONSULTANCY SERVICE T/A DACS,"6,794.82",CAPITAL PS (HRA),CONST'N MAIN CONTRACT - NON CERTIFICATED,2103342117,3000002000
05.11.2021,HOUSING HRA,DISABILITY ADAPTIONS CONSULTANCY SERVICE T/A DACS,"8,058.60",CAPITAL PS (HRA),CONST'N MAIN CONTRACT - NON CERTIFICATED,2103342115,3000002000
05.11.2021,HOUSING HRA,POTTER RAPER LTD,"1,904.27",CAPITAL PS (HRA),CONSTRUCTION FEES  - EXTERNAL,5902494522,1009369
05.11.2021,HOUSING HRA,CALFORD SEADEN LLP,"2,165.00",CAPITAL PS (HRA),CONSTRUCTION FEES  - EXTERNAL,5902494562,1061592
05.11.2021,HOUSING HRA,COTTRELL AND VERMEULEN ARCH LTD,"2,432.59",CAPITAL PS (HRA),CONSTRUCTION FEES  - EXTERNAL,5902494482,1000012119
05.11.2021,HOUSING HRA,COTTRELL AND VERMEULEN ARCH LTD,"2,829.41",CAPITAL PS (HRA),CONSTRUCTION FEES  - EXTERNAL,5902494482,1000012119
05.11.2021,HOUSING HRA,HUNTER & PARTNERS LTD,"3,000.00",CAPITAL PS (HRA),CONSTRUCTION FEES  - EXTERNAL,5902494514,1000055088
05.11.2021,HOUSING HRA,SHARPE PRITCHARD LLP,"2,624.00",CAPITAL PS (HRA),CONSTRUCTION FEES - ARCHITECT,5902488958,1790085
05.11.2021,HOUSING HRA,FRASER BROWN MACKENNA LTD,"4,601.83",CAPITAL PS (HRA),CONSTRUCTION FEES - ARCHITECT,5902494625,1000081651
05.11.2021,HOUSING HRA,FRASER BROWN MACKENNA LTD,"20,109.00",CAPITAL PS (HRA),CONSTRUCTION FEES - ARCHITECT,5902494625,1000081651
05.11.2021,HOUSING HRA,PELLINGS LLP,"11,712.00",CAPITAL PS (HRA),CONSTRUCTION FEES - EMPLOYERS AGENT,5902494574,1009262
05.11.2021,HOUSING HRA,CALFORD SEADEN LLP,"1,764.00",CAPITAL PS (HRA),CONSTRUCTION FEES - EMPLOYERS AGENT,5902494566,1061592
05.11.2021,HOUSING HRA,CALFORD SEADEN LLP,"2,352.00",CAPITAL PS (HRA),CONSTRUCTION FEES - EMPLOYERS AGENT,5902494586,1061592
05.11.2021,HOUSING HRA,AIREY MILLER LIMITED,"2,992.50",CAPITAL PS (HRA),CONSTRUCTION FEES - EMPLOYERS AGENT,5902494624,1000085476
05.11.2021,HOUSING HRA,BOUYGUES (UK) LTD,"29,517.67",CAPITAL PS (HRA),CONSTRUCTION MAIN CONTRACT -CERTIFICATED,2103341773,3000002179
05.11.2021,HOUSING HRA,MONTAGU EVANS LLP,"1,850.14",CAPITAL PS (REGEN),CONSTRUCTION FEES  - EXTERNAL,5902494418,1000073283
05.11.2021,HOUSING HRA,MONTAGU EVANS LLP,"1,850.14",CAPITAL PS (REGEN),CONSTRUCTION FEES  - EXTERNAL,5902494418,1000073283
05.11.2021,LEISURE DIRECTORATE,DOG KENNEL HILL ADVENTURE PLAYGROUND LTD,"7,740.75",GRANTS COMMISSIONING,GRANTS,5902494630,11134529
05.11.2021,LEISURE DIRECTORATE,INSPIRE AT ST PETER'S LTD,"7,740.25",GRANTS COMMISSIONING,GRANTS,5902494636,1000041565
05.11.2021,LEISURE DIRECTORATE,THE INDEPENDENT ACADEMIC RESEARCH STUDIES INTERNATIONAL INSTITUTE,"6,977.00",GRANTS COMMISSIONING,GRANTS,5902494638,1000075673
05.11.2021,LEISURE DIRECTORATE,KENT COUNTY COUNCIL - LASER,"1,444.91",HERITAGE CENTRE & WALWORTH LIBRARY,ELECTRICITY,5902494569,1000012926
05.11.2021,LEISURE DIRECTORATE,KENT COUNTY COUNCIL - LASER,"3,603.55",HERITAGE CENTRE & WALWORTH LIBRARY,ELECTRICITY,5902494553,1000012926
05.11.2021,LEISURE DIRECTORATE,KENT COUNTY COUNCIL - LASER,"5,884.22",HERITAGE CENTRE & WALWORTH LIBRARY,ELECTRICITY,5902494550,1000012926
05.11.2021,LEISURE DIRECTORATE,CASTLE WATER LTD,295.86,HOMERSTALL ROAD SPORTS GROUND,WATER,5902494164,1000078867
05.11.2021,LEISURE DIRECTORATE,RH WROUGHT IRON,"1,475.00",SOUTHWARK AREA TEAM,OTHER R&M,2103340840,3000000680
05.11.2021,LEISURE DIRECTORATE,ASKEWS & HOLTS LIBRARY SERVICES LTD,633.92,STOCK SERVICES,BOOKS & PUBLICATIONS,5902494402,1494168
05.11.2021,LEISURE DIRECTORATE,ASKEWS & HOLTS LIBRARY SERVICES LTD,"6,014.92",STOCK SERVICES,BOOKS & PUBLICATIONS,5902494441,1494168
05.11.2021,NEW BUILD,LEVITT BERNSTEIN ASSOCIATION LIMITED,"4,000.00",HSG REGEN,PROFESSIONAL FEES,5902493322,1000036622
05.11.2021,PUBLIC HEALTH,ELITE GUARDING (UK) LTD,"48,240.00",COVID-19 MASS RAPID TESTING,EXTERNAL AGENCIES AND BODIES,5902494548,1000086183
05.11.2021,PUBLIC HEALTH,ELITE GUARDING (UK) LTD,"48,240.00",COVID-19 MASS RAPID TESTING,EXTERNAL AGENCIES AND BODIES,5902494551,1000086183
05.11.2021,PUBLIC HEALTH,ELITE GUARDING (UK) LTD,"49,200.00",COVID-19 MASS RAPID TESTING,EXTERNAL AGENCIES AND BODIES,5902494547,1000086183
05.11.2021,PUBLIC HEALTH,ELITE GUARDING (UK) LTD,"49,400.00",COVID-19 MASS RAPID TESTING,EXTERNAL AGENCIES AND BODIES,5902494546,1000086183
05.11.2021,PUBLIC HEALTH,QUALITY MEDICAL SOLUTIONS LTD (QMS),"7,500.00",HEALTHY WEIGHT,EXTERNAL AGENCIES AND BODIES,5902494631,1000072192
05.11.2021,PUBLIC HEALTH,FREE TO BE KIDS,"2,985.00",PLACE & HEALTH IMPROVEMENT,EXTERNAL AGENCIES AND BODIES,5902494560,1000080382
05.11.2021,REGENERATION,NIKKI SPENCER LTD,"1,400.00",MASTER PLAN-H/WAY & TRANS INTERCHANGE,MARKETING & PUBLICITY SERVICES,5902494552,1000071795
05.11.2021,REGENERATION,HANNAH MAULE-FFINCH,600,MASTER PLAN-H/WAY & TRANS INTERCHANGE,MARKETING & PUBLICITY SERVICES,5902494584,1000034725
05.11.2021,RESIDENT SERVICES,CHESHIRE ESTATE AND LEGAL LTD,"9,500.00",TA ESTATE VOIDS,LEGAL FEES & COURT COSTS,5902494403,1000081908
05.11.2021,RESIDENT SERVICES HGF,SOUTHWARK LAW CENTRE,"12,250.00",HOMELESS PROJECTS,LEGAL FEES & COURT COSTS,5902494448,1931684
05.11.2021,RESIDENT SERVICES HGF,DENHAN INTERNATIONAL LIMITED,"7,671.00",NIGHTLY TA (NSC),EXTERNAL AGENCIES AND BODIES,5902494543,1000075567
05.11.2021,RESIDENT SERVICES HGF,LODGISTICS ESTATES,"6,824.77",PSL PLACEMENTS,EXTERNAL AGENCIES AND BODIES,5902494516,1000080324
05.11.2021,STRATEGIC FINANCING BUDGETS,ZURICH MUNICIPAL,"16,500.00",MOTOR RELATED INSURANCE,TRANSPORT INSURANCE COSTS,5902494627,11011168
05.11.2021,STRATEGIC FINANCING BUDGETS,ZURICH MUNICIPAL,"67,100.00",MOTOR RELATED INSURANCE,TRANSPORT INSURANCE COSTS,5902494637,11011168
05.11.2021,STRATEGIC FINANCING BUDGETS,ZURICH MUNICIPAL,"37,060.00",PROPERTY RELATED INSURANCE,PROPERTY INSURANCE COSTS,5902494633,11011168
05.11.2021,STRATEGIC FINANCING BUDGETS,ZURICH MUNICIPAL,"1,249,505.94",PROPERTY RELATED INSURANCE,PROPERTY INSURANCE COSTS,5902494623,11011168
06.11.2021,ASSET MANAGEMENT,BRYHILL TECHNICAL SERVICES,"8,341.06",DISREPAIR,PAYMENTS FOR LEGAL SERVICES,2103340698,3000001722
06.11.2021,ASSET MANAGEMENT,FRANKHAM CONSULTANCY GROUP LTD,"1,250.00",DISREPAIR,PROFESSIONAL FEES,5902493670,1000043952
06.11.2021,ASSET MANAGEMENT,FRANKHAM CONSULTANCY GROUP LTD,"1,250.00",DISREPAIR,PROFESSIONAL FEES,5902493675,1000043952
06.11.2021,CHILDREN AND FAMILIES,HERA SOCIAL CARE LTD,255.67,FAMILY GROUP CONF�S,PROFESSIONAL FEES,5902493557,1000084935
06.11.2021,CUSTOMER EXPERIENCE HGF,EASYLINK UK,"1,499.85",SMART MOBILE RESPONSE TEAM,EQUIPMENT PURCHASE & REPAIR,5902493350,1000066550
06.11.2021,ENVIRONMENT AND LEISURE,BELL BRUSH COMPANY,563.5,MANAGEMENT TEAM,MATERIALS,5902493245,1259776
06.11.2021,ENVIRONMENT DIRECTORATE,LONDON COUNCILS,"33,986.66",ALG ACCOUNT,PROFESSIONAL FEES,5902494202,11237079
06.11.2021,ENVIRONMENT DIRECTORATE,DAWSON RENTALS SWEEPERS,534.15,COMMERCIAL VEH CTRL A/C,VEHICLE REPAIRS & MAINTENANCE,5902493600,1000068168
06.11.2021,ENVIRONMENT DIRECTORATE,BRITISH GAS,407.12,STREET TRADING A/C,ELECTRICITY,5902494078,1000054825
06.11.2021,ENVIRONMENT DIRECTORATE,TYCO INTEGRATED FIRE & SECURITY,"10,752.25",TOWN CENTRE CCTV,EQUIPMENT PURCHASE & REPAIR,5902493539,1000077948
06.11.2021,F & C S EXCLUDING CORPORATE BUDGETS,DSI BILLING SERVICES LTD,"2,754.12",ADMINISTRATIVE SUPPORT,POSTAGES,5902494508,1000058640
06.11.2021,HOUSING HRA,SILK & MACKMAN SERVICES LTD,864,CAPITAL PS (HRA),UTILITIES INSTALLATION,5902494139,1000035282
06.11.2021,HOUSING HRA,HEYNE TILLET STEEL LTD,900,CAPITAL PS (REGEN),CONSTRUCTION FEES  - EXTERNAL,5902494134,1000076787
06.11.2021,HOUSING HRA,HEYNE TILLET STEEL LTD,900,CAPITAL PS (REGEN),CONSTRUCTION FEES  - EXTERNAL,5902494134,1000076787
06.11.2021,HOUSING HRA,GLOBAL GUARDIANS FACILITIES MANAGEMENT LTD,"2,400.00",CAPITAL PS (REGEN),CONSTRUCTION SITE COSTS,5902493433,1000071841
06.11.2021,LEISURE DIRECTORATE,MARICER - CARAVAN ELECTRICAL PARK SERVICES LTD,560,SDM BUDGET,MATERIALS,5902494366,1000069292
06.11.2021,RESIDENT SERVICES,KENT COUNTY COUNCIL - LASER,622.67,CENTRAL AREA RUNNING COSTS,CATERING MATERIALS & SUPPLIES,5902494146,1000012926
06.11.2021,RESIDENT SERVICES,REDACTED PERSONAL DATA,"3,825.00",GREAT ESTATES,FREELANCE SPECIALISTS,REDACTED,REDACTED
06.11.2021,SBS SUPPORT,TRINITY FIRE & SECURITY SYSTEMS LTD,898.05,DEPOT COSTS,FIRE ALARMS & EMERGENCY LIGHTING,5902493949,1000083229
06.11.2021,SBS SUPPORT,TRINITY FIRE & SECURITY SYSTEMS LTD,"1,153.85",DEPOT COSTS,FIRE ALARMS & EMERGENCY LIGHTING,5902493949,1000083229
07.11.2021,ASSET MANAGEMENT,ASHFORDS LLP OFFICE ACCOUNT,425,DISREPAIR,PAYMENTS FOR LEGAL SERVICES,5902494373,1000082695
07.11.2021,ASSET MANAGEMENT,ASHFORDS LLP OFFICE ACCOUNT,425,DISREPAIR,PAYMENTS FOR LEGAL SERVICES,5902494393,1000082695
07.11.2021,ASSET MANAGEMENT,ASHFORDS LLP OFFICE ACCOUNT,425,DISREPAIR,PAYMENTS FOR LEGAL SERVICES,5902494494,1000082695
07.11.2021,ASSET MANAGEMENT,ASHFORDS LLP OFFICE ACCOUNT,425,DISREPAIR,PAYMENTS FOR LEGAL SERVICES,5902494496,1000082695
07.11.2021,ASSET MANAGEMENT,ASHFORDS LLP OFFICE ACCOUNT,724.5,DISREPAIR,PAYMENTS FOR LEGAL SERVICES,5902494475,1000082695
07.11.2021,ASSET MANAGEMENT,ASHFORDS LLP OFFICE ACCOUNT,"1,325.00",DISREPAIR,PAYMENTS FOR LEGAL SERVICES,5902494307,1000082695
07.11.2021,ASSET MANAGEMENT,ASHFORDS LLP OFFICE ACCOUNT,"1,325.00",DISREPAIR,PAYMENTS FOR LEGAL SERVICES,5902494338,1000082695
07.11.2021,ASSET MANAGEMENT,ASHFORDS LLP OFFICE ACCOUNT,"1,325.00",DISREPAIR,PAYMENTS FOR LEGAL SERVICES,5902494492,1000082695
07.11.2021,ASSET MANAGEMENT,JUDGE AND PRIESTLEY SOLICITORS,400,DISREPAIR,PAYMENTS FOR LEGAL SERVICES,5902494419,1472217
07.11.2021,ASSET MANAGEMENT,JUDGE AND PRIESTLEY SOLICITORS,"2,133.33",DISREPAIR,PAYMENTS FOR LEGAL SERVICES,5902494419,1472217
07.11.2021,ASSET MANAGEMENT,JUDGE AND PRIESTLEY SOLICITORS,"7,800.00",DISREPAIR,PAYMENTS FOR LEGAL SERVICES,5902494419,1472217
07.11.2021,ASSET MANAGEMENT,JUDGE AND PRIESTLEY SOLICITORS,"41,966.00",DISREPAIR,PAYMENTS FOR LEGAL SERVICES,5902494415,1472217
07.11.2021,CHILDREN AND FAMILIES,JAMIE'S FARM,"6,600.00",YOS MGMT & SUPPORT,EXTERNAL AGENCIES AND BODIES,5902494198,1000083865
07.11.2021,EMPLOYEE EXPERIENCE,ROSEMARY POTTS,"1,337.00",OCCUPATIONAL ASSESSMENT,CONSULTANTS SERVICES,5902494013,1738708
07.11.2021,ENVIRONMENT DIRECTORATE,UK CONTAINER MAINTENANCE LTD,"6,250.00",COMMERCIAL WASTE,EQUIPMENT PURCHASE & REPAIR,5902494478,1000081591
07.11.2021,ENVIRONMENT DIRECTORATE,UK CONTAINER MAINTENANCE LTD,"6,250.00",COMMERCIAL WASTE,EQUIPMENT PURCHASE & REPAIR,5902494478,1000081591
07.11.2021,ENVIRONMENT DIRECTORATE,F R JONES & SON LTD,546.24,NON HOUSING GROUNDS,EQUIPMENT PURCHASE & REPAIR,5902493490,1000037178
07.11.2021,ENVIRONMENT DIRECTORATE,R H  ENVIRONMENTAL LTD,330,RESIDENTIAL SERVICES,MARKETING & PUBLICITY SERVICES,5902493965,1000070361
07.11.2021,F & C S EXCLUDING CORPORATE BUDGETS,BDO LLP,"22,005.00",INTERNAL AUDIT CONTRACTS,PAYMENTS FOR FINANCIAL SERVICES,5902494426,1000057898
07.11.2021,F & C S EXCLUDING CORPORATE BUDGETS,BDO LLP,"2,083.33",RISK ADMIN,PROFESSIONAL FEES,5902494557,1000057898
07.11.2021,HOUSING HRA,CARTER JONAS LLP,"8,500.00",CAPITAL PS (HRA),LAND & BUILDINGS ACQUISITION FEES,5902494341,1000073124
07.11.2021,LEISURE DIRECTORATE,NPOWER LTD,250.61,CEMETERIES,ELECTRICITY,5902494409,1000078994
07.11.2021,LEISURE DIRECTORATE,TELESHORE UK LTD,667,CREMATORIUM,MATERIALS,5902493712,1000075290
07.11.2021,RESIDENT SERVICES,ADAM THOMAS LANDSCAPE DESIGN LTD,400,GREAT ESTATES,FREELANCE SPECIALISTS,5902494455,1000080845
07.11.2021,RESIDENT SERVICES HGF,DOCUMENT OPTIONS LIMITED,255.26,HOUSING OPTIONS,OFFICE EXPENSES,5902494291,1000051744
08.11.2021,ADULT SOCIAL CARE,REDACTED PERSONAL DATA,279.85,APPOINTEESHIPS,OTHER PAYMENTS FOR CLIENTS,REDACTED,REDACTED
08.11.2021,ADULT SOCIAL CARE,COLT TECHNOLOGY SERVICES,400.92,ASC CHARGING TEAM,TELEPHONES (LAND LINES),5902494659,1000009377
08.11.2021,ADULT SOCIAL CARE,INDEPENDENT PEOPLE HOMECARE LTD,"3,857.14",CARERS SERVICES,PLACEMENTS - RESPITE,2103342509,1000083488
08.11.2021,ADULT SOCIAL CARE,INDEPENDENT PEOPLE HOMECARE LTD,"3,985.71",CARERS SERVICES,PLACEMENTS - RESPITE,2103342510,1000083488
08.11.2021,ADULT SOCIAL CARE,SIAN DAVIES,"1,500.00",DIR OF ASC,LEGAL FEES & COURT COSTS,2103342759,1000042111
08.11.2021,ADULT SOCIAL CARE,SIAN DAVIES,"1,500.00",DIR OF ASC,LEGAL FEES & COURT COSTS,2103342760,1000042111
08.11.2021,ADULT SOCIAL CARE,CHRISTINE COOPER,650,DIR OF ASC,LEGAL FEES & COURT COSTS,2103342701,1000058155
08.11.2021,ADULT SOCIAL CARE,THE DRIVE CARE HOMES LTD,"14,872.87",DISABILITIES LAC,EXTERNAL AGENCIES AND BODIES,2103342502,1000003889
08.11.2021,ADULT SOCIAL CARE,THE DRIVE CARE HOMES LTD,"2,310.00",DISABILITIES LAC,OTHER PAYMENTS FOR CLIENTS,2103342508,1000003889
08.11.2021,ADULT SOCIAL CARE,THE DRIVE CARE HOMES LTD,800,DISABILITIES LAC,RESIDENTIAL CARE,2103342504,1000003889
08.11.2021,ADULT SOCIAL CARE,THE DRIVE CARE HOMES LTD,"14,126.52",DISABILITIES LAC,RESIDENTIAL CARE,2103342503,1000003889
08.11.2021,ADULT SOCIAL CARE,SUPREME CARE SERVICES LTD,"3,883.68",DISCHARGE TO ACCESS,HOMECARE - C&V,2103342476,1000059416
08.11.2021,ADULT SOCIAL CARE,SUPREME CARE SERVICES LTD,701.22,DISCHARGE TO ACCESS,HOMECARE - IC,2103342493,1000059416
08.11.2021,ADULT SOCIAL CARE,SUPREME CARE SERVICES LTD,845.06,DISCHARGE TO ACCESS,HOMECARE - SPOT,2103342471,1000059416
08.11.2021,ADULT SOCIAL CARE,CAMBRIDGE HOUSE & TALBOT,490,LD LTS 18-64,DAYCARE,2103342520,1139414
08.11.2021,ADULT SOCIAL CARE,CAMBRIDGE HOUSE & TALBOT,"1,001.00",LD LTS 18-64,DAYCARE,2103342522,1139414
08.11.2021,ADULT SOCIAL CARE,CAMBRIDGE HOUSE & TALBOT,"1,820.00",LD LTS 18-64,DAYCARE,2103342518,1139414
08.11.2021,ADULT SOCIAL CARE,CAMBRIDGE HOUSE & TALBOT,"2,002.00",LD LTS 18-64,DAYCARE,2103342521,1139414
08.11.2021,ADULT SOCIAL CARE,CAMBRIDGE HOUSE & TALBOT,"2,002.00",LD LTS 18-64,DAYCARE,2103342523,1139414
08.11.2021,ADULT SOCIAL CARE,CAMBRIDGE HOUSE & TALBOT,"2,002.00",LD LTS 18-64,DAYCARE,2103342524,1139414
08.11.2021,ADULT SOCIAL CARE,CAMBRIDGE HOUSE & TALBOT,"2,912.00",LD LTS 18-64,DAYCARE,2103342519,1139414
08.11.2021,ADULT SOCIAL CARE,THE NEW SHOOTS,300,LD LTS 18-64,DAYCARE,2103342547,1000073970
08.11.2021,ADULT SOCIAL CARE,METRO HOMECARE LTD,396,LD LTS 18-64,HOMECARE - SPOT,2103342546,1000070695
08.11.2021,ADULT SOCIAL CARE,HEALTH PERSONNEL LTD,"3,676.00",LD LTS 18-64,RESIDENTIAL CARE,2103342525,1000076377
08.11.2021,ADULT SOCIAL CARE,CHOICE SUPPORT,881.76,LD LTS 18-64,SUPPORTED LIVING,2103342538,1104183
08.11.2021,ADULT SOCIAL CARE,CARE O LINE,"1,794.39",LD LTS 18-64,SUPPORTED LIVING,2103342551,11241743
08.11.2021,ADULT SOCIAL CARE,CARE O LINE,"1,801.82",LD LTS 18-64,SUPPORTED LIVING,2103342535,11241743
08.11.2021,ADULT SOCIAL CARE,CARE O LINE,"1,819.70",LD LTS 18-64,SUPPORTED LIVING,2103342534,11241743
08.11.2021,ADULT SOCIAL CARE,CONTACT PROFESSIONALS,465,LD LTS 18-64,SUPPORTED LIVING,2103342531,1000057263
08.11.2021,ADULT SOCIAL CARE,CONTACT PROFESSIONALS,684,LD LTS 18-64,SUPPORTED LIVING,2103342532,1000057263
08.11.2021,ADULT SOCIAL CARE,CONTACT PROFESSIONALS,912,LD LTS 18-64,SUPPORTED LIVING,2103342550,1000057263
08.11.2021,ADULT SOCIAL CARE,RESOURCES FOR AUTISM,"1,600.00",LD LTS 18-64,SUPPORTED LIVING,2103342544,1000062540
08.11.2021,ADULT SOCIAL CARE,MARCUS AND MARCUS LTD,"2,000.00",LD LTS 18-64,SUPPORTED LIVING,2103342536,1000065913
08.11.2021,ADULT SOCIAL CARE,MARCUS AND MARCUS LTD,"4,800.00",LD LTS 18-64,SUPPORTED LIVING,2103342537,1000065913
08.11.2021,ADULT SOCIAL CARE,PECULIAR CARE HOMES LTD,359,LD LTS 18-64,SUPPORTED LIVING,2103342515,1000076991
08.11.2021,ADULT SOCIAL CARE,PECULIAR CARE HOMES LTD,448.95,LD LTS 18-64,SUPPORTED LIVING,2103342514,1000076991
08.11.2021,ADULT SOCIAL CARE,PECULIAR CARE HOMES LTD,718,LD LTS 18-64,SUPPORTED LIVING,2103342511,1000076991
08.11.2021,ADULT SOCIAL CARE,PECULIAR CARE HOMES LTD,718,LD LTS 18-64,SUPPORTED LIVING,2103342516,1000076991
08.11.2021,ADULT SOCIAL CARE,PECULIAR CARE HOMES LTD,897.5,LD LTS 18-64,SUPPORTED LIVING,2103342512,1000076991
08.11.2021,ADULT SOCIAL CARE,PECULIAR CARE HOMES LTD,"1,346.25",LD LTS 18-64,SUPPORTED LIVING,2103342513,1000076991
08.11.2021,ADULT SOCIAL CARE,PECULIAR CARE HOMES LTD,"2,513.00",LD LTS 18-64,SUPPORTED LIVING,2103342517,1000076991
08.11.2021,ADULT SOCIAL CARE,CHOICE SUPPORT,"1,028.72",LD LTS 65+,SUPPORTED LIVING,2103342539,1104183
08.11.2021,ADULT SOCIAL CARE,PHOENIX HEALTHCARE & RECRUITMENT,"1,444.60",PHY LTS 18-64,DAYCARE,2103342529,1000065636
08.11.2021,ADULT SOCIAL CARE,INSPIRE SUPPORT WORKERS LTD,"1,430.25",PHY LTS 18-64,HOMECARE - SPOT,2103342562,1000080725
08.11.2021,ADULT SOCIAL CARE,LONDON CARE LTD,553.2,PHY LTS 65+,HOMECARE - C&V,2103342528,1000003398
08.11.2021,ADULT SOCIAL CARE,SUPREME CARE SERVICES LTD,435.12,PHY LTS 65+,HOMECARE - C&V,2103342499,1000059416
08.11.2021,ADULT SOCIAL CARE,SUPREME CARE SERVICES LTD,256.22,PHY STS 18-64,HOMECARE - IC,2103342498,1000059416
08.11.2021,ADULT SOCIAL CARE,SUPREME CARE SERVICES LTD,310.16,PHY STS 18-64,HOMECARE - IC,2103342483,1000059416
08.11.2021,ADULT SOCIAL CARE,SUPREME CARE SERVICES LTD,452.07,PHY STS 18-64,HOMECARE - IC,2103342474,1000059416
08.11.2021,ADULT SOCIAL CARE,SUPREME CARE SERVICES LTD,701.22,PHY STS 18-64,HOMECARE - IC,2103342479,1000059416
08.11.2021,ADULT SOCIAL CARE,SUPREME CARE SERVICES LTD,899,PHY STS 18-64,HOMECARE - IC,2103342488,1000059416
08.11.2021,ADULT SOCIAL CARE,SUPREME CARE SERVICES LTD,507.94,PHY STS 65+,HOMECARE - IC,2103342481,1000059416
08.11.2021,ADULT SOCIAL CARE,SUPREME CARE SERVICES LTD,557.38,PHY STS 65+,HOMECARE - IC,2103342482,1000059416
08.11.2021,ADULT SOCIAL CARE,SUPREME CARE SERVICES LTD,566.37,PHY STS 65+,HOMECARE - IC,2103342477,1000059416
08.11.2021,ADULT SOCIAL CARE,SUPREME CARE SERVICES LTD,719.2,PHY STS 65+,HOMECARE - IC,2103342494,1000059416
08.11.2021,ADULT SOCIAL CARE,SUPREME CARE SERVICES LTD,768.65,PHY STS 65+,HOMECARE - IC,2103342480,1000059416
08.11.2021,ADULT SOCIAL CARE,SUPREME CARE SERVICES LTD,948.45,PHY STS 65+,HOMECARE - IC,2103342490,1000059416
08.11.2021,ADULT SOCIAL CARE,SUPREME CARE SERVICES LTD,"1,006.88",PHY STS 65+,HOMECARE - IC,2103342485,1000059416
08.11.2021,ADULT SOCIAL CARE,SUPREME CARE SERVICES LTD,"1,006.88",PHY STS 65+,HOMECARE - IC,2103342487,1000059416
08.11.2021,ADULT SOCIAL CARE,SUPREME CARE SERVICES LTD,"2,499.22",PHY STS 65+,HOMECARE - IC,2103342491,1000059416
08.11.2021,ADULT SOCIAL CARE,SUPREME CARE SERVICES LTD,269.7,SUB STS 18-64,HOMECARE - IC,2103342495,1000059416
08.11.2021,ASSET MANAGEMENT,LPS CONSULTING (LONDON) LIMITED,"12,900.00",DIRECTOR OF ASSET MANAGEMENT,PROFESSIONAL FEES,5902494829,1000084208
08.11.2021,ASSET MANAGEMENT,ARMINA LTD,"1,509.38",DISREPAIR,PAYMENTS FOR LEGAL SERVICES,2103341782,3000002121
08.11.2021,ASSET MANAGEMENT HGF,QUADIENT FINANCE UK LIMITED,"1,856.08",160 TOOLEY ST.,POSTAGES,5902494166,1000087139
08.11.2021,ASSET MANAGEMENT HGF,WHATEVER DESIGN LTD,384,TSFM CONTINGENCY,MARKETING & PUBLICITY SERVICES,5902494185,1000036500
08.11.2021,CENTRAL FUNCTIONS,BRESLIN CONSTRUCTION LTD,"6,850.00",COMMERCIAL PROPERTIES,BUILDING R&M,2103342581,3000001948
08.11.2021,CENTRAL FUNCTIONS,NEC SOFTWARE SOLUTIONS UK LTD,"17,000.00",HOME OWNERSHIP,OFFICE EXPENSES,5902494621,1000087043
08.11.2021,CENTRAL FUNCTIONS,NEC SOFTWARE SOLUTIONS UK LTD,"17,000.00",HOME OWNERSHIP,OFFICE EXPENSES,5902494622,1000087043
08.11.2021,CENTRAL FUNCTIONS,NEC SOFTWARE SOLUTIONS UK LTD,"45,034.48",OPERATIONAL TEAM,RECHARGE FROM HGF,5902494632,1000087043
08.11.2021,CHIEF EXECUTIVE,LONDON BOROUGH OF LAMBETH,"2,396.30",CAPITAL PS (REGEN),CONSTR'N SUB CONTRACT - NON CERTIFICATED,5902494773,1000044545
08.11.2021,CHIEF EXECUTIVE,HAYATSU ARCHITECTS LTD,"4,500.00",CAPITAL PS (REGEN),CONSTRUCTION FEES,5902494502,1000082843
08.11.2021,CHILDREN AND ADULT,RSK ENVIRONMENT LTD,"11,493.00",CAPITAL PS (EDUCATION),CONSTRUCTION FEES,5902494385,1000057186
08.11.2021,CHILDREN AND FAMILIES,CHROMA THERAPIES LTD,312,ADOPTION SUPP FUND,PROFESSIONAL FEES,5902494780,1000085537
08.11.2021,CHILDREN AND FAMILIES,REDFERN PSYCHOLOGY SERVICES LTD,450,ADOPTION SUPP FUND,PROFESSIONAL FEES,5902494768,1000087276
08.11.2021,CHILDREN AND FAMILIES,REDACTED PERSONAL DATA,795,ADOPTION SUPP FUND,PROFESSIONAL FEES,REDACTED,REDACTED
08.11.2021,CHILDREN AND FAMILIES,REDACTED PERSONAL DATA,475,ADOPTION SUPP FUND,PROFESSIONAL FEES,REDACTED,REDACTED
08.11.2021,CHILDREN AND FAMILIES,REDACTED PERSONAL DATA,255,ADOPTION SUPP FUND,PROFESSIONAL FEES,REDACTED,REDACTED
08.11.2021,CHILDREN AND FAMILIES,REDACTED PERSONAL DATA,342.5,ADOPTION SUPP FUND,PROFESSIONAL FEES,REDACTED,REDACTED
08.11.2021,CHILDREN AND FAMILIES,REDACTED PERSONAL DATA,430,ADOPTION SUPP FUND,PROFESSIONAL FEES,REDACTED,REDACTED
08.11.2021,CHILDREN AND FAMILIES,YOUNG FOUNDATIONS LTD,"-3,000.00",CHILDREN�S RESID,EXTERNAL AGENCIES AND BODIES,2103342505,1000083666
08.11.2021,CHILDREN AND FAMILIES,YOUNG FOUNDATIONS LTD,"15,500.00",CHILDREN�S RESID,EXTERNAL AGENCIES AND BODIES,2103342506,1000083666
08.11.2021,CHILDREN AND FAMILIES,OWNLIFE RESIDENTIAL LTD,"19,285.71",CHILDREN�S RESID,RESIDENTIAL CARE,2103342500,1000085398
08.11.2021,CHILDREN AND FAMILIES,OWNLIFE RESIDENTIAL LTD,"26,128.57",CHILDREN�S RESID,RESIDENTIAL CARE,2103342501,1000085398
08.11.2021,CHILDREN AND FAMILIES,ACORN CARE & EDUCATION LTD,"15,455.71",CHILDREN�S RESID,RESIDENTIAL CARE,2103342507,1000085841
08.11.2021,CHILDREN AND FAMILIES,HERA SOCIAL CARE LTD,257.83,FAMILY GROUP CONF�S,PROFESSIONAL FEES,5902494350,1000084935
08.11.2021,CHILDREN AND FAMILIES,CORAL COMMUNITY ASSESSMENTS LTD,"3,300.00",SFS MGMT & SUPPORT,LEGAL FEES & COURT COSTS,2103342702,1000056464
08.11.2021,CHILDREN AND FAMILIES,E4 LAW LTD,289.99,SFS MGMT & SUPPORT,LEGAL FEES & COURT COSTS,2103342737,1000072222
08.11.2021,CHILDREN AND FAMILIES,EMILY VERITY,700,SFS MGMT & SUPPORT,LEGAL FEES & COURT COSTS,2103342706,1000047317
08.11.2021,CHILDREN AND FAMILIES,OLIVER MILLINGTON,275,SFS MGMT & SUPPORT,LEGAL FEES & COURT COSTS,2103342747,1000051055
08.11.2021,CHILDREN AND FAMILIES,OLIVER MILLINGTON,300,SFS MGMT & SUPPORT,LEGAL FEES & COURT COSTS,2103342748,1000051055
08.11.2021,CHILDREN AND FAMILIES,EUNICE SHEILA PHIL-EBOSIE,650,SFS MGMT & SUPPORT,LEGAL FEES & COURT COSTS,2103342757,1000053438
08.11.2021,CHILDREN AND FAMILIES,TABITHA BARRAN,375,SFS MGMT & SUPPORT,LEGAL FEES & COURT COSTS,2103342761,1000053940
08.11.2021,CHILDREN AND FAMILIES,TABITHA BARRAN,375,SFS MGMT & SUPPORT,LEGAL FEES & COURT COSTS,2103342762,1000053940
08.11.2021,CHILDREN AND FAMILIES,TABITHA BARRAN,375,SFS MGMT & SUPPORT,LEGAL FEES & COURT COSTS,2103342763,1000053940
08.11.2021,CHILDREN AND FAMILIES,TABITHA BARRAN,400,SFS MGMT & SUPPORT,LEGAL FEES & COURT COSTS,2103342764,1000053940
08.11.2021,CHILDREN AND FAMILIES,TIM PARKER,"1,050.00",SFS MGMT & SUPPORT,LEGAL FEES & COURT COSTS,2103342766,1000061949
08.11.2021,CHILDREN AND FAMILIES,TOM RESTALL,750,SFS MGMT & SUPPORT,LEGAL FEES & COURT COSTS,2103342767,1000063020
08.11.2021,CHILDREN AND FAMILIES,KATE LAMONT,750,SFS MGMT & SUPPORT,LEGAL FEES & COURT COSTS,2103342718,1000064216
08.11.2021,CHILDREN AND FAMILIES,LAURA BUMPUS,500,SFS MGMT & SUPPORT,LEGAL FEES & COURT COSTS,2103342725,1000064937
08.11.2021,CHILDREN AND FAMILIES,LAURA BUMPUS,750,SFS MGMT & SUPPORT,LEGAL FEES & COURT COSTS,2103342720,1000064937
08.11.2021,CHILDREN AND FAMILIES,LAURA BUMPUS,750,SFS MGMT & SUPPORT,LEGAL FEES & COURT COSTS,2103342724,1000064937
08.11.2021,CHILDREN AND FAMILIES,BEN ZURAWEL,375,SFS MGMT & SUPPORT,LEGAL FEES & COURT COSTS,2103342697,1000069468
08.11.2021,CHILDREN AND FAMILIES,BEN ZURAWEL,750,SFS MGMT & SUPPORT,LEGAL FEES & COURT COSTS,2103342693,1000069468
08.11.2021,CHILDREN AND FAMILIES,BEN ZURAWEL,750,SFS MGMT & SUPPORT,LEGAL FEES & COURT COSTS,2103342694,1000069468
08.11.2021,CHILDREN AND FAMILIES,WILLIAM DEAN,300,SFS MGMT & SUPPORT,LEGAL FEES & COURT COSTS,2103342770,1000070780
08.11.2021,CHILDREN AND FAMILIES,WILLIAM DEAN,575,SFS MGMT & SUPPORT,LEGAL FEES & COURT COSTS,2103342768,1000070780
08.11.2021,CHILDREN AND FAMILIES,JOHN SCHMITT,275,SFS MGMT & SUPPORT,LEGAL FEES & COURT COSTS,2103342714,1000074146
08.11.2021,CHILDREN AND FAMILIES,JOHN SCHMITT,275,SFS MGMT & SUPPORT,LEGAL FEES & COURT COSTS,2103342715,1000074146
08.11.2021,CHILDREN AND FAMILIES,JOHN SCHMITT,375,SFS MGMT & SUPPORT,LEGAL FEES & COURT COSTS,2103342709,1000074146
08.11.2021,CHILDREN AND FAMILIES,JOHN SCHMITT,575,SFS MGMT & SUPPORT,LEGAL FEES & COURT COSTS,2103342711,1000074146
08.11.2021,CHILDREN AND FAMILIES,JOHN SCHMITT,575,SFS MGMT & SUPPORT,LEGAL FEES & COURT COSTS,2103342712,1000074146
08.11.2021,CHILDREN AND FAMILIES,JOHN SCHMITT,575,SFS MGMT & SUPPORT,LEGAL FEES & COURT COSTS,2103342713,1000074146
08.11.2021,CHILDREN AND FAMILIES,LAURA HIBBERD,275,SFS MGMT & SUPPORT,LEGAL FEES & COURT COSTS,2103342729,1000076749
08.11.2021,CHILDREN AND FAMILIES,LAURA HIBBERD,275,SFS MGMT & SUPPORT,LEGAL FEES & COURT COSTS,2103342731,1000076749
08.11.2021,CHILDREN AND FAMILIES,LAURA HIBBERD,300,SFS MGMT & SUPPORT,LEGAL FEES & COURT COSTS,2103342734,1000076749
08.11.2021,CHILDREN AND FAMILIES,LAURA HIBBERD,325,SFS MGMT & SUPPORT,LEGAL FEES & COURT COSTS,2103342728,1000076749
08.11.2021,CHILDREN AND FAMILIES,LAURA HIBBERD,325,SFS MGMT & SUPPORT,LEGAL FEES & COURT COSTS,2103342730,1000076749
08.11.2021,CHILDREN AND FAMILIES,LAURA HIBBERD,375,SFS MGMT & SUPPORT,LEGAL FEES & COURT COSTS,2103342732,1000076749
08.11.2021,CHILDREN AND FAMILIES,KYAH MUFTI,350,SFS MGMT & SUPPORT,LEGAL FEES & COURT COSTS,2103342719,1000082025
08.11.2021,CHILDREN AND FAMILIES,MAX MELSA,300,SFS MGMT & SUPPORT,LEGAL FEES & COURT COSTS,2103342742,1000083902
08.11.2021,CHILDREN AND FAMILIES,MAX MELSA,400,SFS MGMT & SUPPORT,LEGAL FEES & COURT COSTS,2103342743,1000083902
08.11.2021,CHILDREN AND FAMILIES,THEODORE BUNCE,300,SFS MGMT & SUPPORT,LEGAL FEES & COURT COSTS,2103342765,1000085585
08.11.2021,CHILDREN AND FAMILIES,PAMELA NIAMH DALY,285,SFS MGMT & SUPPORT,LEGAL FEES & COURT COSTS,2103342750,1000085685
08.11.2021,CHILDREN AND FAMILIES,PAMELA NIAMH DALY,410,SFS MGMT & SUPPORT,LEGAL FEES & COURT COSTS,2103342751,1000085685
08.11.2021,CHILDREN AND FAMILIES,MARC TREGIDGO,950,SFS MGMT & SUPPORT,LEGAL FEES & COURT COSTS,2103342738,1000087496
08.11.2021,CHILDREN AND FAMILIES,MARC TREGIDGO,950,SFS MGMT & SUPPORT,LEGAL FEES & COURT COSTS,2103342739,1000087496
08.11.2021,CHILDREN AND FAMILIES,MARC TREGIDGO,950,SFS MGMT & SUPPORT,LEGAL FEES & COURT COSTS,2103342741,1000087496
08.11.2021,CHILDREN AND FAMILIES,MARC TREGIDGO,"1,500.00",SFS MGMT & SUPPORT,LEGAL FEES & COURT COSTS,2103342740,1000087496
08.11.2021,COMMUNITIES,SUPREME CARE SERVICES LTD,"3,272.36",NO RECOURSE TO PUBLIC FUNDS,HOMECARE - C&V,2103342492,1000059416
08.11.2021,COMMUNITIES,SETCHELL & LONGFIELD HALL FUND,"1,550.00",NORTH EAST,GRANTS,5902494681,1000026143
08.11.2021,CORPORATE & DEMOCRATIC CORE,CENTRE FOR CIVIL SOCIETY LTD,"1,000.00",CORPORATE MANAGEMENT,SUBSCRIPTIONS,5902494754,1000071144
08.11.2021,CUSTOMER EXPERIENCE,CIVICA UK LTD,"19,525.00",COMPLAINTS,SOFTWARE,5902494841,1730625
08.11.2021,CUSTOMER EXPERIENCE,ROL SOLUTIONS LTD,"2,194.86",PECKHAM MSSP,HARDWARE,5902494843,1000069512
08.11.2021,CUSTOMER EXPERIENCE HGF,SG PATH LTD,415.8,CORONER'S,PROFESSIONAL FEES,5902494653,1000077883
08.11.2021,CUSTOMER EXPERIENCE HGF,SG PATH LTD,415.8,CORONER'S,PROFESSIONAL FEES,5902494654,1000077883
08.11.2021,DSG,OASIS ACADEMY SOUTH BANK,594.87,AC & FREE - MSTREAM,STATEMENTED FEES,2103342602,1000073422
08.11.2021,DSG,OASIS ACADEMY SOUTH BANK,594.87,AC & FREE - MSTREAM,STATEMENTED FEES,2103342605,1000073422
08.11.2021,DSG,OASIS ACADEMY SOUTH BANK,"1,890.95",AC & FREE - MSTREAM,STATEMENTED FEES,2103342599,1000073422
08.11.2021,DSG,OASIS ACADEMY SOUTH BANK,"2,249.36",AC & FREE - MSTREAM,STATEMENTED FEES,2103342601,1000073422
08.11.2021,DSG,OASIS ACADEMY SOUTH BANK,"3,938.46",AC & FREE - MSTREAM,STATEMENTED FEES,2103342604,1000073422
08.11.2021,DSG,OASIS ACADEMY SOUTH BANK,"4,000.00",AC & FREE - MSTREAM,STATEMENTED FEES,2103342597,1000073422
08.11.2021,DSG,OASIS ACADEMY SOUTH BANK,"4,000.00",AC & FREE - MSTREAM,STATEMENTED FEES,2103342600,1000073422
08.11.2021,DSG,OASIS ACADEMY SOUTH BANK,"7,220.51",AC & FREE - MSTREAM,STATEMENTED FEES,2103342608,1000073422
08.11.2021,DSG,OASIS ACADEMY SOUTH BANK,"8,000.00",AC & FREE - MSTREAM,STATEMENTED FEES,2103342603,1000073422
08.11.2021,DSG,OASIS ACADEMY SOUTH BANK,"8,000.00",AC & FREE - MSTREAM,STATEMENTED FEES,2103342606,1000073422
08.11.2021,DSG,OASIS ACADEMY SOUTH BANK,"10,215.39",AC & FREE - MSTREAM,STATEMENTED FEES,2103342607,1000073422
08.11.2021,DSG,OASIS ACADEMY SOUTH BANK,"12,000.00",AC & FREE - MSTREAM,STATEMENTED FEES,2103342598,1000073422
08.11.2021,DSG,J K EDUCATION LTD,715,AC & FREE - RB/UNIT,STATEMENTED FEES,2103342591,1000077075
08.11.2021,DSG,J K EDUCATION LTD,715,AC & FREE - RB/UNIT,STATEMENTED FEES,2103342592,1000077075
08.11.2021,DSG,J K EDUCATION LTD,715,AC & FREE - RB/UNIT,STATEMENTED FEES,2103342593,1000077075
08.11.2021,DSG,J K EDUCATION LTD,715,AC & FREE - RB/UNIT,STATEMENTED FEES,2103342594,1000077075
08.11.2021,DSG,TUITION EXTRA (KENT) LTD,480,AC & FREE - RB/UNIT,STATEMENTED FEES,2103342584,1000082891
08.11.2021,DSG,TUITION EXTRA (KENT) LTD,480,AC & FREE - RB/UNIT,STATEMENTED FEES,2103342586,1000082891
08.11.2021,DSG,TUITION EXTRA (KENT) LTD,480,AC & FREE - RB/UNIT,STATEMENTED FEES,2103342587,1000082891
08.11.2021,DSG,LIME TRUST,"5,250.00",AC & FREE - SPECIAL,STATEMENTED FEES,2103342609,1000077937
08.11.2021,DSG,CRAMPTON PRIMARY SCHOOL,"1,500.00",COVID-19 SCHOOLS GRANTS,SCHOOLS CAPITATION,2103342569,5001000023
08.11.2021,DSG,NOTRE DAME RC GIRLS SCHOOL,"10,370.00",COVID-19 SCHOOLS GRANTS,SCHOOLS CAPITATION,2103342571,5001000050
08.11.2021,DSG,TUKE SCHOOL,"11,370.00",COVID-19 SCHOOLS GRANTS,SCHOOLS CAPITATION,2103342572,5001000097
08.11.2021,DSG,EXCEL CHILD CARE SERVICES LTD,"1,012.00",EY SENDIF,STATEMENTED FEES,2103342682,1000060429
08.11.2021,DSG,EXCEL CHILD CARE SERVICES LTD,"1,012.00",EY SENDIF,STATEMENTED FEES,2103342683,1000060429
08.11.2021,DSG,LITTLEPIPS PRESCHOOL,"2,024.00",EY SENDIF,STATEMENTED FEES,2103342692,1000079580
08.11.2021,DSG,LITTLE ME CANADA WATER LTD,"1,012.00",EY SENDIF,STATEMENTED FEES,2103342690,1000083348
08.11.2021,DSG,LITTLE ME CANADA WATER LTD,"1,012.00",EY SENDIF,STATEMENTED FEES,2103342691,1000083348
08.11.2021,DSG,GALAXY EXPLORERS DAY NURSERY LIMITED,396,EY SENDIF,STATEMENTED FEES,2103342689,1000085260
08.11.2021,DSG,DOG KENNEL HILL PRIMARY SCHOOL,396,EY SENDIF,STATEMENTED FEES,2103342681,5001000025
08.11.2021,DSG,GOODRICH PRIMARY SCHOOL,794.03,EY SENDIF,STATEMENTED FEES,2103342684,5001000028
08.11.2021,DSG,JOHN RUSKIN PRIMARY SCHOOL,"1,012.00",EY SENDIF,STATEMENTED FEES,2103342685,5001000040
08.11.2021,DSG,JOHN RUSKIN PRIMARY SCHOOL,"1,012.00",EY SENDIF,STATEMENTED FEES,2103342686,5001000040
08.11.2021,DSG,JOHN RUSKIN PRIMARY SCHOOL,"1,012.00",EY SENDIF,STATEMENTED FEES,2103342687,5001000040
08.11.2021,DSG,JOHN RUSKIN PRIMARY SCHOOL,"1,012.00",EY SENDIF,STATEMENTED FEES,2103342688,5001000040
08.11.2021,DSG,CRAWFORD PRIMARY SCHOOL,"3,030.00",HOLIDAY SCHL MEAL VOUCHERS,SCHOOLS CAPITATION,2103342565,5001000024
08.11.2021,DSG,ST JOSEPHS RC PRIMARY SCHOOL,"1,185.00",HOLIDAY SCHL MEAL VOUCHERS,SCHOOLS CAPITATION,2103342566,5001000077
08.11.2021,DSG,MOOR HOUSE SCHOOL & COLLEGE,"3,477.00",INDEP MAINSTREAM,STATEMENTED FEES,2103342627,1000080062
08.11.2021,DSG,MOOR HOUSE SCHOOL & COLLEGE,"17,300.67",INDEP MAINSTREAM,STATEMENTED FEES,2103342626,1000080062
08.11.2021,DSG,BESSEMER GRANGE PRIMARY SCHOOL,"2,267.00",MATERNITY COVER,SCHOOLS CAPITATION,2103342570,5001000009
08.11.2021,DSG,PETER HILLS CE SCHOOL,"7,858.00",MATERNITY COVER,SCHOOLS CAPITATION,2103342567,5001000053
08.11.2021,DSG,PETER HILLS CE SCHOOL,"10,983.00",MATERNITY COVER,SCHOOLS CAPITATION,2103342568,5001000053
08.11.2021,DSG,THE BOSCO CENTRE,"2,406.60",NMSS/ INDEP SPECIAL,STATEMENTED FEES,2103342658,1000046317
08.11.2021,DSG,THE BOSCO CENTRE,"2,687.20",NMSS/ INDEP SPECIAL,STATEMENTED FEES,2103342676,1000046317
08.11.2021,DSG,THE BOSCO CENTRE,"2,687.20",NMSS/ INDEP SPECIAL,STATEMENTED FEES,2103342677,1000046317
08.11.2021,DSG,THE BOSCO CENTRE,"2,700.10",NMSS/ INDEP SPECIAL,STATEMENTED FEES,2103342679,1000046317
08.11.2021,DSG,THE BOSCO CENTRE,"3,597.30",NMSS/ INDEP SPECIAL,STATEMENTED FEES,2103342675,1000046317
08.11.2021,DSG,THE BOSCO CENTRE,"3,641.40",NMSS/ INDEP SPECIAL,STATEMENTED FEES,2103342666,1000046317
08.11.2021,DSG,THE BOSCO CENTRE,"3,645.60",NMSS/ INDEP SPECIAL,STATEMENTED FEES,2103342659,1000046317
08.11.2021,DSG,THE BOSCO CENTRE,"3,832.50",NMSS/ INDEP SPECIAL,STATEMENTED FEES,2103342663,1000046317
08.11.2021,DSG,THE BOSCO CENTRE,"3,937.50",NMSS/ INDEP SPECIAL,STATEMENTED FEES,2103342665,1000046317
08.11.2021,DSG,THE BOSCO CENTRE,"4,637.85",NMSS/ INDEP SPECIAL,STATEMENTED FEES,2103342664,1000046317
08.11.2021,DSG,THE BOSCO CENTRE,"4,928.70",NMSS/ INDEP SPECIAL,STATEMENTED FEES,2103342668,1000046317
08.11.2021,DSG,THE BOSCO CENTRE,"5,400.20",NMSS/ INDEP SPECIAL,STATEMENTED FEES,2103342678,1000046317
08.11.2021,DSG,THE BOSCO CENTRE,"5,571.30",NMSS/ INDEP SPECIAL,STATEMENTED FEES,2103342669,1000046317
08.11.2021,DSG,THE BOSCO CENTRE,"6,779.85",NMSS/ INDEP SPECIAL,STATEMENTED FEES,2103342660,1000046317
08.11.2021,DSG,THE BOSCO CENTRE,"6,870.15",NMSS/ INDEP SPECIAL,STATEMENTED FEES,2103342655,1000046317
08.11.2021,DSG,THE BOSCO CENTRE,"6,885.90",NMSS/ INDEP SPECIAL,STATEMENTED FEES,2103342656,1000046317
08.11.2021,DSG,THE BOSCO CENTRE,"7,226.63",NMSS/ INDEP SPECIAL,STATEMENTED FEES,2103342670,1000046317
08.11.2021,DSG,THE BOSCO CENTRE,"7,738.50",NMSS/ INDEP SPECIAL,STATEMENTED FEES,2103342673,1000046317
08.11.2021,DSG,THE BOSCO CENTRE,"7,744.80",NMSS/ INDEP SPECIAL,STATEMENTED FEES,2103342667,1000046317
08.11.2021,DSG,THE BOSCO CENTRE,"7,744.80",NMSS/ INDEP SPECIAL,STATEMENTED FEES,2103342672,1000046317
08.11.2021,DSG,THE BOSCO CENTRE,"7,925.40",NMSS/ INDEP SPECIAL,STATEMENTED FEES,2103342671,1000046317
08.11.2021,DSG,THE BOSCO CENTRE,"7,956.90",NMSS/ INDEP SPECIAL,STATEMENTED FEES,2103342661,1000046317
08.11.2021,DSG,THE BOSCO CENTRE,"8,124.90",NMSS/ INDEP SPECIAL,STATEMENTED FEES,2103342657,1000046317
08.11.2021,DSG,THE BOSCO CENTRE,"8,500.80",NMSS/ INDEP SPECIAL,STATEMENTED FEES,2103342662,1000046317
08.11.2021,DSG,THE BOSCO CENTRE,"9,164.40",NMSS/ INDEP SPECIAL,STATEMENTED FEES,2103342674,1000046317
08.11.2021,DSG,THE BEECHES UK LTD,"4,228.02",NMSS/ INDEP SPECIAL,STATEMENTED FEES,2103342621,1000083173
08.11.2021,DSG,THE BEECHES UK LTD,"4,228.02",NMSS/ INDEP SPECIAL,STATEMENTED FEES,2103342622,1000083173
08.11.2021,DSG,THE BEECHES UK LTD,"4,368.96",NMSS/ INDEP SPECIAL,STATEMENTED FEES,2103342620,1000083173
08.11.2021,DSG,EATON HOUSE SCHOOL LTD,"2,666.67",NMSS/ INDEP SPECIAL,STATEMENTED FEES,2103342619,1000083253
08.11.2021,DSG,OAKFIELD PREPARATORY SCHOOL,"2,543.59",NMSS/ INDEP SPECIAL,STATEMENTED FEES,2103342589,1000066448
08.11.2021,DSG,OAKFIELD PREPARATORY SCHOOL,"3,815.39",NMSS/ INDEP SPECIAL,STATEMENTED FEES,2103342590,1000066448
08.11.2021,DSG,OAKFIELD PREPARATORY SCHOOL,"5,087.17",NMSS/ INDEP SPECIAL,STATEMENTED FEES,2103342588,1000066448
08.11.2021,DSG,BROADLANDS HALL LIMITED,"2,740.00",NON MAINTAINED EY,STATEMENTED FEES,2103342680,1000084303
08.11.2021,DSG,COMPASS CHILDREN HOMES LIMITED,"4,285.80",NON MAINTAINED EY,STATEMENTED FEES,2103342595,1000086507
08.11.2021,DSG,COMPASS CHILDREN HOMES LIMITED,"4,428.66",NON MAINTAINED EY,STATEMENTED FEES,2103342596,1000086507
08.11.2021,DSG,LINDEN LODGE SCHOOL,"1,643.00",NON MAINTAINED EY,STATEMENTED FEES,2103342615,1000070880
08.11.2021,DSG,LINDEN LODGE SCHOOL,"5,409.00",NON MAINTAINED EY,STATEMENTED FEES,2103342614,1000070880
08.11.2021,DSG,LINDEN LODGE SCHOOL,"19,515.00",NON MAINTAINED EY,STATEMENTED FEES,2103342616,1000070880
08.11.2021,DSG,ST NICHOLAS SCHOOL,"2,713.67",NON MAINTAINED EY,STATEMENTED FEES,2103342618,1000086878
08.11.2021,DSG,THE LONDON NAUTICAL SCHOOL,"2,666.67",OTHER LA MAINSTREAM,STATEMENTED FEES,2103342633,1000053815
08.11.2021,DSG,THE LONDON NAUTICAL SCHOOL,"7,238.00",OTHER LA MAINSTREAM,STATEMENTED FEES,2103342634,1000053815
08.11.2021,DSG,THE LONDON NAUTICAL SCHOOL,"7,238.00",OTHER LA MAINSTREAM,STATEMENTED FEES,2103342645,1000053815
08.11.2021,DSG,THE LONDON NAUTICAL SCHOOL,"7,333.33",OTHER LA MAINSTREAM,STATEMENTED FEES,2103342638,1000053815
08.11.2021,DSG,THE LONDON NAUTICAL SCHOOL,"7,333.33",OTHER LA MAINSTREAM,STATEMENTED FEES,2103342639,1000053815
08.11.2021,DSG,THE LONDON NAUTICAL SCHOOL,"7,333.33",OTHER LA MAINSTREAM,STATEMENTED FEES,2103342640,1000053815
08.11.2021,DSG,THE LONDON NAUTICAL SCHOOL,"7,333.33",OTHER LA MAINSTREAM,STATEMENTED FEES,2103342641,1000053815
08.11.2021,DSG,THE LONDON NAUTICAL SCHOOL,"7,333.33",OTHER LA MAINSTREAM,STATEMENTED FEES,2103342642,1000053815
08.11.2021,DSG,THE LONDON NAUTICAL SCHOOL,"7,333.34",OTHER LA MAINSTREAM,STATEMENTED FEES,2103342644,1000053815
08.11.2021,DSG,THE LONDON NAUTICAL SCHOOL,"8,000.00",OTHER LA MAINSTREAM,STATEMENTED FEES,2103342635,1000053815
08.11.2021,DSG,THE LONDON NAUTICAL SCHOOL,"8,000.00",OTHER LA MAINSTREAM,STATEMENTED FEES,2103342636,1000053815
08.11.2021,DSG,THE LONDON NAUTICAL SCHOOL,"8,000.00",OTHER LA MAINSTREAM,STATEMENTED FEES,2103342643,1000053815
08.11.2021,DSG,THE LONDON NAUTICAL SCHOOL,"8,476.67",OTHER LA MAINSTREAM,STATEMENTED FEES,2103342637,1000053815
08.11.2021,DSG,ROCKMOUNT PRIMARY SCHOOL,"1,589.74",OTHER LA MAINSTREAM,STATEMENTED FEES,2103342630,1000073237
08.11.2021,DSG,ROCKMOUNT PRIMARY SCHOOL,"3,563.32",OTHER LA MAINSTREAM,STATEMENTED FEES,2103342629,1000073237
08.11.2021,DSG,ROCKMOUNT PRIMARY SCHOOL,"4,430.77",OTHER LA MAINSTREAM,STATEMENTED FEES,2103342632,1000073237
08.11.2021,DSG,ROCKMOUNT PRIMARY SCHOOL,"4,461.54",OTHER LA MAINSTREAM,STATEMENTED FEES,2103342631,1000073237
08.11.2021,DSG,ST MARKS C OF E PRIMARY SCHOOL,"4,000.00",OTHER LA MAINSTREAM,STATEMENTED FEES,2103342625,1000084357
08.11.2021,DSG,ST MARKS C OF E PRIMARY SCHOOL,"8,000.00",OTHER LA MAINSTREAM,STATEMENTED FEES,2103342624,1000084357
08.11.2021,DSG,ST MARKS C OF E PRIMARY SCHOOL,"12,000.00",OTHER LA MAINSTREAM,STATEMENTED FEES,2103342623,1000084357
08.11.2021,DSG,CARETRADE CHARITABLE TRUST,500,OTHER LA SPECIAL,STATEMENTED FEES,2103342651,1000067322
08.11.2021,DSG,CARETRADE CHARITABLE TRUST,500,OTHER LA SPECIAL,STATEMENTED FEES,2103342653,1000067322
08.11.2021,DSG,CARETRADE CHARITABLE TRUST,600,OTHER LA SPECIAL,STATEMENTED FEES,2103342649,1000067322
08.11.2021,DSG,CARETRADE CHARITABLE TRUST,"7,644.00",OTHER LA SPECIAL,STATEMENTED FEES,2103342650,1000067322
08.11.2021,DSG,CARETRADE CHARITABLE TRUST,"7,644.00",OTHER LA SPECIAL,STATEMENTED FEES,2103342652,1000067322
08.11.2021,DSG,CARETRADE CHARITABLE TRUST,"7,644.00",OTHER LA SPECIAL,STATEMENTED FEES,2103342654,1000067322
08.11.2021,DSG,CARETRADE CHARITABLE TRUST,"7,800.00",OTHER LA SPECIAL,STATEMENTED FEES,2103342647,1000067322
08.11.2021,DSG,CARETRADE CHARITABLE TRUST,"9,800.00",OTHER LA SPECIAL,STATEMENTED FEES,2103342648,1000067322
08.11.2021,DSG,COGNUS LTD,450,OTHER LA SPECIAL,STATEMENTED FEES,2103342610,1000087427
08.11.2021,DSG,COGNUS LTD,450,OTHER LA SPECIAL,STATEMENTED FEES,2103342611,1000087427
08.11.2021,DSG,COGNUS LTD,450,OTHER LA SPECIAL,STATEMENTED FEES,2103342612,1000087427
08.11.2021,DSG,ANN BERNADT NURSERY SCHOOL,"34,383.00",SCHOOLS IN FINANCIAL DIFFICULTY,SCHOOLS CAPITATION,2103342573,5001000085
08.11.2021,DSG,COMBER GROVE PRIMARY SCHOOL,"25,631.69",SCHOOLS IN FINANCIAL DIFFICULTY,SCHOOLS CAPITATION,2103342574,5001000022
08.11.2021,DSG,NATIONAL STAR FOUNDATION,"38,385.90",SPECIALIST POST-16,STATEMENTED FEES,2103342617,1000064265
08.11.2021,DSG,ROYAL SOCIETY FOR BLIND CHILDREN,"12,341.95",SPECIALIST POST-16,STATEMENTED FEES,2103342628,1000087497
08.11.2021,EDUCATION,SPA EDUCATION TRUST,"2,175.00",MENTAL HEALTH AND RESILIENCE,SCHOOLS CAPITATION,2103342579,1000081600
08.11.2021,EDUCATION,DOG KENNEL HILL PRIMARY SCHOOL,"32,710.00",MENTAL HEALTH AND RESILIENCE,SCHOOLS CAPITATION,2103342575,5001000025
08.11.2021,EDUCATION,PHOENIX PRIMARY SCHOOL,"12,000.00",MENTAL HEALTH AND RESILIENCE,SCHOOLS CAPITATION,2103342578,5001000032
08.11.2021,EDUCATION,TOWER BRIDGE PRIMARY SCHOOL,"27,000.00",MENTAL HEALTH AND RESILIENCE,SCHOOLS CAPITATION,2103342577,5001000095
08.11.2021,EDUCATION,TOWNSEND PRIMARY SCHOOL,"7,000.00",MENTAL HEALTH AND RESILIENCE,SCHOOLS CAPITATION,2103342576,5001000096
08.11.2021,EMPLOYEE EXPERIENCE,CIPD ENTERPRISES LTD,440,HR PAYROLL COSTS,TRAINING,5902494727,1000055264
08.11.2021,EMPLOYEE EXPERIENCE,NEWMANS CONSULTING LIMITED,"1,150.00",OCCUPATIONAL ASSESSMENT,CONSULTANTS SERVICES,5902494005,1000065375
08.11.2021,EMPLOYEE EXPERIENCE,RCA BUSINESS PSYCHOLOGISTS LTD,750,OCCUPATIONAL ASSESSMENT,CONSULTANTS SERVICES,5902494021,1000080957
08.11.2021,ENVIRONMENT AND LEISURE,WSP UK LTD,"12,240.00",CAPITAL PS (LEISURE),"PLANT, MACHINERY & EQUIPMENT ACQUISITION",5902494706,1000054214
08.11.2021,ENVIRONMENT AND LEISURE,KENT COUNTY COUNCIL - LASER,931.01,SANDGATE STREET,ELECTRICITY,5902494644,1000012926
08.11.2021,ENVIRONMENT AND LEISURE,BARTS HEALTH NHS TRUST,"4,869.77",SEXUAL HEALTH - STI,MEDICAL / HEALTH & SAFETY SERVICES,5902494650,1000055762
08.11.2021,ENVIRONMENT DIRECTORATE,FIVEWAYS MUNICIPAL VEHICLE HIRE LTD,"1,380.00",COMMERCIAL VEH CTRL A/C,HIRED VEHICLES,5902494734,1000023985
08.11.2021,ENVIRONMENT DIRECTORATE,FIVEWAYS MUNICIPAL VEHICLE HIRE LTD,"2,880.00",COMMERCIAL VEH CTRL A/C,HIRED VEHICLES,5902494741,1000023985
08.11.2021,ENVIRONMENT DIRECTORATE,FIVEWAYS MUNICIPAL VEHICLE HIRE LTD,"3,190.00",COMMERCIAL VEH CTRL A/C,HIRED VEHICLES,5902494739,1000023985
08.11.2021,ENVIRONMENT DIRECTORATE,FIVEWAYS MUNICIPAL VEHICLE HIRE LTD,"3,960.00",COMMERCIAL VEH CTRL A/C,HIRED VEHICLES,5902494738,1000023985
08.11.2021,ENVIRONMENT DIRECTORATE,FIVEWAYS MUNICIPAL VEHICLE HIRE LTD,"3,960.00",COMMERCIAL VEH CTRL A/C,HIRED VEHICLES,5902494743,1000023985
08.11.2021,ENVIRONMENT DIRECTORATE,DAWSONGROUP VANS LTD,258.85,COMMERCIAL VEH CTRL A/C,HIRED VEHICLES,5902494778,1000082230
08.11.2021,ENVIRONMENT DIRECTORATE,DAWSONGROUP VANS LTD,258.85,COMMERCIAL VEH CTRL A/C,HIRED VEHICLES,5902494783,1000082230
08.11.2021,ENVIRONMENT DIRECTORATE,DAWSONGROUP VANS LTD,258.85,COMMERCIAL VEH CTRL A/C,HIRED VEHICLES,5902494790,1000082230
08.11.2021,ENVIRONMENT DIRECTORATE,DAWSONGROUP VANS LTD,275.9,COMMERCIAL VEH CTRL A/C,HIRED VEHICLES,5902494669,1000082230
08.11.2021,ENVIRONMENT DIRECTORATE,DAWSONGROUP VANS LTD,275.9,COMMERCIAL VEH CTRL A/C,HIRED VEHICLES,5902494670,1000082230
08.11.2021,ENVIRONMENT DIRECTORATE,DAWSONGROUP VANS LTD,275.9,COMMERCIAL VEH CTRL A/C,HIRED VEHICLES,5902494696,1000082230
08.11.2021,ENVIRONMENT DIRECTORATE,DAWSONGROUP VANS LTD,275.9,COMMERCIAL VEH CTRL A/C,HIRED VEHICLES,5902494697,1000082230
08.11.2021,ENVIRONMENT DIRECTORATE,DAWSONGROUP VANS LTD,275.9,COMMERCIAL VEH CTRL A/C,HIRED VEHICLES,5902494698,1000082230
08.11.2021,ENVIRONMENT DIRECTORATE,DAWSONGROUP VANS LTD,275.9,COMMERCIAL VEH CTRL A/C,HIRED VEHICLES,5902494712,1000082230
08.11.2021,ENVIRONMENT DIRECTORATE,DAWSONGROUP VANS LTD,300.08,COMMERCIAL VEH CTRL A/C,HIRED VEHICLES,5902494658,1000082230
08.11.2021,ENVIRONMENT DIRECTORATE,DAWSONGROUP VANS LTD,300.08,COMMERCIAL VEH CTRL A/C,HIRED VEHICLES,5902494661,1000082230
08.11.2021,ENVIRONMENT DIRECTORATE,DAWSONGROUP VANS LTD,300.08,COMMERCIAL VEH CTRL A/C,HIRED VEHICLES,5902494666,1000082230
08.11.2021,ENVIRONMENT DIRECTORATE,DAWSONGROUP VANS LTD,300.08,COMMERCIAL VEH CTRL A/C,HIRED VEHICLES,5902494667,1000082230
08.11.2021,ENVIRONMENT DIRECTORATE,DAWSONGROUP VANS LTD,300.08,COMMERCIAL VEH CTRL A/C,HIRED VEHICLES,5902494671,1000082230
08.11.2021,ENVIRONMENT DIRECTORATE,DAWSONGROUP VANS LTD,300.08,COMMERCIAL VEH CTRL A/C,HIRED VEHICLES,5902494674,1000082230
08.11.2021,ENVIRONMENT DIRECTORATE,DAWSONGROUP VANS LTD,300.08,COMMERCIAL VEH CTRL A/C,HIRED VEHICLES,5902494689,1000082230
08.11.2021,ENVIRONMENT DIRECTORATE,DAWSONGROUP VANS LTD,300.08,COMMERCIAL VEH CTRL A/C,HIRED VEHICLES,5902494691,1000082230
08.11.2021,ENVIRONMENT DIRECTORATE,DAWSONGROUP VANS LTD,300.08,COMMERCIAL VEH CTRL A/C,HIRED VEHICLES,5902494692,1000082230
08.11.2021,ENVIRONMENT DIRECTORATE,DAWSONGROUP VANS LTD,300.08,COMMERCIAL VEH CTRL A/C,HIRED VEHICLES,5902494728,1000082230
08.11.2021,ENVIRONMENT DIRECTORATE,DAWSONGROUP VANS LTD,300.08,COMMERCIAL VEH CTRL A/C,HIRED VEHICLES,5902494795,1000082230
08.11.2021,ENVIRONMENT DIRECTORATE,DAWSONGROUP VANS LTD,408.58,COMMERCIAL VEH CTRL A/C,HIRED VEHICLES,5902494690,1000082230
08.11.2021,ENVIRONMENT DIRECTORATE,DAWSONGROUP VANS LTD,452.6,COMMERCIAL VEH CTRL A/C,HIRED VEHICLES,5902494664,1000082230
08.11.2021,ENVIRONMENT DIRECTORATE,DAWSONGROUP VANS LTD,452.6,COMMERCIAL VEH CTRL A/C,HIRED VEHICLES,5902494720,1000082230
08.11.2021,ENVIRONMENT DIRECTORATE,DAWSONGROUP VANS LTD,471.2,COMMERCIAL VEH CTRL A/C,HIRED VEHICLES,5902494673,1000082230
08.11.2021,ENVIRONMENT DIRECTORATE,DAWSONGROUP VANS LTD,300.08,COMMERCIAL VEH CTRL A/C,VEHICLE REPAIRS & MAINTENANCE,5902494730,1000082230
08.11.2021,ENVIRONMENT DIRECTORATE,DAWSONGROUP VANS LTD,300.08,COMMERCIAL VEH CTRL A/C,VEHICLE REPAIRS & MAINTENANCE,5902494731,1000082230
08.11.2021,ENVIRONMENT DIRECTORATE,DAWSONGROUP VANS LTD,300.08,COMMERCIAL VEH CTRL A/C,VEHICLE REPAIRS & MAINTENANCE,5902494732,1000082230
08.11.2021,ENVIRONMENT DIRECTORATE,DAWSONGROUP VANS LTD,300.08,COMMERCIAL VEH CTRL A/C,VEHICLE REPAIRS & MAINTENANCE,5902494733,1000082230
08.11.2021,ENVIRONMENT DIRECTORATE,UK CONTAINER MAINTENANCE LTD,"3,750.00",COMMERCIAL WASTE,EQUIPMENT PURCHASE & REPAIR,5902494855,1000081591
08.11.2021,ENVIRONMENT DIRECTORATE,UK CONTAINER MAINTENANCE LTD,"3,750.00",COMMERCIAL WASTE,EQUIPMENT PURCHASE & REPAIR,5902494855,1000081591
08.11.2021,ENVIRONMENT DIRECTORATE,C L ROADMARKINGS LTD,"10,575.60",ENGINEERING CRAFTS,OTHER CONTRACTORS,2103342460,3000000825
08.11.2021,ENVIRONMENT DIRECTORATE,GREENHAM TRADING LTD,485.11,ESTATE CLEANING-GENERAL,MATERIALS,5902494643,1000006610
08.11.2021,ENVIRONMENT DIRECTORATE,PERFORMANCE CHEMICALS LTD,"2,645.40",ESTATE CLEANING-GENERAL,MATERIALS,5902494640,1000037129
08.11.2021,ENVIRONMENT DIRECTORATE,BUDMAX CONSTRUCTION LTD,"2,760.00",GRANGE DOORS,OTHER CONTRACTORS,2103342462,3000001936
08.11.2021,ENVIRONMENT DIRECTORATE,SOUTHWARK NEWSPAPER LTD,276,HIGHWAYS DEVELOPMENT,MARKETING & PUBLICITY SERVICES,5902494272,1556957
08.11.2021,ENVIRONMENT DIRECTORATE,SOUTHWARK NEWSPAPER LTD,360,HIGHWAYS DEVELOPMENT,MARKETING & PUBLICITY SERVICES,5902494267,1556957
08.11.2021,ENVIRONMENT DIRECTORATE,SOUTHWARK NEWSPAPER LTD,792,HIGHWAYS DEVELOPMENT,MARKETING & PUBLICITY SERVICES,5902494258,1556957
08.11.2021,ENVIRONMENT DIRECTORATE,FAROL LTD,586.78,ICC SPECIAL TEAMS,EQUIPMENT PURCHASE & REPAIR,5902494016,1000078940
08.11.2021,ENVIRONMENT DIRECTORATE,GREEN PLANT UK LTD,610,NON HOUSING GROUNDS,EQUIPMENT PURCHASE & REPAIR,5902494848,1000073151
08.11.2021,ENVIRONMENT DIRECTORATE,RLP PAINTING CONTRACTORS LTD,"11,700.00",PUBLIC LIGHTING,OTHER CONTRACTORS,2103342461,3000002097
08.11.2021,ENVIRONMENT DIRECTORATE,JARED NORMAN,500,SASBU,LEGAL FEES & COURT COSTS,2103342707,1000064080
08.11.2021,ENVIRONMENT DIRECTORATE,DJ & SONS BUILDERS LTD,"5,125.00",TEAMS 1 TO 12,BUILDING R&M,2103342564,3000002178
08.11.2021,ENVIRONMENT DIRECTORATE,DJ & SONS BUILDERS LTD,"15,000.00",TEAMS 1 TO 12,BUILDING R&M,2103342564,3000002178
08.11.2021,ENVIRONMENT DIRECTORATE,JONATHAN GREEN,500,TRADING STANDARDS,LEGAL FEES & COURT COSTS,2103342716,1000068985
08.11.2021,ENVIRONMENT DIRECTORATE,RICHARD HELLER,500,TRADING STANDARDS,LEGAL FEES & COURT COSTS,2103342753,1000068996
08.11.2021,ENVIRONMENT DIRECTORATE,RYAN THOMPSON,500,TRADING STANDARDS,LEGAL FEES & COURT COSTS,2103342756,1000068997
08.11.2021,F & C S EXCLUDING CORPORATE BUDGETS,MRO PEOPLE LTD,850,ADMINISTRATIVE SUPPORT,TRAINING,5902494509,1000083017
08.11.2021,F & C S EXCLUDING CORPORATE BUDGETS,NEC SOFTWARE SOLUTIONS UK LTD,825,ADMINISTRATIVE SUPPORT,TRAINING,5902494365,1000087043
08.11.2021,F & C S EXCLUDING CORPORATE BUDGETS,THE UNIVERSITY OF LAW,"1,435.00",LEGAL SVCES MANAGEMENT,TRAINING,5902494390,1016846
08.11.2021,HOUSING,BUILDTRUST LTD,"48,046.36",BUILD TRUST,I-WORLD CONTRACTORS HOLDING ACCOUNT,2103342583,3000002010
08.11.2021,HOUSING,LIFTEC LIFTS LTD,"93,797.06",PAYMENTS CONTROL ACCOUNT - LIFTEC,I-WORLD CONTRACTORS HOLDING ACCOUNT,5902494372,1000057278
08.11.2021,HOUSING,SPOKEMEAD MAINTENANCE LTD,"68,464.90",PAYMENTS CONTROL ACCOUNT - SPOKEMEAD,I-WORLD CONTRACTORS HOLDING ACCOUNT,2103342582,4002791
08.11.2021,HOUSING HRA,DAVID ROGERSON,300,CAPITAL PS (HRA),CONSTRUCTION FEES  - EXTERNAL,5902494809,1753617
08.11.2021,HOUSING HRA,CALFORD SEADEN LLP,"2,646.00",CAPITAL PS (HRA),CONSTRUCTION FEES  - EXTERNAL,5902494816,1061592
08.11.2021,HOUSING HRA,PJC CONSULTANCY LTD,490,CAPITAL PS (HRA),CONSTRUCTION FEES  - EXTERNAL,5902494840,1000077403
08.11.2021,HOUSING HRA,RUSSELL GILES PARTNERSHIP LTD,"1,000.00",CAPITAL PS (HRA),CONSTRUCTION FEES  - EXTERNAL,5902494798,1000077585
08.11.2021,HOUSING HRA,WEBB YATES ENGINEERS LTD,"5,600.00",CAPITAL PS (HRA),CONSTRUCTION FEES  - EXTERNAL,5902494619,1000085861
08.11.2021,HOUSING HRA,SHARPE PRITCHARD LLP,"1,052.00",CAPITAL PS (HRA),CONSTRUCTION FEES - LEGAL,5902494775,1790085
08.11.2021,HOUSING HRA,SHARPE PRITCHARD LLP,"1,143.00",CAPITAL PS (HRA),CONSTRUCTION FEES - LEGAL,5902494770,1790085
08.11.2021,HOUSING HRA,SHARPE PRITCHARD LLP,"2,666.00",CAPITAL PS (HRA),CONSTRUCTION FEES - LEGAL,5902494770,1790085
08.11.2021,HOUSING HRA,SALTASH ENTERPRISES LTD,"134,644.88",CAPITAL PS (HRA),CONSTRUCTION MAIN CONTRACT -CERTIFICATED,2103342116,4013605
08.11.2021,HOUSING HRA,BONDS BUILDERS AND CONTRACTORS LTD,"8,610.28",CAPITAL PS (HRA),CONSTRUCTION MAIN CONTRACT -CERTIFICATED,2103342459,3000002137
08.11.2021,HOUSING HRA,BONDS BUILDERS AND CONTRACTORS LTD,"60,870.72",CAPITAL PS (HRA),CONSTRUCTION MAIN CONTRACT -CERTIFICATED,2103342459,3000002137
08.11.2021,HOUSING HRA,BONDS BUILDERS AND CONTRACTORS LTD,"83,665.70",CAPITAL PS (HRA),CONSTRUCTION MAIN CONTRACT -CERTIFICATED,2103342459,3000002137
08.11.2021,HOUSING HRA,BAILY  GARNER LLP,"16,439.25",CAPITAL PS (REGEN),CONSTRUCTION FEES  - EXTERNAL,5902494634,1000663
08.11.2021,HOUSING HRA,HTA DESIGN LLP,"24,240.00",CAPITAL PS (REGEN),CONSTRUCTION FEES  - EXTERNAL,5902494737,1000074662
08.11.2021,HOUSING HRA,CONRAN & PARTNERS LTD,"4,870.00",CAPITAL PS (REGEN),CONSTRUCTION FEES - ARCHITECT,5902494107,1000083025
08.11.2021,HOUSING HRA,SHERCURITY LTD,"1,680.00",CAPITAL PS (REGEN),CONSTRUCTION SITE COSTS,5902494748,1000067090
08.11.2021,HOUSING HRA,SHERCURITY LTD,"3,360.00",CAPITAL PS (REGEN),CONSTRUCTION SITE COSTS,5902494821,1000067090
08.11.2021,HOUSING HRA,SHERCURITY LTD,"3,360.00",CAPITAL PS (REGEN),CONSTRUCTION SITE COSTS,5902494826,1000067090
08.11.2021,HOUSING HRA,SHERCURITY LTD,"3,360.00",CAPITAL PS (REGEN),CONSTRUCTION SITE COSTS,5902494835,1000067090
08.11.2021,HOUSING HRA,SHERCURITY LTD,"3,360.00",CAPITAL PS (REGEN),CONSTRUCTION SITE COSTS,5902494838,1000067090
08.11.2021,HOUSING HRA,SHERCURITY LTD,"3,840.00",CAPITAL PS (REGEN),CONSTRUCTION SITE COSTS,5902494746,1000067090
08.11.2021,HOUSING HRA,NPOWER,"2,774.00",RESIDENT SERVICES BUSINESS SUPPORT,ELECTRICITY,6102003591,DIRECT DEBIT PAYMENT
08.11.2021,HOUSING HRA,NPOWER,"167,950.09",RESIDENT SERVICES BUSINESS SUPPORT,ELECTRICITY,6102003592,DIRECT DEBIT PAYMENT
08.11.2021,HOUSING HRA,NPOWER,"2,368.25",RESIDENT SERVICES BUSINESS SUPPORT,ELECTRICITY,6102003589,DIRECT DEBIT PAYMENT
08.11.2021,LEISURE DIRECTORATE,WESTMINSTER WASTE,333.2,CEMETERIES,OTHER CONTRACTORS,5902494837,1000080933
08.11.2021,LEISURE DIRECTORATE,DRAIN SCAN,300,DULWICH AREA TEAM,OTHER R&M,5902494836,1908746
08.11.2021,LEISURE DIRECTORATE,GROVE VALE YOUTH CLUB,"1,350.00",GRANTS COMMISSIONING,GRANTS,5902494789,1173906
08.11.2021,LEISURE DIRECTORATE,THE OXFORD & BERMONDSEY CLUB,"7,740.75",GRANTS COMMISSIONING,GRANTS,5902494794,1698761
